Workbook

Sheet Valuation Summary
G2: Scenario
A3: Current Stock Price | C3: ='Stock Prices'!L925 -> 33.28
H4: Graph
A5: WACC | C5: ='Working Model'!E281 -> 0.082
H6: Sensitivity in Special Case
C7: Growth | D7: EV/EBITDA | E7: ROIC | H7: Volumes | I7: ='Working Model'!H178 -> 1600
A8: Value from DCF | C8: ='Working Model'!E282 -> 0.019 | D8: ='Working Model'!$E$283 -> 7.4 | E8: ='Working Model'!E285 -> 0.117 | H8: Prices | I8: ='Working Model'!$H$190 -> 5000
H9: Cost | I9: ='Working Model'!$H$204 -> 0.5
B10: Explicit Period Cash Flow | C10: ='Working Model'!E395 -> 16319793.4 | D10: =C10 -> 16319793.4 | E10: =C10 -> 16319793.4 | H10: Cap Exp | I10: ='Working Model'!$G$221 -> 2000
B11: Terminal Value | C11: ='Working Model'!E398 -> 39396585.23 | D11: ='Working Model'!$E$416 -> 37597720.88 | E11: ='Working Model'!E432 -> 38923603.09
B12: Enterprise Value | C12: =SUM(C10:C11) -> 55716378.62 | D12: =SUM(D10:D11) -> 53917514.28 | E12: =SUM(E10:E11) -> 55243396.48
B13: Bridge EV vs Equity Value | C13: ='Working Model'!$E$409 -> -13592000 | D13: =C13 -> -13592000 | E13: =D13 -> -13592000
B14: Equity Value | C14: =SUM(C12:C13) -> 42124378.62 | D14: =SUM(D12:D13) -> 40325514.28 | E14: =SUM(E12:E13) -> 41651396.48
B15: Shares | C15: ='Working Model'!E420 -> 949530 | D15: =C15 -> 949530 | E15: =D15 -> 949530
B16: Equity Value/Share | C16: =C14/C15 -> 44.36339939 | D16: =D14/D15 -> 42.4689207 | E16: =E14/E15 -> 43.86527702
A18: Cost of Equity Capital | C18: ='Working Model'!E288 -> 0.095 | H18: Graph
C19: Growth
C20: ='Working Model'!$E$289 -> 0.046 | D20: ='Working Model'!E290 -> 15 | E20: ='Working Model'!$E$292 -> 0.119
A22: Value from Equity cashflow
B23: Value of Dividends in Explicit Period | C23: ='Working Model'!E613 -> 5.79604181
B24: Value of Capital Gains at Terminal | C24: ='Working Model'!$E$615 -> 19.35179162
B25: Total Equity Value per Share | C25: ='Working Model'!E616 -> 25.14783343
E318: 1

Sheet Master Scenario
B2: WACC | D2: ='Valuation Summary'!C5 -> 0.082
B3: Scenario No | D3: 1
B6: Copper px | C6: Copper Volumes | D6: Operating Costs | E6: SG&A% | F6: Cap Exp | G6: AR to Sales | H6: Inventories to CGS | I6: A/P to Expense | J6: Tax Rate | K6: interest Rate
A7: Base case | B7: 1 | C7: 1 | D7: 1 | E7: 0.05 | F7: 1 | G7: 0.1 | H7: 0.45 | I7: 0.3 | J7: 0.3 | K7: 0.06
A8: Downside case | B8: 2 | C8: 2 | D8: 2 | E8: 0.06 | F8: 2 | G8: 0.15 | H8: 0.6 | I8: 0.2 | J8: 0.35 | K8: 0.08
A9: High case | B9: 3 | C9: 3 | D9: 3 | E9: 0.03 | F9: 3 | G9: 0.08 | H9: 0.3 | I9: 0.4 | J9: 0.25 | K9: 0.05
A10: Special case | B10: 4 | C10: 5 | D10: 4 | E10: 0.05 | F10: 4 | G10: 0.1 | H10: 0.45 | I10: 0.3 | J10: 0.3 | K10: 0.06
A11: =TRANSPOSE(B6:K6) -> Copper px | B11: =B8 -> 2 | C11: =C$7 -> 1 | D11: 1 | E11: 0.05 | F11: 1 | G11: 0.1 | H11: 0.45 | I11: 0.3 | J11: 0.3 | K11: 0.06
A12: Copper Volumes | B12: =B$7 -> 1 | C12: =C8 -> 2 | D12: 1 | E12: 0.05 | F12: 1 | G12: 0.1 | H12: 0.45 | I12: 0.3 | J12: 0.3 | K12: 0.06
A13: Operating Costs | B13: 1 | C13: 1 | D13: =D8 -> 2 | E13: 0.05 | F13: 1 | G13: 0.1 | H13: 0.45 | I13: 0.3 | J13: 0.3 | K13: 0.06
A14: SG&A% | B14: 1 | C14: 1 | D14: 1 | E14: =E8 -> 0.06 | F14: 1 | G14: 0.1 | H14: 0.45 | I14: 0.3 | J14: 0.3 | K14: 0.06
A15: Cap Exp | B15: 1 | C15: 1 | D15: 1 | E15: 0.05 | F15: =F8 -> 2 | G15: 0.1 | H15: 0.45 | I15: 0.3 | J15: 0.3 | K15: 0.06
A16: AR to Sales | B16: 1 | C16: 1 | D16: 1 | E16: 0.05 | F16: 1 | G16: =G8 -> 0.15 | H16: 0.45 | I16: 0.3 | J16: 0.3 | K16: 0.06
A17: Inventories to CGS | B17: 1 | C17: 1 | D17: 1 | E17: 0.05 | F17: 1 | G17: 0.1 | H17: =H8 -> 0.6 | I17: 0.3 | J17: 0.3 | K17: 0.06
A18: A/P to Expense | B18: 1 | C18: 1 | D18: 1 | E18: 0.05 | F18: 1 | G18: 0.1 | H18: 0.45 | I18: =I8 -> 0.2 | J18: 0.3 | K18: 0.06
A19: Tax Rate | B19: 1 | C19: 1 | D19: 1 | E19: 0.05 | F19: 1 | G19: 0.1 | H19: 0.45 | I19: 0.3 | J19: =J8 -> 0.35 | K19: 0.06
A20: interest Rate | B20: 1 | C20: 1 | D20: 1 | E20: 0.05 | F20: 1 | G20: 0.1 | H20: 0.45 | I20: 0.3 | J20: 0.3 | K20: =K8 -> 0.08
B22: =INDEX(B7:B21,$D$3) -> 1 | C22: 1 | D22: 1 | E22: 0.05 | F22: 1 | G22: 0.1 | H22: 0.45 | I22: 0.3 | J22: 0.3 | K22: 0.06

Sheet Working Model
B1: Year | E1: 2010 | F1: 2011 | G1: 2012 | H1: 2013 | I1: 2014 | J1: 2015 | K1: =J1+1 -> 2016 | L1: =K1+1 -> 2017 | M1: 2018 | N1: 2019 | O1: 2020 | P1: 2021 | Q1: =P1+1 -> 2022
B2: Historic Switch | E2: =E1<=$E$6 -> TRUE | F2: =F1<=$E$6 -> TRUE | G2: TRUE | H2: FALSE | I2: FALSE | J2: FALSE | K2: FALSE | L2: FALSE | M2: FALSE | N2: FALSE | O2: FALSE | P2: FALSE | Q2: FALSE
B3: Explicit Period | E3: =AND(E1>$E$6,E1<=$E$8) -> FALSE | F3: =AND(F1>$E$6,F1<=$E$8) -> FALSE | G3: FALSE | H3: TRUE | I3: TRUE | J3: TRUE | K3: TRUE | L3: TRUE | M3: FALSE | N3: FALSE | O3: FALSE | P3: FALSE | Q3: FALSE
B4: Terminal Period | E4: =E1=$E$8 -> FALSE | F4: =F1=$E$8 -> FALSE | G4: FALSE | H4: FALSE | I4: FALSE | J4: FALSE | K4: FALSE | L4: TRUE | M4: FALSE | N4: FALSE | O4: FALSE | P4: FALSE | Q4: FALSE
B6: Last Historic Year | E6: 2012
B7: Match column of last historic year | E7: =MATCH(E6,1:1) -> 7
B8: Terminal Year | E8: 2017
A10: Historic Financials
B11: Profit & Loss Statement
C12: Total Revenue | E12: 18982000 | F12: 20880000 | G12: 18010000
C13: Cost of Revenue | E13: 9371000 | F13: 10920000 | G13: 11561000
C14: Gross Profit | E14: =E12-E13 -> 9611000 | F14: =F12-F13 -> 9960000 | G14: =G12-G13 -> 6449000
D15: Other Expenses | E15: 143000 | F15: 271000 | G15: 285000
D16: Selling General and Administrative | E16: 381000 | F16: 415000 | G16: 431000
D17: Non Recurring | E17: 19000 | F17: 134000 | G17: =-22000-59000 -> -81000
C18: EBIT | E18: =E14-E15-E16-E17 -> 9068000 | F18: =F14-F15-F16-F17 -> 9140000 | G18: =G14-G15-G16-G17 -> 5814000
D19: Interest Income | E19: -94000 | F19: -10000 | G19: -82000
D20: Interest Expense | E20: 462000 | F20: 312000 | G20: 186000
C21: Earnings Before Tax | E21: =E18-E19-E20 -> 8700000 | F21: =F18-F19-F20 -> 8838000 | G21: 5710000
D22: Income Tax Expense | E22: 2983000 | F22: 3087000 | G22: 1510000
D23: Minority Interest | E23: -1208000 | F23: -1187000 | G23: -939000
C24: Net Income to Common Shares | E24: =E21-E22+E23 -> 4509000 | F24: =F21-F22+F23 -> 4564000 | G24: =G21-G22+G23 -> 3261000
C25: Preferred Stock And Other Adjustments | E25: -63000 | F25: 0 | G25: 0
C26: Net Income Applicable To Common Shares | E26: =E24+E25 -> 4446000 | F26: =F24+F25 -> 4564000 | G26: 3261000
C28: Depreciation | E28: =E63 -> 1036000 | F28: =F63 -> 1022000 | G28: =G63 -> 1179000
C29: EBITDA | E29: =E18+E28 -> 10104000 | F29: =F18+F28 -> 10162000 | G29: =G18+G28 -> 6993000
B31: Balance Sheet
C32: Assets
C33: Current Assets
D34: Cash And Cash Equivalents | E34: 3738000 | F34: 4822000 | G34: 3705000
D35: Net Receivables | E35: 2425000 | F35: 1142000 | G35: 1629000
D36: Inventory | E36: 3434000 | F36: 3869000 | G36: 4576000
D37: Other Current Assets | E37: 254000 | F37: 214000 | G37: 387000
C38: Total Current Assets | E38: 9851000 | F38: 10047000 | G38: 10297000
C39: Non-Associated Investments | E39: 200000 | F39: 675000 | G39: 769000
C40: Property Plant and Equipment | E40: 18210000 | F40: 20135000 | G40: 22954000
C41: Intangible Assets | E41: 328000 | F41: 0 | G41: 0
C42: Other Assets | E42: 797000 | F42: 1213000 | G42: 1420000
C43: Total Assets | E43: 29386000 | F43: 32070000 | G43: 35440000
C44: Liabilities
C45: Current Liabilities
D46: Accounts Payable | E46: 3329000 | F46: 2700000 | G46: 3100000
D47: Short/Current Long Term Debt | E47: 7095000 | F47: 7004000 | G47: 7002000 | I47: =E47+7000000 -> 14095000 | J47: =F47+7000000 -> 14004000 | K47: =G47+7000000 -> 14002000
D48: Other Current Liabilities | E48: 339000 | F48: 236000 | G48: 241000
C49: Total Current Liabilities | E49: =SUM(E46:E48) -> 10763000 | F49: =SUM(F46:F48) -> 9940000 | G49: =SUM(G46:G48) -> 10343000
C50: Long Term Debt | E50: 4660000 | F50: 3533000 | G50: 3525000
C51: Reclamation Liabilities | E51: 3530000 | F51: 3789000 | G51: 3771000
C52: Deferred Taxes | E52: 2873000 | F52: 3255000 | G52: 3490000
C53: Minority Interest | E53: 2056000 | F53: 2911000 | G53: 3768000
C54: Total Liabilities | E54: =SUM(E49:E53) -> 23882000 | F54: =SUM(F49:F53) -> 23428000 | G54: =SUM(G49:G53) -> 24897000
C55: Stockholders' Equity
C56: Total Stockholder Equity | E56: 5504000 | F56: 8642000 | G56: 10543000 | I56: =E56-7000000 -> -1496000 | J56: =F56-7000000 -> 1642000 | K56: =G56-7000000 -> 3543000
D57: Total Liabilities + Equities | E57: =E56+E54 -> 29386000 | F57: =F56+F54 -> 32070000 | G57: =G56+G54 -> 35440000
D58: Test | E58: =E57=E43 -> TRUE
C60: Shares Outstanding | E60: 949.53 | F60: 949.53 | G60: 949.53
B62: Cashflow Items
C63: Depreciation | E63: 1036000 | F63: 1022000 | G63: 1179000
C64: Capital Expenditures | E64: -1412000 | F64: -2534000 | G64: -3494000
C65: Dividends Paid | E65: -1796000 | F65: -1814000 | G65: -1242000
A67: Analysis of Historic Financials
B68: Financial Statement Analysis
C69: Revenue Growth | F69: =F12/E12-1 -> 0.0999894637 | G69: =G12/F12-1 -> -0.1374521073
C70: Revenues | E70: =E12 -> 18982000 | F70: =F12 -> 20880000 | G70: =G12 -> 18010000
C71: Volume | E71: =E12/E72 -> 2519.250867 | F71: =F12/F72 -> 2365.151397 | G71: =G12/G72 -> 2254.901513
C72: Avg Price | E72: =TRANSPOSE('Copper Prices'!B55:B57) -> 7534.779583 | F72: 8828.1875 | G72: 7987.045064
C74: Cash Cost of Goods Sold | E74: =E13-E28 -> 8335000 | F74: =F13-F28 -> 9898000 | G74: =G13-G28 -> 10382000
C75: COGS as % of Sales | E75: =E74/E12 -> 0.4391002002 | F75: =F74/F12 -> 0.4740421456 | G75: =G74/G12 -> 0.5764575236
C77: Total SG&A | E77: =E15+E16 -> 524000 | F77: =F15+F16 -> 686000 | G77: =G15+G16 -> 716000
C78: SG&A as a % of sales | E78: =E77/E12 -> 0.02760509957 | F78: =F77/F12 -> 0.03285440613 | G78: =G77/G12 -> 0.03975569128
C79: SG&A Growth | F79: =F77/E77-1 -> 0.3091603053 | G79: =G77/F77-1 -> 0.04373177843
C81: Depreciation Expense | E81: =E28 -> 1036000 | F81: =F28 -> 1022000 | G81: =G28 -> 1179000
C82: Depreciation Rate | E82: =E28/E40 -> 0.05689181768 | F82: =F28/F40 -> 0.05075738763 | G82: =G28/G40 -> 0.05136359676
C84: Tax Expense | E84: =E22 -> 2983000 | F84: =F22 -> 3087000 | G84: =G22 -> 1510000
C85: EBT | E85: =E21 -> 8700000 | F85: =F21 -> 8838000 | G85: =G21 -> 5710000
C86: Average Tax Rate | E86: =E84/E85 -> 0.3428735632 | F86: =F84/F85 -> 0.349287169 | G86: =G84/G85 -> 0.2644483363
B88: Financial Income and Cost
C90: Interest Expense | E90: =E20 -> 462000 | F90: =F20 -> 312000 | G90: =G20 -> 186000
C91: Total Debt | E91: =E47+E50 -> 11755000 | F91: =F47+F50 -> 10537000 | G91: =G47+G50 -> 10527000
C92: Average Debt | E92: =AVERAGE(D91:E91) -> 11755000 | F92: =AVERAGE(E91:F91) -> 11146000 | G92: =AVERAGE(F91:G91) -> 10532000
C93: Average Interest Rate | E93: =E90/E92 -> 0.0393024245 | F93: =F90/F92 -> 0.02799210479 | G93: =G90/G92 -> 0.01766046335
C95: Interest Inome | E95: =-E19 -> 94000 | F95: =-F19 -> 10000 | G95: =-G19 -> 82000
C96: Cash Balance | E96: =E34 -> 3738000 | F96: =F34 -> 4822000 | G96: =G34 -> 3705000
C97: Average Cash Balance | E97: =AVERAGE(D96:E96) -> 3738000 | F97: =AVERAGE(E96:F96) -> 4280000 | G97: =AVERAGE(F96:G96) -> 4263500
C98: Average Interest Income Rate | E98: =E95/E97 -> 0.02514713751 | F98: =F95/F97 -> 0.002336448598 | G98: =G95/G97 -> 0.01923302451
C100: Dividends Paid | E100: =-E65 -> 1796000 | F100: =-F65 -> 1814000 | G100: =-G65 -> 1242000
C101: Net Income to Common | E101: =E26 -> 4446000 | F101: =F26 -> 4564000 | G101: =G26 -> 3261000
C102: Dividend Payout Ratio | E102: =E100/E101 -> 0.4039586145 | F102: =F100/F101 -> 0.3974583699 | G102: =G100/G101 -> 0.3808647654
C104: Minority Income | E104: =-E23 -> 1208000 | F104: =-F23 -> 1187000 | G104: =-G23 -> 939000
C105: Total Income | E105: =E24-E23 -> 5717000 | F105: =F24-F23 -> 5751000 | G105: =G24-G23 -> 4200000
C106: Minority Income Percent | E106: =E104/E105 -> 0.2112996327 | F106: =F104/F105 -> 0.2063988872 | G106: =G104/G105 -> 0.2235714286
C108: Cash to Revenues | E108: =E97/E70 -> 0.1969234011 | F108: =F97/F70 -> 0.2049808429 | G108: =G97/G70 -> 0.2367295947
B110: Working Capital
C111: Accounts receivables % of Sales | E111: =E35/E12 -> 0.1277526077 | F111: =F35/F12 -> 0.05469348659 | G111: =G35/G12 -> 0.09044975014
C112: Inventory as % of COGS | E112: =E36/E74 -> 0.4119976005 | F112: =F36/F74 -> 0.3908870479 | G112: =G36/G74 -> 0.4407628588
C113: Total Cash Expenses | E113: =E74+E15+E16 -> 8859000 | F113: =F74+F15+F16 -> 10584000 | G113: =G74+G15+G16 -> 11098000
C114: Accounts Payable as % of Total Expenses | E114: =E46/E113 -> 0.375776047 | F114: =F46/F113 -> 0.2551020408 | G114: =G46/G113 -> 0.2793296089
C116: Capex Analysis
D117: Capital Expenditures | E117: =-E64 -> 1412000 | F117: =-F64 -> 2534000 | G117: =-G64 -> 3494000
D118: Ratio of capexp to Depreciation | E118: =E117/E28 -> 1.362934363 | F118: =F117/F28 -> 2.479452055 | G118: =G117/G28 -> 2.963528414
D119: Ratio of capexp to Sales | E119: =E117/E70 -> 0.07438626067 | F119: =F117/F70 -> 0.1213601533 | G119: =G117/G70 -> 0.1940033315
D120: Ratio of capexp to Volumes | E120: =E117/E71 -> 560.4840782 | F120: =F117/F71 -> 1071.390188 | G120: =G117/G71 -> 1549.513351
B122: Financial Ratios
C123: Return on Common Equity
D124: Net Income after Minority | E124: =E26 -> 4446000 | F124: =F26 -> 4564000 | G124: =G26 -> 3261000
D125: Common Equity | E125: =E56 -> 5504000 | F125: =F56 -> 8642000 | G125: =G56 -> 10543000
D126: ROE | E126: =E124/AVERAGE(D125:E125) -> 0.8077761628 | F126: =F124/AVERAGE(E125:F125) -> 0.6452707479 | G126: =G124/AVERAGE(F125:G125) -> 0.3399530884
C128: Return on Total Equity
D129: Net Income Before Minority Interest | E129: =E24-E23 -> 5717000 | F129: =F24-F23 -> 5751000 | G129: =G24-G23 -> 4200000
D130: Total Equity | E130: =E56+E53 -> 7560000 | F130: =F56+F53 -> 11553000 | G130: =G56+G53 -> 14311000
D131: Return on Total Equity | E131: =E129/AVERAGE(D130:E130) -> 0.7562169312 | F131: =F129/AVERAGE(E130:F130) -> 0.601789358 | G131: =G129/AVERAGE(F130:G130) -> 0.3247757501
C133: ROIC
D134: EBIT | E134: =E18 -> 9068000 | F134: =F18 -> 9140000 | G134: 5814000
D135: Tax Rate | E135: =E86 -> 0.3428735632 | F135: =F86 -> 0.349287169 | G135: =G86 -> 0.2644483363
D136: NOPLAT | E136: =E134*(1-E135) -> 5958822.529 | F136: =F134*(1-F135) -> 5947515.275 | G136: 4276497.373
C138: Invested Capital
D139: Liabilities Side
D140: Equity | E140: =E56 -> 5504000 | F140: =F56 -> 8642000 | G140: =G56 -> 10543000
D141: Debt | E141: =E91 -> 11755000 | F141: =F91 -> 10537000 | G141: =G91 -> 10527000
D142: Minority Interest | E142: =E53 -> 2056000 | F142: =F53 -> 2911000 | G142: =G53 -> 3768000
D143: Less cash | E143: =-E34 -> -3738000 | F143: =-F34 -> -4822000 | G143: =-G34 -> -3705000
D144: Less Non-Associated Investment | E144: =-E39 -> -200000 | F144: =-F39 -> -675000 | G144: =-G39 -> -769000
D145: Add: Reclamation Liabilities | E145: =E51 -> 3530000 | F145: =F51 -> 3789000 | G145: =G51 -> 3771000
D146: Total Invested Capital | E146: =SUM(E140:E145) -> 18907000 | F146: =SUM(F140:F145) -> 20382000 | G146: =SUM(G140:G145) -> 24135000
D148: Current Assets Less Cash | E148: =E38-E34 -> 6113000 | F148: =F38-F34 -> 5225000 | G148: =G38-G34 -> 6592000
D149: Less Current Liabilities except STD | E149: =(E49-E47)*-1 -> -3668000 | F149: =(F49-F47)*-1 -> -2936000 | G149: =(G49-G47)*-1 -> -3341000
D150: Plant Assets | E150: =E40 -> 18210000 | F150: 20135000 | G150: 22954000
D151: Intangible Assets | E151: 328000 | F151: 0 | G151: 0
D152: Other Assets Generating EBITDA | E152: 797000 | F152: 1213000 | G152: 1420000
D153: Less: Deferred Taxes | E153: =-E52 -> -2873000 | F153: =-F52 -> -3255000 | G153: =-G52 -> -3490000
D154: Total Invested Capital | E154: =SUM(E148:E153) -> 18907000 | F154: =SUM(F148:F153) -> 20382000 | G154: =SUM(G148:G153) -> 24135000
D156: Difference | E156: =E154-E146 -> 0 | F156: =F154-F146 -> 0 | G156: =G154-G146 -> 0
D157: Test | E157: =E156=0 -> TRUE | F157: =F156=0 -> TRUE | G157: =G156=0 -> TRUE
D159: Average Invested Capital | E159: =AVERAGE(D154:E154) -> 18907000 | F159: =AVERAGE(E154:F154) -> 19644500 | G159: =AVERAGE(F154:G154) -> 22258500
D160: ROIC | E160: =E136/E159 -> 0.3151648875 | F160: =F136/F159 -> 0.3027572743 | G160: 0.1921287316
C162: EBITDA Margin | E162: =E29/E12 -> 0.532293752 | F162: =F29/F12 -> 0.4866858238 | G162: =G29/G12 -> 0.3882842865
B164: Credit Ratios
C165: Debt to Capital | E165: =E141/(E140+E141+E142) -> 0.6085943567 | F165: =F141/(F140+F141+F142) -> 0.4770031689 | G165: =G141/(G140+G141+G142) -> 0.423826395
C166: Debt to EBITDA | E166: =E50/E29 -> 0.4612034838 | F166: =F50/F29 -> 0.3476677819 | G166: =G50/G29 -> 0.5040755041
C167: Interest Coverage | E167: =E18/E20 -> 19.62770563 | F167: =F18/F20 -> 29.29487179 | G167: =G18/G20 -> 31.25806452
A169: Assumptions
B170: Revenues
C171: Volumes Sold
D172: History | E172: =E71 -> 2519.250867 | F172: =F71 -> 2365.151397 | G172: =G71 -> 2254.901513 | H172: =H71 -> 0 | I172: 0 | J172: 0 | K172: 0 | L172: 0 | M172: 0 | N172: 0 | O172: 0 | P172: 0 | Q172: 0
D174: Base Case | H174: 2400 | I174: =H174*1.01 -> 2424 | J174: =I174*1.01 -> 2448.24 | K174: 2472.7224 | L174: 2497.449624 | M174: 2522.42412 | N174: 2547.648361 | O174: 2573.124845 | P174: 2598.856094 | Q174: 2624.844654
D175: Decline Case | H175: 2500 | I175: =H175*0.94 -> 2350 | J175: =I175*0.94 -> 2209 | K175: 2076.46 | L175: 1951.8724 | M175: 1834.760056 | N175: 1724.674453 | O175: 1621.193985 | P175: 1523.922346 | Q175: 1432.487006
D176: Upside Case | H176: 2300 | I176: =H176*1.03 -> 2369 | J176: =I176*1.03 -> 2440.07 | K176: 2513.2721 | L176: 2588.670263 | M176: 2666.330371 | N176: 2746.320282 | O176: 2828.70989 | P176: 2913.571187 | Q176: 3000.978323
D177: Flat Case | H177: =$G$172 -> 2254.901513 | I177: =$G$172 -> 2254.901513 | J177: 2254.901513 | K177: 2254.901513 | L177: 2254.901513 | M177: 2254.901513 | N177: 2254.901513 | O177: 2254.901513 | P177: 2254.901513 | Q177: 2254.901513
D178: Sensitivity Case | H178: 1600 | I178: =H178 -> 1600 | J178: =I178 -> 1600 | K178: 1600 | L178: 1600 | M178: 1600 | N178: 1600 | O178: 1600 | P178: 1600 | Q178: 1600
D180: Scenario Used | E180: ='Master Scenario'!C22 -> 1
D182: =C171 -> Volumes Sold | E182: =IF(E2,E172,INDEX(E174:E178,$E$180)) -> 2519.250867 | F182: 2365.151397 | G182: 2254.901513 | H182: 2400 | I182: 2424 | J182: 2448.24 | K182: 2472.7224 | L182: 2497.449624 | M182: 2522.42412 | N182: 2547.648361 | O182: 2573.124845 | P182: 2598.856094 | Q182: 2624.844654
C184: Copper Prices
D185: History | E185: =E72 -> 7534.779583 | F185: =F72 -> 8828.1875 | G185: 7987.045064 | H185: 0 | I185: 0 | J185: 0 | K185: 0 | L185: 0 | M185: 0 | N185: 0 | O185: 0 | P185: 0 | Q185: 0
D187: Base Case | H187: =G185 -> 7987.045064 | I187: =H187*0.95 -> 7587.692811 | J187: =I187*0.95 -> 7208.30817 | K187: 6847.892762 | L187: 6505.498124 | M187: 6180.223217 | N187: 5871.212057 | O187: 5577.651454 | P187: 5298.768881 | Q187: 5033.830437
D188: Low Case | H188: 7000 | I188: 6000 | J188: 5500 | K188: 5000 | L188: 5000 | M188: 5000 | N188: 5000 | O188: 5000 | P188: 5000 | Q188: 5000
D189: High Case | H189: 8000 | I189: 8500 | J189: 8700 | K189: 7000 | L189: 7000 | M189: 7000 | N189: 7000 | O189: 7000 | P189: 7000 | Q189: 7000
D190: Sensitivity Case | H190: 5000 | I190: =H190 -> 5000 | J190: =I190 -> 5000 | K190: 5000 | L190: 5000 | M190: 5000 | N190: 5000 | O190: 5000 | P190: 5000 | Q190: 5000
D192: Scenario Used | E192: ='Master Scenario'!B22 -> 1
D194: =C184 -> Copper Prices | E194: =IF(E2,E185,INDEX(E187:E190,$E$192)) -> 7534.779583 | F194: 8828.1875 | G194: 7987.045064 | H194: 7987.045064 | I194: 7587.692811 | J194: 7208.30817 | K194: 6847.892762 | L194: 6505.498124 | M194: 6180.223217 | N194: 5871.212057 | O194: 5577.651454 | P194: 5298.768881 | Q194: 5033.830437
B197: Operating Costs
C198: COGS as a % of revenue
D199: History | E199: =E75 -> 0.4391002002 | F199: =F75 -> 0.4740421456 | G199: 0.5764575236 | H199: 0 | I199: 0 | J199: 0 | K199: 0 | L199: 0 | M199: 0 | N199: 0 | O199: 0 | P199: 0 | Q199: 0
D201: COGS base Case | H201: 0.52 | I201: 0.5 | J201: 0.48 | K201: =J201 -> 0.48 | L201: =K201 -> 0.48 | M201: 0.48 | N201: 0.48 | O201: 0.48 | P201: 0.48 | Q201: 0.48
D202: COGS pessimistic case | H202: 0.57 | I202: =H202 -> 0.57 | J202: =I202 -> 0.57 | K202: 0.57 | L202: 0.57 | M202: 0.57 | N202: 0.57 | O202: 0.57 | P202: 0.57 | Q202: 0.57
D203: COGS high case | H203: 0.5 | I203: 0.45 | J203: 0.43 | K203: 0.43 | L203: 0.43 | M203: 0.43 | N203: 0.43 | O203: 0.43 | P203: 0.43 | Q203: 0.43
D204: COGS sensitivity case | G204: 50 | H204: =G204/100 -> 0.5 | I204: =H204 -> 0.5 | J204: =I204 -> 0.5 | K204: 0.5 | L204: 0.5 | M204: 0.5 | N204: 0.5 | O204: 0.5 | P204: 0.5 | Q204: 0.5
D206: Scenario Used | E206: ='Master Scenario'!D22 -> 1
D208: =C198 -> COGS as a % of revenue | E208: =IF(E2,E199,INDEX(E201:E204,$E$206)) -> 0.4391002002 | F208: 0.4740421456 | G208: 0.5764575236 | H208: 0.52 | I208: 0.5 | J208: 0.48 | K208: 0.48 | L208: 0.48 | M208: 0.48 | N208: 0.48 | O208: 0.48 | P208: 0.48 | Q208: 0.48
C210: SG&A as a % of revenue
D211: Historic Growth | E211: =E79 -> 0 | F211: =F79 -> 0.3091603053 | G211: 0.04373177843 | H211: 0 | I211: 0 | J211: 0 | K211: 0 | L211: 0 | M211: 0 | N211: 0 | O211: 0 | P211: 0 | Q211: 0
D212: Forecast | H212: ='Master Scenario'!E22 -> 0.05 | I212: =H212 -> 0.05 | J212: =I212 -> 0.05 | K212: 0.05 | L212: 0.05 | M212: 0.05 | N212: 0.05 | O212: 0.05 | P212: 0.05 | Q212: 0.05
D213: =C210 -> SG&A as a % of revenue | E213: =IF(E2,E211,E212) -> 0 | F213: 0.3091603053 | G213: 0.04373177843 | H213: 0.05 | I213: 0.05 | J213: 0.05 | K213: 0.05 | L213: 0.05 | M213: 0.05 | N213: 0.05 | O213: 0.05 | P213: 0.05 | Q213: 0.05
B215: Cap Exp per Unit Sold
C216: Historic Level | E216: =E120 -> 560.4840782 | F216: =F120 -> 1071.390188 | G216: 1549.513351 | H216: 0 | I216: 0 | J216: 0 | K216: 0 | L216: 0 | M216: 0 | N216: 0 | O216: 0 | P216: 0 | Q216: 0
C218: Base Case | H218: 1000 | I218: =H218 -> 1000 | J218: 700 | K218: 500 | L218: 500 | M218: 500 | N218: 500 | O218: 500 | P218: 500 | Q218: 500
C219: High Cap Exp Case | H219: 1200 | I219: =H219 -> 1200 | J219: 1000 | K219: 800 | L219: 750 | M219: 750 | N219: 750 | O219: 750 | P219: 750 | Q219: 750
C220: Low Cap Exp Case | H220: 1000 | I220: 800 | J220: 600 | K220: 400 | L220: 400 | M220: 400 | N220: 400 | O220: 400 | P220: 400 | Q220: 400
C221: Sensitivity Case | G221: 2000 | H221: =G221 -> 2000 | I221: =H221 -> 2000 | J221: =I221 -> 2000 | K221: 2000 | L221: 2000 | M221: 2000 | N221: 2000 | O221: 2000 | P221: 2000 | Q221: 2000
C223: Cap Exp Scenario | E223: 1
D225: =B215 -> Cap Exp per Unit Sold | E225: =IF(E2,E216,INDEX(E218:E220,$E$223)) -> 560.4840782 | F225: 1071.390188 | G225: 1549.513351 | H225: 1000 | I225: 1000 | J225: 700 | K225: 500 | L225: 500 | M225: 500 | N225: 500 | O225: 500 | P225: 500 | Q225: 500
B227: Depreciation Rate
D228: Historic | E228: =E82 -> 0.05689181768 | F228: =F82 -> 0.05075738763 | G228: 0.05136359676 | H228: 0 | I228: 0 | J228: 0 | K228: 0 | L228: 0 | M228: 0 | N228: 0 | O228: 0 | P228: 0 | Q228: 0
D229: Forecast | H229: 0.052 | I229: =H229 -> 0.052 | J229: =I229 -> 0.052 | K229: 0.052 | L229: 0.052 | M229: 0.052 | N229: 0.052 | O229: 0.052 | P229: 0.052 | Q229: 0.052
D230: =B227 -> Depreciation Rate | E230: =IF(E2,E228,E229) -> 0.05689181768 | F230: 0.05075738763 | G230: 0.05136359676 | H230: 0.052 | I230: 0.052 | J230: 0.052 | K230: 0.052 | L230: 0.052 | M230: 0.052 | N230: 0.052 | O230: 0.052 | P230: 0.052 | Q230: 0.052
B232: A/R to Sales
D233: Historic | E233: =E111 -> 0.1277526077 | F233: =F111 -> 0.05469348659 | G233: 0.09044975014 | H233: 0 | I233: 0 | J233: 0 | K233: 0 | L233: 0 | M233: 0 | N233: 0 | O233: 0 | P233: 0 | Q233: 0
D234: Projected | H234: ='Master Scenario'!G22 -> 0.1 | I234: =H234 -> 0.1 | J234: =I234 -> 0.1 | K234: 0.1 | L234: 0.1 | M234: 0.1 | N234: 0.1 | O234: 0.1 | P234: 0.1 | Q234: 0.1
D235: =B232 -> A/R to Sales | E235: =IF(E2,E233,E234) -> 0.1277526077 | F235: 0.05469348659 | G235: 0.09044975014 | H235: 0.1 | I235: 0.1 | J235: 0.1 | K235: 0.1 | L235: 0.1 | M235: 0.1 | N235: 0.1 | O235: 0.1 | P235: 0.1 | Q235: 0.1
B237: Inventories to CGS
D238: Historic | E238: =E112 -> 0.4119976005 | F238: =F112 -> 0.3908870479 | G238: 0.4407628588 | H238: 0 | I238: 0 | J238: 0 | K238: 0 | L238: 0 | M238: 0 | N238: 0 | O238: 0 | P238: 0 | Q238: 0
D239: Projected | H239: ='Master Scenario'!H22 -> 0.45 | I239: =H239 -> 0.45 | J239: =I239 -> 0.45 | K239: 0.45 | L239: 0.45 | M239: 0.45 | N239: 0.45 | O239: 0.45 | P239: 0.45 | Q239: 0.45
D240: =B237 -> Inventories to CGS | E240: =IF(E2,E238,E239) -> 0.4119976005 | F240: 0.3908870479 | G240: 0.4407628588 | H240: 0.45 | I240: 0.45 | J240: 0.45 | K240: 0.45 | L240: 0.45 | M240: 0.45 | N240: 0.45 | O240: 0.45 | P240: 0.45 | Q240: 0.45
B242: A/P to Expenses
D243: Historic | E243: =E114 -> 0.375776047 | F243: =F114 -> 0.2551020408 | G243: 0.2793296089 | H243: 0 | I243: 0 | J243: 0 | K243: 0 | L243: 0 | M243: 0 | N243: 0 | O243: 0 | P243: 0 | Q243: 0
D244: Projected | H244: 0.26 | I244: =H244 -> 0.26 | J244: =I244 -> 0.26 | K244: 0.26 | L244: 0.26 | M244: 0.26 | N244: 0.26 | O244: 0.26 | P244: 0.26 | Q244: 0.26
D245: =B242 -> A/P to Expenses | E245: =IF(E2,E243,E244) -> 0.375776047 | F245: 0.2551020408 | G245: 0.2793296089 | H245: 0.26 | I245: 0.26 | J245: 0.26 | K245: 0.26 | L245: 0.26 | M245: 0.26 | N245: 0.26 | O245: 0.26 | P245: 0.26 | Q245: 0.26
B247: Tax Rate
D248: Historic | E248: =E86 -> 0.3428735632 | F248: 0.349287169 | G248: 0.2644483363 | H248: 0 | I248: 0 | J248: 0 | K248: 0 | L248: 0 | M248: 0 | N248: 0 | O248: 0 | P248: 0 | Q248: 0
D249: Projected | H249: ='Master Scenario'!J22 -> 0.3 | I249: =H249 -> 0.3 | J249: =I249 -> 0.3 | K249: 0.3 | L249: 0.3 | M249: 0.3 | N249: 0.3 | O249: 0.3 | P249: 0.3 | Q249: 0.3
D250: =B247 -> Tax Rate | E250: =IF(E2,E248,E249) -> 0.3428735632 | F250: 0.349287169 | G250: 0.2644483363 | H250: 0.3 | I250: 0.3 | J250: 0.3 | K250: 0.3 | L250: 0.3 | M250: 0.3 | N250: 0.3 | O250: 0.3 | P250: 0.3 | Q250: 0.3
A252: Financing Assumptions
... 309 more rows

Sheet Credit Analysis Summary
B4: Business Profile | D4: 7
B6: Debt to EBITDA | D6: AA | E6: A | F6: BBB | G6: BB
D7: 1.5x | E7: 2.5x | F7: 4x | G7: 6x
B9: Model | D9: 3.5x

Sheet Copper Prices
B2: Copper | J2: Copper
B3: ($/mt) | J3: ($/mt)
B4: COPPER | H4: Year | I4: month end | J4: COPPER
A5: 1960 | B5: 678.7558333 | D5: 1960M01 | E5: =LEFT(D5,4) -> 1960 | F5: =VALUE(RIGHT(D5,2)) -> 1 | G5: =EOMONTH(DATE(E5,F5,1),0) -> 1960-01-31 | H5: =YEAR(G5) -> 1960 | I5: =EOMONTH(G5,0) -> 1960-01-31 | J5: 715.4
A6: 1961 | B6: 633.0841667 | D6: 1960M02 | E6: =LEFT(D6,4) -> 1960 | F6: =VALUE(RIGHT(D6,2)) -> 2 | G6: =EOMONTH(DATE(E6,F6,1),0) -> 1960-02-29 | H6: =YEAR(G6) -> 1960 | I6: =EOMONTH(G6,0) -> 1960-02-29 | J6: 728.19
A7: 1962 | B7: 645.1433333 | D7: 1960M03 | E7: 1960 | F7: 3 | G7: 1960-03-31 | H7: 1960 | I7: 1960-03-31 | J7: 684.94
A8: 1963 | B8: 645.9508333 | D8: 1960M04 | E8: 1960 | F8: 4 | G8: 1960-04-30 | H8: 1960 | I8: 1960-04-30 | J8: 723.11
A9: 1964 | B9: 969.7533333 | D9: 1960M05 | E9: 1960 | F9: 5 | G9: 1960-05-31 | H9: 1960 | I9: 1960-05-31 | J9: 684.75
A10: 1965 | B10: 1292.844167 | D10: 1960M06 | E10: 1960 | F10: 6 | G10: 1960-06-30 | H10: 1960 | I10: 1960-06-30 | J10: 691.59
A11: 1966 | B11: 1531.513333 | D11: 1960M07 | E11: 1960 | F11: 7 | G11: 1960-07-31 | H11: 1960 | I11: 1960-07-31 | J11: 702.39
A12: 1967 | B12: 1134.7725 | D12: 1960M08 | E12: 1960 | F12: 8 | G12: 1960-08-31 | H12: 1960 | I12: 1960-08-31 | J12: 675.94
A13: 1968 | B13: 1241.9525 | D13: 1960M09 | E13: 1960 | F13: 9 | G13: 1960-09-30 | H13: 1960 | I13: 1960-09-30 | J13: 647.06
A14: 1969 | B14: 1467.34 | D14: 1960M10 | E14: 1960 | F14: 10 | G14: 1960-10-31 | H14: 1960 | I14: 1960-10-31 | J14: 612.66
A15: 1970 | B15: 1415.7 | D15: 1960M11 | E15: 1960 | F15: 11 | G15: 1960-11-30 | H15: 1960 | I15: 1960-11-30 | J15: 642.13
A16: 1971 | B16: 1081.416667 | D16: 1960M12 | E16: 1960 | F16: 12 | G16: 1960-12-31 | H16: 1960 | I16: 1960-12-31 | J16: 636.91
A17: 1972 | B17: 1057.675 | D17: 1961M01 | E17: 1961 | F17: 1 | G17: 1961-01-31 | H17: 1961 | I17: 1961-01-31 | J17: 606.71
A18: 1973 | B18: 1785.358333 | D18: 1961M02 | E18: 1961 | F18: 2 | G18: 1961-02-28 | H18: 1961 | I18: 1961-02-28 | J18: 616.63
A19: 1974 | B19: 2058.5 | D19: 1961M03 | E19: 1961 | F19: 3 | G19: 1961-03-31 | H19: 1961 | I19: 1961-03-31 | J19: 621.26
A20: 1975 | B20: 1234.75 | D20: 1961M04 | E20: 1961 | F20: 4 | G20: 1961-04-30 | H20: 1961 | I20: 1961-04-30 | J20: 631.84
A21: 1976 | B21: 1400.75 | D21: 1961M05 | E21: 1961 | F21: 5 | G21: 1961-05-31 | H21: 1961 | I21: 1961-05-31 | J21: 668.44
A22: 1977 | B22: 1308.75 | D22: 1961M06 | E22: 1961 | F22: 6 | G22: 1961-06-30 | H22: 1961 | I22: 1961-06-30 | J22: 652.12
A23: 1978 | B23: 1364.833333 | D23: 1961M07 | E23: 1961 | F23: 7 | G23: 1961-07-31 | H23: 1961 | I23: 1961-07-31 | J23: 633.39
A24: 1979 | B24: 1985.258333 | D24: 1961M08 | E24: 1961 | F24: 8 | G24: 1961-08-31 | H24: 1961 | I24: 1961-08-31 | J24: 636.47
A25: 1980 | B25: 2182.091667 | D25: 1961M09 | E25: 1961 | F25: 9 | G25: 1961-09-30 | H25: 1961 | I25: 1961-09-30 | J25: 632.72
A26: 1981 | B26: 1741.95 | D26: 1961M10 | E26: 1961 | F26: 10 | G26: 1961-10-31 | H26: 1961 | I26: 1961-10-31 | J26: 630.3
A27: 1982 | B27: 1480.441667 | D27: 1961M11 | E27: 1961 | F27: 11 | G27: 1961-11-30 | H27: 1961 | I27: 1961-11-30 | J27: 632.28
A28: 1983 | B28: 1591.925 | D28: 1961M12 | E28: 1961 | F28: 12 | G28: 1961-12-31 | H28: 1961 | I28: 1961-12-31 | J28: 634.85
A29: 1984 | B29: 1377.316667 | D29: 1962M01 | E29: 1962 | F29: 1 | G29: 1962-01-31 | H29: 1962 | I29: 1962-01-31 | J29: 635.37
A30: 1985 | B30: 1417.383333 | D30: 1962M02 | E30: 1962 | F30: 2 | G30: 1962-02-28 | H30: 1962 | I30: 1962-02-28 | J30: 647.94
A31: 1986 | B31: 1373.781667 | D31: 1962M03 | E31: 1962 | F31: 3 | G31: 1962-03-31 | H31: 1962 | I31: 1962-03-31 | J31: 647.5
A32: 1987 | B32: 1782.503333 | D32: 1962M04 | E32: 1962 | F32: 4 | G32: 1962-04-30 | H32: 1962 | I32: 1962-04-30 | J32: 645.95
A33: 1988 | B33: 2601.671667 | D33: 1962M05 | E33: 1962 | F33: 5 | G33: 1962-05-31 | H33: 1962 | I33: 1962-05-31 | J33: 645.73
A34: 1989 | B34: 2848.41 | D34: 1962M06 | E34: 1962 | F34: 6 | G34: 1962-06-30 | H34: 1962 | I34: 1962-06-30 | J34: 645.51
A35: 1990 | B35: 2661.4825 | D35: 1962M07 | E35: 1962 | F35: 7 | G35: 1962-07-31 | H35: 1962 | I35: 1962-07-31 | J35: 645.51
A36: 1991 | B36: 2338.7825 | D36: 1962M08 | E36: 1962 | F36: 8 | G36: 1962-08-31 | H36: 1962 | I36: 1962-08-31 | J36: 645.51
A37: 1992 | B37: 2281.1575 | D37: 1962M09 | E37: 1962 | F37: 9 | G37: 1962-09-30 | H37: 1962 | I37: 1962-09-30 | J37: 645.51
A38: 1993 | B38: 1913.076667 | D38: 1962M10 | E38: 1962 | F38: 10 | G38: 1962-10-31 | H38: 1962 | I38: 1962-10-31 | J38: 645.95
A39: 1994 | B39: 2307.4175 | D39: 1962M11 | E39: 1962 | F39: 11 | G39: 1962-11-30 | H39: 1962 | I39: 1962-11-30 | J39: 645.51
A40: 1995 | B40: 2935.605833 | D40: 1962M12 | E40: 1962 | F40: 12 | G40: 1962-12-31 | H40: 1962 | I40: 1962-12-31 | J40: 645.73
A41: 1996 | B41: 2294.856667 | D41: 1963M01 | E41: 1963 | F41: 1 | G41: 1963-01-31 | H41: 1963 | I41: 1963-01-31 | J41: 645.51
A42: 1997 | B42: 2276.766667 | D42: 1963M02 | E42: 1963 | F42: 2 | G42: 1963-02-28 | H42: 1963 | I42: 1963-02-28 | J42: 645.51
A43: 1998 | B43: 1654.058333 | D43: 1963M03 | E43: 1963 | F43: 3 | G43: 1963-03-31 | H43: 1963 | I43: 1963-03-31 | J43: 645.51
A44: 1999 | B44: 1572.860833 | D44: 1963M04 | E44: 1963 | F44: 4 | G44: 1963-04-30 | H44: 1963 | I44: 1963-04-30 | J44: 645.73
A45: 2000 | B45: 1813.469167 | D45: 1963M05 | E45: 1963 | F45: 5 | G45: 1963-05-31 | H45: 1963 | I45: 1963-05-31 | J45: 645.51
A46: 2001 | B46: 1578.288333 | D46: 1963M06 | E46: 1963 | F46: 6 | G46: 1963-06-30 | H46: 1963 | I46: 1963-06-30 | J46: 645.73
A47: 2002 | B47: 1559.4775 | D47: 1963M07 | E47: 1963 | F47: 7 | G47: 1963-07-31 | H47: 1963 | I47: 1963-07-31 | J47: 645.51
A48: 2003 | B48: 1779.144833 | D48: 1963M08 | E48: 1963 | F48: 8 | G48: 1963-08-31 | H48: 1963 | I48: 1963-08-31 | J48: 645.51
A49: 2004 | B49: 2865.884917 | D49: 1963M09 | E49: 1963 | F49: 9 | G49: 1963-09-30 | H49: 1963 | I49: 1963-09-30 | J49: 645.51
A50: 2005 | B50: 3678.876417 | D50: 1963M10 | E50: 1963 | F50: 10 | G50: 1963-10-31 | H50: 1963 | I50: 1963-10-31 | J50: 645.51
A51: 2006 | B51: 6722.1345 | D51: 1963M11 | E51: 1963 | F51: 11 | G51: 1963-11-30 | H51: 1963 | I51: 1963-11-30 | J51: 645.73
A52: 2007 | B52: 7118.226 | D52: 1963M12 | E52: 1963 | F52: 12 | G52: 1963-12-31 | H52: 1963 | I52: 1963-12-31 | J52: 650.14
A53: 2008 | B53: 6955.879833 | D53: 1964M01 | E53: 1964 | F53: 1 | G53: 1964-01-31 | H53: 1964 | I53: 1964-01-31 | J53: 655.65
A54: 2009 | B54: 5149.738583 | D54: 1964M02 | E54: 1964 | F54: 2 | G54: 1964-02-29 | H54: 1964 | I54: 1964-02-29 | J54: 693.79
A55: 2010 | B55: 7534.779583 | D55: 1964M03 | E55: 1964 | F55: 3 | G55: 1964-03-31 | H55: 1964 | I55: 1964-03-31 | J55: 745.16
A56: 2011 | B56: 8828.1875 | D56: 1964M04 | E56: 1964 | F56: 4 | G56: 1964-04-30 | H56: 1964 | I56: 1964-04-30 | J56: 861.56
A57: 2012 | B57: =J643 -> 7987.045064 | D57: 1964M05 | E57: 1964 | F57: 5 | G57: 1964-05-31 | H57: 1964 | I57: 1964-05-31 | J57: 828.28
D58: 1964M06 | E58: 1964 | F58: 6 | G58: 1964-06-30 | H58: 1964 | I58: 1964-06-30 | J58: 808.43
D59: 1964M07 | E59: 1964 | F59: 7 | G59: 1964-07-31 | H59: 1964 | I59: 1964-07-31 | J59: 854.95
D60: 1964M08 | E60: 1964 | F60: 8 | G60: 1964-08-31 | H60: 1964 | I60: 1964-08-31 | J60: 999.33
D61: 1964M09 | E61: 1964 | F61: 9 | G61: 1964-09-30 | H61: 1964 | I61: 1964-09-30 | J61: 1162.05
D62: 1964M10 | E62: 1964 | F62: 10 | G62: 1964-10-31 | H62: 1964 | I62: 1964-10-31 | J62: 1358.27
D63: 1964M11 | E63: 1964 | F63: 11 | G63: 1964-11-30 | H63: 1964 | I63: 1964-11-30 | J63: 1400.37
D64: 1964M12 | E64: 1964 | F64: 12 | G64: 1964-12-31 | H64: 1964 | I64: 1964-12-31 | J64: 1269.2
D65: 1965M01 | E65: 1965 | F65: 1 | G65: 1965-01-31 | H65: 1965 | I65: 1965-01-31 | J65: 1000.68
D66: 1965M02 | E66: 1965 | F66: 2 | G66: 1965-02-28 | H66: 1965 | I66: 1965-02-28 | J66: 1179.91
D67: 1965M03 | E67: 1965 | F67: 3 | G67: 1965-03-31 | H67: 1965 | I67: 1965-03-31 | J67: 1237.23
D68: 1965M04 | E68: 1965 | F68: 4 | G68: 1965-04-30 | H68: 1965 | I68: 1965-04-30 | J68: 1348.34
D69: 1965M05 | E69: 1965 | F69: 5 | G69: 1965-05-31 | H69: 1965 | I69: 1965-05-31 | J69: 1378.55
D70: 1965M06 | E70: =LEFT(D70,4) -> 1965 | F70: =VALUE(RIGHT(D70,2)) -> 6 | G70: =EOMONTH(DATE(E70,F70,1),0) -> 1965-06-30 | H70: =YEAR(G70) -> 1965 | I70: =EOMONTH(G70,0) -> 1965-06-30 | J70: 1308.88
D71: 1965M07 | E71: 1965 | F71: 7 | G71: 1965-07-31 | H71: 1965 | I71: 1965-07-31 | J71: 1134.06
D72: 1965M08 | E72: 1965 | F72: 8 | G72: 1965-08-31 | H72: 1965 | I72: 1965-08-31 | J72: 1209.9
D73: 1965M09 | E73: 1965 | F73: 9 | G73: 1965-09-30 | H73: 1965 | I73: 1965-09-30 | J73: 1327.84
D74: 1965M10 | E74: 1965 | F74: 10 | G74: 1965-10-31 | H74: 1965 | I74: 1965-10-31 | J74: 1401.92
D75: 1965M11 | E75: 1965 | F75: 11 | G75: 1965-11-30 | H75: 1965 | I75: 1965-11-30 | J75: 1469.16
D76: 1965M12 | E76: 1965 | F76: 12 | G76: 1965-12-31 | H76: 1965 | I76: 1965-12-31 | J76: 1517.66
D77: 1966M01 | E77: 1966 | F77: 1 | G77: 1966-01-31 | H77: 1966 | I77: 1966-01-31 | J77: 1679.04
D78: 1966M02 | E78: 1966 | F78: 2 | G78: 1966-02-28 | H78: 1966 | I78: 1966-02-28 | J78: 1874.37
D79: 1966M03 | E79: 1966 | F79: 3 | G79: 1966-03-31 | H79: 1966 | I79: 1966-03-31 | J79: 1874.81
D80: 1966M04 | E80: 1966 | F80: 4 | G80: 1966-04-30 | H80: 1966 | I80: 1966-04-30 | J80: 1907.44
D81: 1966M05 | E81: 1966 | F81: 5 | G81: 1966-05-31 | H81: 1966 | I81: 1966-05-31 | J81: 1663.61
D82: 1966M06 | E82: 1966 | F82: 6 | G82: 1966-06-30 | H82: 1966 | I82: 1966-06-30 | J82: 1695.79
D83: 1966M07 | E83: 1966 | F83: 7 | G83: 1966-07-31 | H83: 1966 | I83: 1966-07-31 | J83: 1567.93
D84: 1966M08 | E84: 1966 | F84: 8 | G84: 1966-08-31 | H84: 1966 | I84: 1966-08-31 | J84: 1195.34
D85: 1966M09 | E85: 1966 | F85: 9 | G85: 1966-09-30 | H85: 1966 | I85: 1966-09-30 | J85: 1128.32
D86: 1966M10 | E86: 1966 | F86: 10 | G86: 1966-10-31 | H86: 1966 | I86: 1966-10-31 | J86: 1275.37
D87: 1966M11 | E87: 1966 | F87: 11 | G87: 1966-11-30 | H87: 1966 | I87: 1966-11-30 | J87: 1301.61
D88: 1966M12 | E88: 1966 | F88: 12 | G88: 1966-12-31 | H88: 1966 | I88: 1966-12-31 | J88: 1214.53
D89: 1967M01 | E89: 1967 | F89: 1 | G89: 1967-01-31 | H89: 1967 | I89: 1967-01-31 | J89: 1243.85
D90: 1967M02 | E90: 1967 | F90: 2 | G90: 1967-02-28 | H90: 1967 | I90: 1967-02-28 | J90: 1220.48
D91: 1967M03 | E91: 1967 | F91: 3 | G91: 1967-03-31 | H91: 1967 | I91: 1967-03-31 | J91: 1098.34
D92: 1967M04 | E92: 1967 | F92: 4 | G92: 1967-04-30 | H92: 1967 | I92: 1967-04-30 | J92: 994.72
D93: 1967M05 | E93: 1967 | F93: 5 | G93: 1967-05-31 | H93: 1967 | I93: 1967-05-31 | J93: 1036.17
D94: 1967M06 | E94: 1967 | F94: 6 | G94: 1967-06-30 | H94: 1967 | I94: 1967-06-30 | J94: 1015.22
D95: 1967M07 | E95: 1967 | F95: 7 | G95: 1967-07-31 | H95: 1967 | I95: 1967-07-31 | J95: 997.37
D96: 1967M08 | E96: 1967 | F96: 8 | G96: 1967-08-31 | H96: 1967 | I96: 1967-08-31 | J96: 1044.55
D97: 1967M09 | E97: 1967 | F97: 9 | G97: 1967-09-30 | H97: 1967 | I97: 1967-09-30 | J97: 1060.2
D98: 1967M10 | E98: 1967 | F98: 10 | G98: 1967-10-31 | H98: 1967 | I98: 1967-10-31 | J98: 1138.47
D99: 1967M11 | E99: 1967 | F99: 11 | G99: 1967-11-30 | H99: 1967 | I99: 1967-11-30 | J99: 1443.81
D100: 1967M12 | E100: 1967 | F100: 12 | G100: 1967-12-31 | H100: 1967 | I100: 1967-12-31 | J100: 1324.09
D101: 1968M01 | E101: 1968 | F101: 1 | G101: 1968-01-31 | H101: 1968 | I101: 1968-01-31 | J101: 1408.75
D102: 1968M02 | E102: 1968 | F102: 2 | G102: 1968-02-29 | H102: 1968 | I102: 1968-02-29 | J102: 1719.82
D103: 1968M03 | E103: 1968 | F103: 3 | G103: 1968-03-31 | H103: 1968 | I103: 1968-03-31 | J103: 1701.08
D104: 1968M04 | E104: 1968 | F104: 4 | G104: 1968-04-30 | H104: 1968 | I104: 1968-04-30 | J104: 1255.09
D105: 1968M05 | E105: 1968 | F105: 5 | G105: 1968-05-31 | H105: 1968 | I105: 1968-05-31 | J105: 1096.58
D106: 1968M06 | E106: 1968 | F106: 6 | G106: 1968-06-30 | H106: 1968 | I106: 1968-06-30 | J106: 1136.7
D107: 1968M07 | E107: 1968 | F107: 7 | G107: 1968-07-31 | H107: 1968 | I107: 1968-07-31 | J107: 1054.25
D108: 1968M08 | E108: 1968 | F108: 8 | G108: 1968-08-31 | H108: 1968 | I108: 1968-08-31 | J108: 1056.45
D109: 1968M09 | E109: 1968 | F109: 9 | G109: 1968-09-30 | H109: 1968 | I109: 1968-09-30 | J109: 1110.03
D110: 1968M10 | E110: 1968 | F110: 10 | G110: 1968-10-31 | H110: 1968 | I110: 1968-10-31 | J110: 1079.82
D111: 1968M11 | E111: 1968 | F111: 11 | G111: 1968-11-30 | H111: 1968 | I111: 1968-11-30 | J111: 1099.88
D112: 1968M12 | E112: 1968 | F112: 12 | G112: 1968-12-31 | H112: 1968 | I112: 1968-12-31 | J112: 1184.98
D113: 1969M01 | E113: 1969 | F113: 1 | G113: 1969-01-31 | H113: 1969 | I113: 1969-01-31 | J113: 1255.53
D114: 1969M02 | E114: 1969 | F114: 2 | G114: 1969-02-28 | H114: 1969 | I114: 1969-02-28 | J114: 1285.29
D115: 1969M03 | E115: 1969 | F115: 3 | G115: 1969-03-31 | H115: 1969 | I115: 1969-03-31 | J115: 1278.46
D116: 1969M04 | E116: 1969 | F116: 4 | G116: 1969-04-30 | H116: 1969 | I116: 1969-04-30 | J116: 1388.03
D117: 1969M05 | E117: 1969 | F117: 5 | G117: 1969-05-31 | H117: 1969 | I117: 1969-05-31 | J117: 1392.44
D118: 1969M06 | E118: 1969 | F118: 6 | G118: 1969-06-30 | H118: 1969 | I118: 1969-06-30 | J118: 1483.04
D119: 1969M07 | E119: 1969 | F119: 7 | G119: 1969-07-31 | H119: 1969 | I119: 1969-07-31 | J119: 1453.95
D120: 1969M08 | E120: 1969 | F120: 8 | G120: 1969-08-31 | H120: 1969 | I120: 1969-08-31 | J120: 1606.73
D121: 1969M09 | E121: 1969 | F121: 9 | G121: 1969-09-30 | H121: 1969 | I121: 1969-09-30 | J121: 1578.95
D122: 1969M10 | E122: 1969 | F122: 10 | G122: 1969-10-31 | H122: 1969 | I122: 1969-10-31 | J122: 1554.48
D123: 1969M11 | E123: 1969 | F123: 11 | G123: 1969-11-30 | H123: 1969 | I123: 1969-11-30 | J123: 1631.42
D124: 1969M12 | E124: 1969 | F124: 12 | G124: 1969-12-31 | H124: 1969 | I124: 1969-12-31 | J124: 1699.76
D125: 1970M01 | E125: 1970 | F125: 1 | G125: 1970-01-31 | H125: 1970 | I125: 1970-01-31 | J125: 1626.3
D126: 1970M02 | E126: 1970 | F126: 2 | G126: 1970-02-28 | H126: 1970 | I126: 1970-02-28 | J126: 1657.2
D127: 1970M03 | E127: 1970 | F127: 3 | G127: 1970-03-31 | H127: 1970 | I127: 1970-03-31 | J127: 1754
D128: 1970M04 | E128: 1970 | F128: 4 | G128: 1970-04-30 | H128: 1970 | I128: 1970-04-30 | J128: 1741.6
D129: 1970M05 | E129: 1970 | F129: 5 | G129: 1970-05-31 | H129: 1970 | I129: 1970-05-31 | J129: 1597.9
D130: 1970M06 | E130: 1970 | F130: 6 | G130: 1970-06-30 | H130: 1970 | I130: 1970-06-30 | J130: 1458
D131: 1970M07 | E131: 1970 | F131: 7 | G131: 1970-07-31 | H131: 1970 | I131: 1970-07-31 | J131: 1366.6
D132: 1970M08 | E132: 1970 | F132: 8 | G132: 1970-08-31 | H132: 1970 | I132: 1970-08-31 | J132: 1266.5
D133: 1970M09 | E133: 1970 | F133: 9 | G133: 1970-09-30 | H133: 1970 | I133: 1970-09-30 | J133: 1246.9
D134: 1970M10 | E134: =LEFT(D134,4) -> 1970 | F134: =VALUE(RIGHT(D134,2)) -> 10 | G134: =EOMONTH(DATE(E134,F134,1),0) -> 1970-10-31 | H134: =YEAR(G134) -> 1970 | I134: =EOMONTH(G134,0) -> 1970-10-31 | J134: 1142.4
D135: 1970M11 | E135: 1970 | F135: 11 | G135: 1970-11-30 | H135: 1970 | I135: 1970-11-30 | J135: 1085.3
D136: 1970M12 | E136: 1970 | F136: 12 | G136: 1970-12-31 | H136: 1970 | I136: 1970-12-31 | J136: 1045.7
D137: 1971M01 | E137: 1971 | F137: 1 | G137: 1971-01-31 | H137: 1971 | I137: 1971-01-31 | J137: 1010
D138: 1971M02 | E138: 1971 | F138: 2 | G138: 1971-02-28 | H138: 1971 | I138: 1971-02-28 | J138: 1020.2
D139: 1971M03 | E139: 1971 | F139: 3 | G139: 1971-03-31 | H139: 1971 | I139: 1971-03-31 | J139: 1144.1
D140: 1971M04 | E140: 1971 | F140: 4 | G140: 1971-04-30 | H140: 1971 | I140: 1971-04-30 | J140: 1251.5
D141: 1971M05 | E141: 1971 | F141: 5 | G141: 1971-05-31 | H141: 1971 | I141: 1971-05-31 | J141: 1114.4
D142: 1971M06 | E142: 1971 | F142: 6 | G142: 1971-06-30 | H142: 1971 | I142: 1971-06-30 | J142: 1074.2
D143: 1971M07 | E143: 1971 | F143: 7 | G143: 1971-07-31 | H143: 1971 | I143: 1971-07-31 | J143: 1115.3
D144: 1971M08 | E144: 1971 | F144: 8 | G144: 1971-08-31 | H144: 1971 | I144: 1971-08-31 | J144: 1097.9
D145: 1971M09 | E145: 1971 | F145: 9 | G145: 1971-09-30 | H145: 1971 | I145: 1971-09-30 | J145: 1056.4
D146: 1971M10 | E146: 1971 | F146: 10 | G146: 1971-10-31 | H146: 1971 | I146: 1971-10-31 | J146: 1041.2
D147: 1971M11 | E147: 1971 | F147: 11 | G147: 1971-11-30 | H147: 1971 | I147: 1971-11-30 | J147: 1013.9
D148: 1971M12 | E148: 1971 | F148: 12 | G148: 1971-12-31 | H148: 1971 | I148: 1971-12-31 | J148: 1037.9
D149: 1972M01 | E149: 1972 | F149: 1 | G149: 1972-01-31 | H149: 1972 | I149: 1972-01-31 | J149: 1078
D150: 1972M02 | E150: 1972 | F150: 2 | G150: 1972-02-29 | H150: 1972 | I150: 1972-02-29 | J150: 1112.4
D151: 1972M03 | E151: 1972 | F151: 3 | G151: 1972-03-31 | H151: 1972 | I151: 1972-03-31 | J151: 1108.2
D152: 1972M04 | E152: 1972 | F152: 4 | G152: 1972-04-30 | H152: 1972 | I152: 1972-04-30 | J152: 1133
D153: 1972M05 | E153: 1972 | F153: 5 | G153: 1972-05-31 | H153: 1972 | I153: 1972-05-31 | J153: 1106.4
D154: 1972M06 | E154: 1972 | F154: 6 | G154: 1972-06-30 | H154: 1972 | I154: 1972-06-30 | J154: 1063.2
D155: 1972M07 | E155: 1972 | F155: 7 | G155: 1972-07-31 | H155: 1972 | I155: 1972-07-31 | J155: 1034.6
D156: 1972M08 | E156: 1972 | F156: 8 | G156: 1972-08-31 | H156: 1972 | I156: 1972-08-31 | J156: 1046.7
D157: 1972M09 | E157: 1972 | F157: 9 | G157: 1972-09-30 | H157: 1972 | I157: 1972-09-30 | J157: 1060.6
D158: 1972M10 | E158: 1972 | F158: 10 | G158: 1972-10-31 | H158: 1972 | I158: 1972-10-31 | J158: 917.5
D159: 1972M11 | E159: 1972 | F159: 11 | G159: 1972-11-30 | H159: 1972 | I159: 1972-11-30 | J159: 1007.1
D160: 1972M12 | E160: 1972 | F160: 12 | G160: 1972-12-31 | H160: 1972 | I160: 1972-12-31 | J160: 1024.4
D161: 1973M01 | E161: 1973 | F161: 1 | G161: 1973-01-31 | H161: 1973 | I161: 1973-01-31 | J161: 1119
D162: 1973M02 | E162: 1973 | F162: 2 | G162: 1973-02-28 | H162: 1973 | I162: 1973-02-28 | J162: 1243.6
D163: 1973M03 | E163: 1973 | F163: 3 | G163: 1973-03-31 | H163: 1973 | I163: 1973-03-31 | J163: 1509.5
D164: 1973M04 | E164: 1973 | F164: 4 | G164: 1973-04-30 | H164: 1973 | I164: 1973-04-30 | J164: 1588.4
D165: 1973M05 | E165: 1973 | F165: 5 | G165: 1973-05-31 | H165: 1973 | I165: 1973-05-31 | J165: 1552.2
D166: 1973M06 | E166: 1973 | F166: 6 | G166: 1973-06-30 | H166: 1973 | I166: 1973-06-30 | J166: 1748.7
D167: 1973M07 | E167: 1973 | F167: 7 | G167: 1973-07-31 | H167: 1973 | I167: 1973-07-31 | J167: 2021.2
D168: 1973M08 | E168: 1973 | F168: 8 | G168: 1973-08-31 | H168: 1973 | I168: 1973-08-31 | J168: 2123
D169: 1973M09 | E169: 1973 | F169: 9 | G169: 1973-09-30 | H169: 1973 | I169: 1973-09-30 | J169: 1936.1
D170: 1973M10 | E170: 1973 | F170: 10 | G170: 1973-10-31 | H170: 1973 | I170: 1973-10-31 | J170: 2065.3
D171: 1973M11 | E171: 1973 | F171: 11 | G171: 1973-11-30 | H171: 1973 | I171: 1973-11-30 | J171: 2273
D172: 1973M12 | E172: 1973 | F172: 12 | G172: 1973-12-31 | H172: 1973 | I172: 1973-12-31 | J172: 2244.3
D173: 1974M01 | E173: 1974 | F173: 1 | G173: 1974-01-31 | H173: 1974 | I173: 1974-01-31 | J173: 2032.4
D174: 1974M02 | E174: 1974 | F174: 2 | G174: 1974-02-28 | H174: 1974 | I174: 1974-02-28 | J174: 2291.7
D175: 1974M03 | E175: 1974 | F175: 3 | G175: 1974-03-31 | H175: 1974 | I175: 1974-03-31 | J175: 2743.4
D176: 1974M04 | E176: 1974 | F176: 4 | G176: 1974-04-30 | H176: 1974 | I176: 1974-04-30 | J176: 3031.8
D177: 1974M05 | E177: 1974 | F177: 5 | G177: 1974-05-31 | H177: 1974 | I177: 1974-05-31 | J177: 2875.7
D178: 1974M06 | E178: 1974 | F178: 6 | G178: 1974-06-30 | H178: 1974 | I178: 1974-06-30 | J178: 2440
D179: 1974M07 | E179: 1974 | F179: 7 | G179: 1974-07-31 | H179: 1974 | I179: 1974-07-31 | J179: 1919.1
D180: 1974M08 | E180: 1974 | F180: 8 | G180: 1974-08-31 | H180: 1974 | I180: 1974-08-31 | J180: 1802.9
D181: 1974M09 | E181: 1974 | F181: 9 | G181: 1974-09-30 | H181: 1974 | I181: 1974-09-30 | J181: 1460.5
D182: 1974M10 | E182: 1974 | F182: 10 | G182: 1974-10-31 | H182: 1974 | I182: 1974-10-31 | J182: 1398.8
D183: 1974M11 | E183: 1974 | F183: 11 | G183: 1974-11-30 | H183: 1974 | I183: 1974-11-30 | J183: 1416.7
D184: 1974M12 | E184: 1974 | F184: 12 | G184: 1974-12-31 | H184: 1974 | I184: 1974-12-31 | J184: 1289
D185: 1975M01 | E185: 1975 | F185: 1 | G185: 1975-01-31 | H185: 1975 | I185: 1975-01-31 | J185: 1211.2
D186: 1975M02 | E186: 1975 | F186: 2 | G186: 1975-02-28 | H186: 1975 | I186: 1975-02-28 | J186: 1266.5
D187: 1975M03 | E187: 1975 | F187: 3 | G187: 1975-03-31 | H187: 1975 | I187: 1975-03-31 | J187: 1344.2
D188: 1975M04 | E188: 1975 | F188: 4 | G188: 1975-04-30 | H188: 1975 | I188: 1975-04-30 | J188: 1329.2
D189: 1975M05 | E189: 1975 | F189: 5 | G189: 1975-05-31 | H189: 1975 | I189: 1975-05-31 | J189: 1253.8
D190: 1975M06 | E190: 1975 | F190: 6 | G190: 1975-06-30 | H190: 1975 | I190: 1975-06-30 | J190: 1193
D191: 1975M07 | E191: 1975 | F191: 7 | G191: 1975-07-31 | H191: 1975 | I191: 1975-07-31 | J191: 1222.4
D192: 1975M08 | E192: 1975 | F192: 8 | G192: 1975-08-31 | H192: 1975 | I192: 1975-08-31 | J192: 1277.1
D193: 1975M09 | E193: 1975 | F193: 9 | G193: 1975-09-30 | H193: 1975 | I193: 1975-09-30 | J193: 1210.1
D194: 1975M10 | E194: 1975 | F194: 10 | G194: 1975-10-31 | H194: 1975 | I194: 1975-10-31 | J194: 1178.8
D195: 1975M11 | E195: 1975 | F195: 11 | G195: 1975-11-30 | H195: 1975 | I195: 1975-11-30 | J195: 1179.7
D196: 1975M12 | E196: 1975 | F196: 12 | G196: 1975-12-31 | H196: 1975 | I196: 1975-12-31 | J196: 1151
D197: 1976M01 | E197: 1976 | F197: 1 | G197: 1976-01-31 | H197: 1976 | I197: 1976-01-31 | J197: 1193
D198: 1976M02 | E198: =LEFT(D198,4) -> 1976 | F198: =VALUE(RIGHT(D198,2)) -> 2 | G198: =EOMONTH(DATE(E198,F198,1),0) -> 1976-02-29 | H198: =YEAR(G198) -> 1976 | I198: =EOMONTH(G198,0) -> 1976-02-29 | J198: 1219
D199: 1976M03 | E199: 1976 | F199: 3 | G199: 1976-03-31 | H199: 1976 | I199: 1976-03-31 | J199: 1329
D200: 1976M04 | E200: 1976 | F200: 4 | G200: 1976-04-30 | H200: 1976 | I200: 1976-04-30 | J200: 1510
D201: 1976M05 | E201: 1976 | F201: 5 | G201: 1976-05-31 | H201: 1976 | I201: 1976-05-31 | J201: 1512
... 438 more rows

Sheet Stock Prices
A1: S&P 500 | F1: BHP | I1: FCX | AH1: =SLOPE(AH157:AH214,AJ157:AJ214) -> 1.981716226 | AI1: 5yrs
T2: beta | U2: beta vs copper | AH2: =SLOPE(AH8:AH214,AI8:AI214) -> 0.9604062714
T3: =SLOPE(S8:S24,U8:U24) -> 0.02816453514 | U3: =SLOPE(S8:S24,T8:T24) -> 0.7344361184 | AH3: =SLOPE(AH8:AH214,AJ8:AJ214) -> 1.404093172
A4: Date | B4: Month end | C4: Year | D4: Adj Close | F4: Date | G4: Adj Close | I4: Date | J4: Year | K4: MONTH END | L4: Adj Close
A5: 1987-01-05 | B5: =EOMONTH(A5,0) -> 1987-01-31 | C5: =YEAR(A5) -> 1987 | D5: 258.73 | F5: 1987-05-29 | G5: 2.12 | I5: 1995-07-10 | J5: =YEAR(I5) -> 1995 | K5: =EOMONTH(I5,0) -> 1995-07-31 | L5: 8.91 | S5: % change | Y5: Index rebased
A6: 1987-01-12 | B6: =EOMONTH(A6,0) -> 1987-01-31 | C6: =YEAR(A6) -> 1987 | D6: 266.28 | F6: 1987-06-01 | G6: 2.2 | I6: 1995-07-17 | J6: =YEAR(I6) -> 1995 | K6: =EOMONTH(I6,0) -> 1995-07-31 | L6: 8.26 | O6: FCX | P6: Copper px | Q6: S&P index | S6: FCX | T6: Copper px | U6: S&P index | X6: FCX | Y6: Copper px | Z6: S&P index | AC6: FCX | AD6: copper | AE6: S&P index | AH6: FCX | AI6: copper | AJ6: S&P index | AM6: FCX | AN6: copper | AO6: S&P index
A7: 1987-01-19 | B7: 1987-01-31 | C7: 1987 | D7: 270.1 | F7: 1987-06-08 | G7: 2.27 | I7: 1995-07-24 | J7: 1995 | K7: 1995-07-31 | L7: 9.38 | N7: 1995 | O7: =AVERAGEIF(J:J,N7,L:L) -> 8.79 | P7: =AVERAGEIF('Copper Prices'!H:H,'Stock Prices'!N7,'Copper Prices'!J:J) -> 2935.605833 | Q7: =AVERAGEIF(C:C,N7,D:D) -> 542.7815385 | W7: 1995 | X7: 1 | Y7: 1 | Z7: 1 | AB7: =K5 -> 1995-07-31 | AC7: =AVERAGEIF(K:K,AB7,L:L) -> 8.81 | AD7: =AVERAGEIF('Copper Prices'!I:I,'Stock Prices'!AB7,'Copper Prices'!J:J) -> 3075.67 | AE7: =AVERAGEIF(B:B,AB7,D:D) -> 558.35 | AL7: 1995-07-31 | AM7: 1 | AN7: 1 | AO7: 1
A8: 1987-01-26 | B8: 1987-01-31 | C8: 1987 | D8: 274.08 | F8: 1987-06-15 | G8: 2.29 | I8: 1995-07-31 | J8: 1995 | K8: 1995-07-31 | L8: 8.69 | N8: 1996 | O8: 10.92603774 | P8: =AVERAGEIF('Copper Prices'!H:H,'Stock Prices'!N8,'Copper Prices'!J:J) -> 2294.856667 | Q8: =AVERAGEIF(C:C,N8,D:D) -> 672.7343396 | S8: =LN(O8/O7) -> 0.217534012 | T8: =LN(P8/P7) -> -0.2462434618 | U8: 0.2146435955 | W8: 1996 | X8: =X7*(1+S8) -> 1.217534012 | Y8: =Y7*(1+T8) -> 0.7537565382 | Z8: =Z7*(1+U8) -> 1.214643595 | AB8: =EOMONTH(AB7,1) -> 1995-08-31 | AC8: =AVERAGEIF(K:K,AB8,L:L) -> 8.275 | AD8: =AVERAGEIF('Copper Prices'!I:I,'Stock Prices'!AB8,'Copper Prices'!J:J) -> 3036.84 | AE8: =AVERAGEIF(B:B,AB8,D:D) -> 559.565 | AH8: =LN(AC8/AC7) -> -0.06264851868 | AI8: =LN(AD8/AD7) -> -0.0127052626 | AJ8: 0.002173690269 | AL8: 1995-08-31 | AM8: =AM7*(1+AH8) -> 0.9373514813 | AN8: =AN7*(1+AI8) -> 0.9872947374 | AO8: 1.00217369
A9: 1987-02-02 | B9: 1987-02-28 | C9: 1987 | D9: 280.04 | F9: 1987-06-22 | G9: 2.22 | I9: 1995-08-07 | J9: 1995 | K9: 1995-08-31 | L9: 8.57 | N9: 1997 | O9: 9.901153846 | P9: =AVERAGEIF('Copper Prices'!H:H,'Stock Prices'!N9,'Copper Prices'!J:J) -> 2276.766667 | Q9: 875.1840385 | S9: =LN(O9/O8) -> -0.09849742327 | T9: =LN(P9/P8) -> -0.007914079135 | U9: =LN(Q9/Q8) -> 0.2630836827 | W9: 1997 | X9: =X8*(1+S9) -> 1.097610049 | Y9: =Y8*(1+T9) -> 0.7477912493 | Z9: =Z8*(1+U9) -> 1.534196506 | AB9: =EOMONTH(AB8,1) -> 1995-09-30 | AC9: 8.4175 | AD9: =AVERAGEIF('Copper Prices'!I:I,'Stock Prices'!AB9,'Copper Prices'!J:J) -> 2915.52 | AE9: 580.5425 | AH9: =LN(AC9/AC8) -> 0.01707395079 | AI9: =LN(AD9/AD8) -> -0.04076930956 | AJ9: =LN(AE9/AE8) -> 0.03680331505 | AL9: 1995-09-30 | AM9: =AM8*(1+AH9) -> 0.9533557744 | AN9: =AN8*(1+AI9) -> 0.9470434126 | AO9: =AO8*(1+AJ9) -> 1.039057004
A10: 1987-02-09 | B10: 1987-02-28 | C10: 1987 | D10: 279.7 | F10: 1987-06-29 | G10: 2.22 | I10: 1995-08-14 | J10: 1995 | K10: 1995-08-31 | L10: 8.39 | N10: 1998 | O10: 5.391346154 | P10: =AVERAGEIF('Copper Prices'!H:H,'Stock Prices'!N10,'Copper Prices'!J:J) -> 1654.058333 | Q10: 1088.484615 | S10: -0.6078561965 | T10: -0.3195244438 | U10: 0.2181075529 | W10: 1998 | X10: 0.4304209794 | Y10: 0.5088536663 | Z10: 1.868816351 | AB10: 1995-10-31 | AC10: 8.448 | AD10: =AVERAGEIF('Copper Prices'!I:I,'Stock Prices'!AB10,'Copper Prices'!J:J) -> 2813.55 | AE10: 584.944 | AH10: 0.003616854911 | AI10: -0.03560116035 | AJ10: 0.007553104948 | AL10: 1995-10-31 | AM10: 0.9568039239 | AN10: 0.9133275682 | AO10: 1.046905111
A11: 1987-02-17 | B11: 1987-02-28 | C11: 1987 | D11: 285.48 | F11: 1987-07-06 | G11: 2.26 | I11: 1995-08-21 | J11: 1995 | K11: 1995-08-31 | L11: 8.09 | N11: 1999 | O11: 5.4576 | P11: =AVERAGEIF('Copper Prices'!H:H,'Stock Prices'!N11,'Copper Prices'!J:J) -> 1572.860833 | Q11: 1331.502692 | S11: 0.01221402869 | T11: -0.05033571599 | U11: 0.2015216805 | W11: 1999 | X11: 0.4356781536 | Y11: 0.4832401526 | Z11: 2.245423363 | AB11: 1995-11-30 | AC11: 8.9675 | AD11: =AVERAGEIF('Copper Prices'!I:I,'Stock Prices'!AB11,'Copper Prices'!J:J) -> 2977.36 | AE11: 599.935 | AH11: 0.05967720346 | AI11: 0.05658997064 | AJ11: 0.02530519986 | AL11: 1995-11-30 | AM11: 1.013903306 | AN11: 0.9650127485 | AO11: 1.073397254
A12: 1987-02-23 | B12: 1987-02-28 | C12: 1987 | D12: 284.2 | F12: 1987-07-13 | G12: 2.33 | I12: 1995-08-28 | J12: 1995 | K12: 1995-08-31 | L12: 8.05 | N12: 2000 | O12: 3.991923077 | P12: =AVERAGEIF('Copper Prices'!H:H,'Stock Prices'!N12,'Copper Prices'!J:J) -> 1813.469167 | Q12: 1424.241538 | S12: -0.3127360437 | T12: 0.1423455295 | U12: 0.06733127003 | W12: 2000 | X12: 0.2994258915 | Y12: 0.552027228 | Z12: 2.39661057 | AB12: 1995-12-31 | AC12: 9.9075 | AD12: =AVERAGEIF('Copper Prices'!I:I,'Stock Prices'!AB12,'Copper Prices'!J:J) -> 2926.26 | AE12: 615.425 | AH12: 0.09968511566 | AI12: -0.01731184467 | AJ12: 0.02549177003 | AL12: 1995-12-31 | AM12: 1.114974375 | AN12: 0.9483065977 | AO12: 1.10076005
A13: 1987-03-02 | B13: 1987-03-31 | C13: 1987 | D13: 290.66 | F13: 1987-07-20 | G13: 2.36 | I13: 1995-09-05 | J13: 1995 | K13: 1995-09-30 | L13: 7.97 | N13: 2001 | O13: 4.6225 | P13: =AVERAGEIF('Copper Prices'!H:H,'Stock Prices'!N13,'Copper Prices'!J:J) -> 1578.288333 | Q13: 1193.489423 | S13: 0.1466625953 | T13: -0.138900751 | U13: -0.1767581137 | W13: 2001 | X13: 0.3433404699 | Y13: 0.4753502315 | Z13: 1.972990206 | AB13: 1996-01-31 | AC13: 10.044 | AD13: =AVERAGEIF('Copper Prices'!I:I,'Stock Prices'!AB13,'Copper Prices'!J:J) -> 2616.41 | AE13: 617.562 | AH13: 0.01368339521 | AI13: -0.111922008 | AJ13: 0.003466382273 | AL13: 1996-01-31 | AM13: 1.13023101 | AN13: 0.8421702191 | AO13: 1.104575705
A14: 1987-03-09 | B14: 1987-03-31 | C14: 1987 | D14: 289.89 | F14: 1987-07-27 | G14: 2.34 | I14: 1995-09-11 | J14: 1995 | K14: 1995-09-30 | L14: 8.48 | N14: 2002 | O14: 5.847692308 | P14: =AVERAGEIF('Copper Prices'!H:H,'Stock Prices'!N14,'Copper Prices'!J:J) -> 1559.4775 | Q14: 990.5782692 | S14: 0.2351114218 | T14: -0.01199009722 | U14: -0.1863477007 | W14: 2002 | X14: 0.4240637359 | Y14: 0.469650736 | Z14: 1.605328018 | AB14: 1996-02-29 | AC14: 11.0875 | AD14: =AVERAGEIF('Copper Prices'!I:I,'Stock Prices'!AB14,'Copper Prices'!J:J) -> 2537.71 | AE14: 651.95 | AH14: 0.09884290634 | AI14: -0.03054104958 | AJ14: 0.05418840355 | AL14: 1996-02-29 | AM14: 1.241946328 | AN14: 0.8164494566 | AO14: 1.164430899
A15: 1987-03-16 | B15: 1987-03-31 | C15: 1987 | D15: 298.17 | F15: 1987-08-03 | G15: 2.3 | I15: 1995-09-18 | J15: 1995 | K15: 1995-09-30 | L15: 8.44 | N15: 2003 | O15: 10.07923077 | P15: =AVERAGEIF('Copper Prices'!H:H,'Stock Prices'!N15,'Copper Prices'!J:J) -> 1779.144833 | Q15: 967.7936538 | S15: 0.5444298411 | T15: 0.1317819889 | U15: -0.0232699859 | W15: 2003 | X15: 0.6549366883 | Y15: 0.5315422441 | Z15: 1.567972057 | AB15: 1996-03-31 | AC15: 10.7675 | AD15: =AVERAGEIF('Copper Prices'!I:I,'Stock Prices'!AB15,'Copper Prices'!J:J) -> 2561.02 | AE15: 642.7625 | AH15: -0.02928600969 | AI15: 0.009143517072 | AJ15: -0.01419257823 | AL15: 1996-03-31 | AM15: 1.205574675 | AN15: 0.8239146762 | AO15: 1.147904622
A16: 1987-03-23 | B16: 1987-03-31 | C16: 1987 | D16: 296.13 | F16: 1987-08-10 | G16: 2.29 | I16: 1995-09-25 | J16: 1995 | K16: 1995-09-30 | L16: 8.78 | N16: 2004 | O16: 13.94538462 | P16: =AVERAGEIF('Copper Prices'!H:H,'Stock Prices'!N16,'Copper Prices'!J:J) -> 2865.884917 | Q16: 1131.405577 | S16: 0.3246716544 | T16: 0.4767443558 | U16: 0.1561971151 | W16: 2004 | X16: 0.8675760664 | Y16: 0.7849520088 | Z16: 1.812884769 | AB16: 1996-04-30 | AC16: 11.462 | AD16: =AVERAGEIF('Copper Prices'!I:I,'Stock Prices'!AB16,'Copper Prices'!J:J) -> 2595.78 | AE16: 646.546 | AH16: 0.06250487818 | AI16: 0.01348143285 | AJ16: 0.005869054397 | AL16: 1996-04-30 | AM16: 1.280928974 | AN16: 0.8350222266 | AO16: 1.154641737
A17: 1987-03-30 | B17: 1987-03-31 | C17: 1987 | D17: 300.41 | F17: 1987-08-17 | G17: 2.28 | I17: 1995-10-02 | J17: 1995 | K17: 1995-10-31 | L17: 8.57 | N17: 2005 | O17: 16.6975 | P17: =AVERAGEIF('Copper Prices'!H:H,'Stock Prices'!N17,'Copper Prices'!J:J) -> 3678.876417 | Q17: 1207.732885 | S17: 0.180110406 | T17: 0.2497302101 | U17: 0.06528421992 | W17: 2005 | X17: 1.023835544 | Y17: 0.9809782388 | Z17: 1.931237537 | AB17: 1996-05-31 | AC17: 12.0425 | AD17: =AVERAGEIF('Copper Prices'!I:I,'Stock Prices'!AB17,'Copper Prices'!J:J) -> 2658.26 | AE17: 667.1575 | AH17: 0.04940484339 | AI17: 0.02378472393 | AJ17: 0.03138180194 | AL17: 1996-05-31 | AM17: 1.344213069 | AN17: 0.8548829997 | AO17: 1.190876475
A18: 1987-04-06 | B18: 1987-04-30 | C18: 1987 | D18: 292.49 | F18: 1987-08-24 | G18: 2.26 | I18: 1995-10-09 | J18: 1995 | K18: 1995-10-31 | L18: 8.86 | N18: 2006 | O18: 23.95115385 | P18: =AVERAGEIF('Copper Prices'!H:H,'Stock Prices'!N18,'Copper Prices'!J:J) -> 6722.1345 | Q18: 1311.395577 | S18: 0.3607574924 | T18: 0.602798354 | U18: 0.082346943 | W18: 2006 | X18: 1.393191887 | Y18: 1.572310307 | Z18: 2.090269045 | AB18: 1996-06-30 | AC18: 10.985 | AD18: =AVERAGEIF('Copper Prices'!I:I,'Stock Prices'!AB18,'Copper Prices'!J:J) -> 2173.4 | AE18: 669.1575 | AH18: -0.09191135369 | AI18: -0.2013790118 | AJ18: 0.002993308454 | AL18: 1996-06-30 | AM18: 1.220664626 | AN18: 0.6827275061 | AO18: 1.194441136
A19: 1987-04-13 | B19: 1987-04-30 | C19: 1987 | D19: 286.91 | F19: 1987-08-31 | G19: 2.33 | I19: 1995-10-16 | J19: 1995 | K19: 1995-10-31 | L19: 8.56 | N19: 2007 | O19: 36.44245283 | P19: =AVERAGEIF('Copper Prices'!H:H,'Stock Prices'!N19,'Copper Prices'!J:J) -> 7118.226 | Q19: 1475.976415 | S19: 0.4197178816 | T19: 0.05725279905 | U19: 0.1182278511 | W19: 2007 | X19: 1.977939435 | Y19: 1.662329473 | Z19: 2.337397062 | AB19: 1996-07-31 | AC19: 10.684 | AD19: =AVERAGEIF('Copper Prices'!I:I,'Stock Prices'!AB19,'Copper Prices'!J:J) -> 1985.57 | AE19: 648.15 | AH19: -0.02778341059 | AI19: -0.09038673508 | AJ19: -0.03189730738 | AL19: 1996-07-31 | AM19: 1.1867504 | AN19: 0.6210179958 | AO19: 1.15634168
A20: 1987-04-20 | B20: 1987-04-30 | C20: 1987 | D20: 281.52 | F20: 1987-09-08 | G20: 2.37 | I20: 1995-10-23 | J20: 1995 | K20: 1995-10-31 | L20: 8.21 | N20: 2008 | O20: 35.42307692 | P20: =AVERAGEIF('Copper Prices'!H:H,'Stock Prices'!N20,'Copper Prices'!J:J) -> 6955.879833 | Q20: 1211.58 | S20: -0.02837088337 | T20: -0.02307121599 | U20: -0.1973944542 | W20: 2008 | X20: 1.921823546 | Y20: 1.62397751 | Z20: 1.876007845 | AB20: 1996-08-31 | AC20: 10.33 | AD20: =AVERAGEIF('Copper Prices'!I:I,'Stock Prices'!AB20,'Copper Prices'!J:J) -> 2008.57 | AE20: 661.5825 | AH20: -0.03369501212 | AI20: 0.01151699952 | AJ20: 0.02051254129 | AL20: 1996-08-31 | AM20: 1.146762831 | AN20: 0.6281702598 | AO20: 1.180061186
A21: 1987-04-27 | B21: 1987-04-30 | C21: 1987 | D21: 288.03 | F21: 1987-09-14 | G21: 2.58 | I21: 1995-10-30 | J21: 1995 | K21: 1995-10-31 | L21: 8.04 | N21: 2009 | O21: 25.24769231 | P21: =AVERAGEIF('Copper Prices'!H:H,'Stock Prices'!N21,'Copper Prices'!J:J) -> 5149.738583 | Q21: 950.1298077 | S21: -0.3386287404 | T21: -0.3006413682 | U21: -0.243081957 | W21: 2009 | X21: 1.271038859 | Y21: 1.13574269 | Z21: 1.419984187 | AB21: 1996-09-30 | AC21: 10.928 | AD21: =AVERAGEIF('Copper Prices'!I:I,'Stock Prices'!AB21,'Copper Prices'!J:J) -> 1941.45 | AE21: 682.18 | AH21: 0.0562760197 | AI21: -0.03398790951 | AJ21: 0.03065886031 | AL21: 1996-09-30 | AM21: 1.211298078 | AN21: 0.6068200658 | AO21: 1.216240518
A22: 1987-05-04 | B22: 1987-05-31 | C22: 1987 | D22: 293.37 | F22: 1987-09-21 | G22: 2.46 | I22: 1995-11-06 | J22: 1995 | K22: 1995-11-30 | L22: 8.56 | N22: 2010 | O22: 37.39038462 | P22: =AVERAGEIF('Copper Prices'!H:H,'Stock Prices'!N22,'Copper Prices'!J:J) -> 7534.779583 | Q22: 1139.362885 | S22: 0.3926788177 | T22: 0.3805836264 | U22: 0.1816258971 | W22: 2010 | X22: 1.770148896 | Y22: 1.567987761 | Z22: 1.677890088 | AB22: 1996-10-31 | AC22: 11 | AD22: =AVERAGEIF('Copper Prices'!I:I,'Stock Prices'!AB22,'Copper Prices'!J:J) -> 1961.17 | AE22: 704.0425 | AH22: 0.00656696997 | AI22: 0.01010611735 | AJ22: 0.03154517102 | AL22: 1996-10-31 | AM22: 1.219252636 | AN22: 0.6129526606 | AO22: 1.254607033
A23: 1987-05-11 | B23: 1987-05-31 | C23: 1987 | D23: 287.43 | F23: 1987-09-28 | G23: 2.42 | I23: 1995-11-13 | J23: 1995 | K23: 1995-11-30 | L23: 8.64 | N23: 2011 | O23: 44.59769231 | P23: =AVERAGEIF('Copper Prices'!H:H,'Stock Prices'!N23,'Copper Prices'!J:J) -> 8828.1875 | Q23: 1268.169038 | S23: 0.1762685402 | T23: 0.1584201481 | U23: 0.1071049252 | W23: 2011 | X23: 2.082170458 | Y23: 1.816388614 | Z23: 1.857600381 | AB23: 1996-11-30 | AC23: 11.0775 | AD23: =AVERAGEIF('Copper Prices'!I:I,'Stock Prices'!AB23,'Copper Prices'!J:J) -> 2230.86 | AE23: 743.5475 | AH23: 0.007020751293 | AI23: 0.1288459274 | AJ23: 0.05459392723 | AL23: 1996-11-30 | AM23: 1.227812706 | AN23: 0.6919291147 | AO23: 1.323100958
A24: 1987-05-18 | B24: 1987-05-31 | C24: 1987 | D24: 282.16 | F24: 1987-10-05 | G24: 2.35 | I24: 1995-11-20 | J24: 1995 | K24: 1995-11-30 | L24: 9.16 | N24: 2012 | O24: 36.77320755 | P24: =AVERAGEIF('Copper Prices'!H:H,'Stock Prices'!N24,'Copper Prices'!J:J) -> 7987.045064 | Q24: 1381.788491 | S24: -0.1929125915 | T24: -0.1001288653 | U24: 0.08580450951 | W24: 2012 | X24: 1.680493559 | Y24: 1.634515683 | Z24: 2.01699087 | AB24: 1996-12-31 | AC24: 10.866 | AD24: =AVERAGEIF('Copper Prices'!I:I,'Stock Prices'!AB24,'Copper Prices'!J:J) -> 2268.08 | AE24: 744.386 | AH24: -0.01927737596 | AI24: 0.01654649726 | AJ24: 0.001127066618 | AL24: 1996-12-31 | AM24: 1.204143699 | AN24: 0.7033781179 | AO24: 1.324592181
A25: 1987-05-26 | B25: 1987-05-31 | C25: 1987 | D25: 290.1 | F25: 1987-10-12 | G25: 2.23 | I25: 1995-11-27 | J25: 1995 | K25: 1995-11-30 | L25: 9.51 | AB25: 1997-01-31 | AC25: 10.61 | AD25: =AVERAGEIF('Copper Prices'!I:I,'Stock Prices'!AB25,'Copper Prices'!J:J) -> 2434.93 | AE25: 773.0875 | AH25: -0.0238416955 | AI25: 0.07098435008 | AJ25: 0.03783252003 | AL25: 1997-01-31 | AM25: 1.175434871 | AN25: 0.7533069564 | AO25: 1.374704841
A26: 1987-06-01 | B26: 1987-06-30 | C26: 1987 | D26: 293.45 | F26: 1987-10-19 | G26: 1.81 | I26: 1995-12-04 | J26: 1995 | K26: 1995-12-31 | L26: 10.07 | AB26: 1997-02-28 | AC26: 11.3 | AD26: =AVERAGEIF('Copper Prices'!I:I,'Stock Prices'!AB26,'Copper Prices'!J:J) -> 2405.85 | AE26: 797.6575 | AH26: 0.06300577309 | AI26: -0.01201473722 | AJ26: 0.0312870698 | AL26: 1997-02-28 | AM26: 1.249494054 | AN26: 0.7442561713 | AO26: 1.417715327
A27: 1987-06-08 | B27: 1987-06-30 | C27: 1987 | D27: 301.62 | F27: 1987-10-26 | G27: 1.63 | I27: 1995-12-11 | J27: 1995 | K27: 1995-12-31 | L27: 10.2 | AB27: 1997-03-31 | AC27: 10.962 | AD27: =AVERAGEIF('Copper Prices'!I:I,'Stock Prices'!AB27,'Copper Prices'!J:J) -> 2421.29 | AE27: 782.804 | AH27: -0.03036797909 | AI27: 0.006397184526 | AJ27: -0.01879696195 | AL27: 1997-03-31 | AM27: 1.211549445 | AN27: 0.7490173154 | AO27: 1.391066586
A28: 1987-06-15 | B28: 1987-06-30 | C28: 1987 | D28: 306.97 | F28: 1987-11-02 | G28: 1.68 | I28: 1995-12-18 | J28: 1995 | K28: 1995-12-31 | L28: 9.64 | AB28: 1997-04-30 | AC28: 10.3225 | AD28: =AVERAGEIF('Copper Prices'!I:I,'Stock Prices'!AB28,'Copper Prices'!J:J) -> 2391.18 | AE28: 770.5825 | AH28: -0.06010876785 | AI28: -0.01251348804 | AJ28: -0.01573562301 | AL28: 1997-04-30 | AM28: 1.1387247 | AN28: 0.7396444961 | AO28: 1.369177287
A29: 1987-06-22 | B29: 1987-06-30 | C29: 1987 | D29: 307.16 | F29: 1987-11-09 | G29: 1.6 | I29: 1995-12-26 | J29: 1995 | K29: 1995-12-31 | L29: 9.72 | AB29: 1997-05-31 | AC29: 10.8375 | AD29: =AVERAGEIF('Copper Prices'!I:I,'Stock Prices'!AB29,'Copper Prices'!J:J) -> 2514.33 | AE29: 837.46 | AH29: 0.04868636333 | AI29: 0.05021939852 | AJ29: 0.08322677901 | AL29: 1997-05-31 | AM29: 1.194165065 | AN29: 0.7767889978 | AO29: 1.483129502
A30: 1987-06-29 | B30: 1987-06-30 | C30: 1987 | D30: 305.63 | F30: 1987-11-16 | G30: 1.66 | I30: 1996-01-02 | J30: 1996 | K30: 1996-01-31 | L30: 9.64 | AB30: 1997-06-30 | AC30: 10.4 | AD30: =AVERAGEIF('Copper Prices'!I:I,'Stock Prices'!AB30,'Copper Prices'!J:J) -> 2612.62 | AE30: 890.84 | AH30: -0.04120653596 | AI30: 0.03834718278 | AJ30: 0.06179133647 | AL30: 1997-06-30 | AM30: 1.144957659 | AN30: 0.8065766675 | AO30: 1.574774056
A31: 1987-07-06 | B31: 1987-07-31 | C31: 1987 | D31: 308.37 | F31: 1987-11-23 | G31: 1.76 | I31: 1996-01-08 | J31: 1996 | K31: 1996-01-31 | L31: 9.77 | AB31: 1997-07-31 | AC31: 10.1425 | AD31: =AVERAGEIF('Copper Prices'!I:I,'Stock Prices'!AB31,'Copper Prices'!J:J) -> 2450.46 | AE31: 929.4775 | AH31: -0.02507129005 | AI31: -0.06407778722 | AJ31: 0.04245776247 | AL31: 1997-07-31 | AM31: 1.116252094 | AN31: 0.7548930195 | AO31: 1.641635439
A32: 1987-07-13 | B32: 1987-07-31 | C32: 1987 | D32: 314.59 | F32: 1987-11-30 | G32: 1.58 | I32: 1996-01-15 | J32: 1996 | K32: 1996-01-31 | L32: 9.81 | AB32: 1997-08-31 | AC32: 10.53 | AD32: =AVERAGEIF('Copper Prices'!I:I,'Stock Prices'!AB32,'Copper Prices'!J:J) -> 2251.2 | AE32: 914.34 | AH32: 0.03749381005 | AI32: -0.08481235466 | AJ32: -0.01642010678 | AL32: 1997-08-31 | AM32: 1.158104638 | AN32: 0.690868765 | AO32: 1.61467961
A33: 1987-07-20 | B33: 1987-07-31 | C33: 1987 | D33: 309.27 | F33: 1987-12-07 | G33: 1.47 | I33: 1996-01-22 | J33: 1996 | K33: 1996-01-31 | L33: 10.15 | AB33: 1997-09-30 | AC33: 10.178 | AD33: =AVERAGEIF('Copper Prices'!I:I,'Stock Prices'!AB33,'Copper Prices'!J:J) -> 2107.3 | AE33: 942.744 | AH33: -0.03399979798 | AI33: -0.06605590016 | AJ33: 0.03059227823 | AL33: 1997-09-30 | AM33: 1.118729314 | AN33: 0.6452328068 | AO33: 1.664076338
A34: 1987-07-27 | B34: 1987-07-31 | C34: 1987 | D34: 318.66 | F34: 1987-12-14 | G34: 1.61 | I34: 1996-01-29 | J34: 1996 | K34: 1996-01-31 | L34: 10.85 | AB34: 1997-10-31 | AC34: 9.8325 | AD34: =AVERAGEIF('Copper Prices'!I:I,'Stock Prices'!AB34,'Copper Prices'!J:J) -> 2052.26 | AE34: 941.85 | AH34: -0.03453530284 | AI34: -0.02646588229 | AJ34: -0.0009487455304 | AL34: 1997-10-31 | AM34: 1.080093658 | AN34: 0.6281561513 | AO34: 1.662497553
A35: 1987-08-03 | B35: 1987-08-31 | C35: 1987 | D35: 323 | F35: 1987-12-21 | G35: 1.82 | I35: 1996-02-05 | J35: 1996 | K35: 1996-02-29 | L35: 10.72 | AB35: 1997-11-30 | AC35: 8.225 | AD35: =AVERAGEIF('Copper Prices'!I:I,'Stock Prices'!AB35,'Copper Prices'!J:J) -> 1917.45 | AE35: 943.5875 | AH35: -0.1785149287 | AI35: -0.06794544664 | AJ35: 0.001843074079 | AL35: 1997-11-30 | AM35: 0.8872808159 | AN35: 0.585475801 | AO35: 1.665561659
A36: 1987-08-10 | B36: 1987-08-31 | C36: 1987 | D36: 333.99 | F36: 1987-12-28 | G36: 1.79 | I36: 1996-02-12 | J36: 1996 | K36: 1996-02-29 | L36: 10.85 | AB36: 1997-12-31 | AC36: 5.992 | AD36: =AVERAGEIF('Copper Prices'!I:I,'Stock Prices'!AB36,'Copper Prices'!J:J) -> 1762.33 | AE36: 959.092 | AH36: -0.3167530504 | AI36: -0.08435938115 | AJ36: 0.01629790324 | AL36: 1997-12-31 | AM36: 0.6062319109 | AN36: 0.5360854248 | AO36: 1.692706822
A37: 1987-08-17 | B37: 1987-08-31 | C37: 1987 | D37: 335.9 | F37: 1988-01-04 | G37: 1.72 | I37: 1996-02-20 | J37: 1996 | K37: 1996-02-29 | L37: 11.15 | AB37: 1998-01-31 | AC37: 5.225 | AD37: =AVERAGEIF('Copper Prices'!I:I,'Stock Prices'!AB37,'Copper Prices'!J:J) -> 1688.45 | AE37: 956.7675 | AH37: -0.1369704484 | AI37: -0.04282584883 | AJ37: -0.002426588318 | AL37: 1998-01-31 | AM37: 0.5231960542 | AN37: 0.5131271114 | AO37: 1.688599319
A38: 1987-08-24 | B38: 1987-08-31 | C38: 1987 | D38: 327.04 | F38: 1988-01-11 | G38: 1.72 | I38: 1996-02-26 | J38: 1996 | K38: 1996-02-29 | L38: 11.63 | AB38: 1998-02-28 | AC38: 5.4825 | AD38: =AVERAGEIF('Copper Prices'!I:I,'Stock Prices'!AB38,'Copper Prices'!J:J) -> 1664.8 | AE38: 1029.025 | AH38: 0.04810640346 | AI38: -0.01410595223 | AJ38: 0.07280661574 | AL38: 1998-02-28 | AM38: 0.5483651347 | AN38: 0.5058889649 | AO38: 1.811540521
A39: 1987-08-31 | B39: 1987-08-31 | C39: 1987 | D39: 316.7 | F39: 1988-01-18 | G39: 1.64 | I39: 1996-03-04 | J39: 1996 | K39: 1996-03-31 | L39: 10.8 | AB39: 1998-03-31 | AC39: 6.256 | AD39: =AVERAGEIF('Copper Prices'!I:I,'Stock Prices'!AB39,'Copper Prices'!J:J) -> 1747.98 | AE39: 1088.32 | AH39: 0.1319798019 | AI39: 0.04875583942 | AJ39: 0.05602347085 | AL39: 1998-03-31 | AM39: 0.6207382565 | AN39: 0.530554006 | AO39: 1.913029308
A40: 1987-09-08 | B40: 1987-09-30 | C40: 1987 | D40: 321.98 | F40: 1988-01-25 | G40: 1.63 | I40: 1996-03-11 | J40: 1996 | K40: 1996-03-31 | L40: 10.67 | AB40: 1998-04-30 | AC40: 7.1525 | AD40: =AVERAGEIF('Copper Prices'!I:I,'Stock Prices'!AB40,'Copper Prices'!J:J) -> 1800.9 | AE40: 1115.5725 | AH40: 0.1339209427 | AI40: 0.02982570442 | AJ40: 0.02473250322 | AL40: 1998-04-30 | AM40: 0.703868109 | AN40: 0.546378153 | AO40: 1.960343312
A41: 1987-09-14 | B41: 1987-09-30 | C41: 1987 | D41: 314.86 | F41: 1988-02-01 | G41: 1.65 | I41: 1996-03-18 | J41: 1996 | K41: 1996-03-31 | L41: 10.67 | AB41: 1998-05-31 | AC41: 6.1125 | AD41: =AVERAGEIF('Copper Prices'!I:I,'Stock Prices'!AB41,'Copper Prices'!J:J) -> 1732.53 | AE41: 1104.54 | AH41: -0.1571260911 | AI41: -0.03870377199 | AJ41: -0.009938767351 | AL41: 1998-05-31 | AM41: 0.5932720644 | AN41: 0.5252312575 | AO41: 1.940859916
A42: 1987-09-21 | B42: 1987-09-30 | C42: 1987 | D42: 320.16 | F42: 1988-02-08 | G42: 1.62 | I42: 1996-03-25 | J42: 1996 | K42: 1996-03-31 | L42: 10.93 | AB42: 1998-06-30 | AC42: 5.78 | AD42: =AVERAGEIF('Copper Prices'!I:I,'Stock Prices'!AB42,'Copper Prices'!J:J) -> 1660.52 | AE42: 1118.594 | AH42: -0.05593217212 | AI42: -0.04245196162 | AJ42: 0.01264358084 | AL42: 1998-06-30 | AM42: 0.5600890692 | AN42: 0.5029341604 | AO42: 1.965399335
A43: 1987-09-28 | B43: 1987-09-30 | C43: 1987 | D43: 328.07 | F43: 1988-02-16 | G43: 1.67 | I43: 1996-04-01 | J43: 1996 | K43: 1996-04-30 | L43: 11.58 | AB43: 1998-07-31 | AC43: 5.67 | AD43: =AVERAGEIF('Copper Prices'!I:I,'Stock Prices'!AB43,'Copper Prices'!J:J) -> 1651.04 | AE43: 1153.1375 | AH43: -0.01921456494 | AI43: -0.005725413942 | AJ43: 0.03041394875 | AL43: 1998-07-31 | AM43: 0.5493272014 | AN43: 0.5000546541 | AO43: 2.02517489
A44: 1987-10-05 | B44: 1987-10-31 | C44: 1987 | D44: 311.07 | F44: 1988-02-22 | G44: 1.66 | I44: 1996-04-08 | J44: 1996 | K44: 1996-04-30 | L44: 11.62 | AB44: 1998-08-31 | AC44: 4.878 | AD44: =AVERAGEIF('Copper Prices'!I:I,'Stock Prices'!AB44,'Copper Prices'!J:J) -> 1620.93 | AE44: 1046.894 | AH44: -0.1504538179 | AI44: -0.01840533378 | AJ44: -0.09665880318 | AL44: 1998-08-31 | AM44: 0.4666788266 | AN44: 0.4908509813 | AO44: 1.829423909
A45: 1987-10-12 | B45: 1987-10-31 | C45: 1987 | D45: 282.7 | F45: 1988-02-29 | G45: 1.73 | I45: 1996-04-15 | J45: 1996 | K45: 1996-04-30 | L45: 11.14 | AB45: 1998-09-30 | AC45: 4.6775 | AD45: =AVERAGEIF('Copper Prices'!I:I,'Stock Prices'!AB45,'Copper Prices'!J:J) -> 1647.64 | AE45: 1019.125 | AH45: -0.04197152063 | AI45: 0.01634390242 | AJ45: -0.02688326912 | AL45: 1998-09-30 | AM45: 0.4470916066 | AN45: 0.4988734018 | AO45: 1.780243013
A46: 1987-10-19 | B46: 1987-10-31 | C46: 1987 | D46: 248.22 | F46: 1988-03-07 | G46: 1.82 | I46: 1996-04-22 | J46: 1996 | K46: 1996-04-30 | L46: 11.75 | AB46: 1998-10-31 | AC46: 4.3625 | AD46: =AVERAGEIF('Copper Prices'!I:I,'Stock Prices'!AB46,'Copper Prices'!J:J) -> 1586.39 | AE46: 1052.5375 | AH46: -0.06971849164 | AI46: -0.0378829664 | AJ46: 0.03225949939 | AL46: 1998-10-31 | AM46: 0.4159210542 | AN46: 0.4799745975 | AO46: 1.837672762
A47: 1987-10-26 | B47: 1987-10-31 | C47: 1987 | D47: 251.79 | F47: 1988-03-14 | G47: 1.88 | I47: 1996-04-29 | J47: 1996 | K47: 1996-04-30 | L47: 11.22 | AB47: 1998-11-30 | AC47: 5.062 | AD47: =AVERAGEIF('Copper Prices'!I:I,'Stock Prices'!AB47,'Copper Prices'!J:J) -> 1573.95 | AE47: 1159.87 | AH47: 0.1487163746 | AI47: -0.007872611333 | AJ47: 0.09710401448 | AL47: 1998-11-30 | AM47: 0.4777753255 | AN47: 0.4761959441 | AO47: 2.016118164
A48: 1987-11-02 | B48: 1987-11-30 | C48: 1987 | D48: 250.41 | F48: 1988-03-21 | G48: 1.94 | I48: 1996-05-06 | J48: 1996 | K48: 1996-05-31 | L48: 12.23 | AB48: 1998-12-31 | AC48: 3.935 | AD48: =AVERAGEIF('Copper Prices'!I:I,'Stock Prices'!AB48,'Copper Prices'!J:J) -> 1473.57 | AE48: 1202.4975 | AH48: -0.2518507803 | AI48: -0.06590035528 | AJ48: 0.03609271412 | AL48: 1998-12-31 | AM48: 0.357447237 | AN48: 0.4448144622 | AO48: 2.088885341
A49: 1987-11-09 | B49: 1987-11-30 | C49: 1987 | D49: 245.64 | F49: 1988-03-28 | G49: 1.98 | I49: 1996-05-13 | J49: 1996 | K49: 1996-05-31 | L49: 12.4 | AB49: 1999-01-31 | AC49: 4.0725 | AD49: =AVERAGEIF('Copper Prices'!I:I,'Stock Prices'!AB49,'Copper Prices'!J:J) -> 1431.18 | AE49: 1255.795 | AH49: 0.03434617962 | AI49: -0.02918874918 | AJ49: 0.04336819417 | AL49: 1999-01-31 | AM49: 0.369724184 | AN49: 0.4318308844 | AO49: 2.179476526
A50: 1987-11-16 | B50: 1987-11-30 | C50: 1987 | D50: 242 | F50: 1988-04-04 | G50: 2.01 | I50: 1996-05-20 | J50: 1996 | K50: 1996-05-31 | L50: 11.97 | AB50: 1999-02-28 | AC50: 3.71 | AD50: =AVERAGEIF('Copper Prices'!I:I,'Stock Prices'!AB50,'Copper Prices'!J:J) -> 1410.78 | AE50: 1236.77 | AH50: -0.09322518487 | AI50: -0.0143565359 | AJ50: -0.01526569575 | AL50: 1999-02-28 | AM50: 0.3352565786 | AN50: 0.4256312888 | AO50: 2.1462053
A51: 1987-11-23 | B51: 1987-11-30 | C51: 1987 | D51: 240.34 | F51: 1988-04-11 | G51: 2.05 | I51: 1996-05-28 | J51: 1996 | K51: 1996-05-31 | L51: 11.57 | AB51: 1999-03-31 | AC51: 3.756 | AD51: =AVERAGEIF('Copper Prices'!I:I,'Stock Prices'!AB51,'Copper Prices'!J:J) -> 1378.35 | AE51: 1289.174 | AH51: 0.01232268473 | AI51: -0.02325561129 | AJ51: 0.0414985608 | AL51: 1999-03-31 | AM51: 0.3393878397 | AN51: 0.415732973 | AO51: 2.235269731
A52: 1987-11-30 | B52: 1987-11-30 | C52: 1987 | D52: 223.92 | F52: 1988-04-18 | G52: 2.09 | I52: 1996-06-03 | J52: 1996 | K52: 1996-06-30 | L52: 11.18 | AB52: 1999-04-30 | AC52: 4.8525 | AD52: =AVERAGEIF('Copper Prices'!I:I,'Stock Prices'!AB52,'Copper Prices'!J:J) -> 1466 | AE52: 1339.845 | AH52: 0.2561394747 | AI52: 0.06165047183 | AJ52: 0.03855223242 | AL52: 1999-04-30 | AM52: 0.4263184627 | AN52: 0.4413631069 | AO52: 2.32144437
A53: 1987-12-07 | B53: 1987-12-31 | C53: 1987 | D53: 235.32 | F53: 1988-04-25 | G53: 2.07 | I53: 1996-06-10 | J53: 1996 | K53: 1996-06-30 | L53: 10.62 | AB53: 1999-05-31 | AC53: 5.7175 | AD53: =AVERAGEIF('Copper Prices'!I:I,'Stock Prices'!AB53,'Copper Prices'!J:J) -> 1511.16 | AE53: 1328.7325 | AH53: 0.1640376109 | AI53: 0.03033996436 | AJ53: -0.008328455316 | AL53: 1999-05-31 | AM53: 0.4962507248 | AN53: 0.4547540479 | AO53: 2.302110324
A54: 1987-12-14 | B54: 1987-12-31 | C54: 1987 | D54: 249.16 | F54: 1988-05-02 | G54: 2.02 | I54: 1996-06-17 | J54: 1996 | K54: 1996-06-30 | L54: 11.05 | AB54: 1999-06-30 | AC54: 6.066 | AD54: =AVERAGEIF('Copper Prices'!I:I,'Stock Prices'!AB54,'Copper Prices'!J:J) -> 1422.48 | AE54: 1334.152 | AH54: 0.05916776235 | AI54: -0.06047574066 | AJ54: 0.004070403716 | AL54: 1999-06-30 | AM54: 0.5256127697 | AN54: 0.42725246 | AO54: 2.311480842
A55: 1987-12-21 | B55: 1987-12-31 | C55: 1987 | D55: 252.03 | F55: 1988-05-09 | G55: 2 | I55: 1996-06-24 | J55: 1996 | K55: 1996-06-30 | L55: 11.09 | AB55: 1999-07-31 | AC55: 6.665 | AD55: =AVERAGEIF('Copper Prices'!I:I,'Stock Prices'!AB55,'Copper Prices'!J:J) -> 1640 | AE55: 1376.93 | AH55: 0.09417054436 | AI55: 0.1422944147 | AJ55: 0.03156049927 | AL55: 1999-07-31 | AM55: 0.5751100104 | AN55: 0.4880480987 | AO55: 2.384432332
A56: 1987-12-28 | B56: 1987-12-31 | C56: 1987 | D56: 247.08 | F56: 1988-05-16 | G56: 2.09 | I56: 1996-07-01 | J56: 1996 | K56: 1996-07-31 | L56: 11.01 | AB56: 1999-08-31 | AC56: 6.348 | AD56: =AVERAGEIF('Copper Prices'!I:I,'Stock Prices'!AB56,'Copper Prices'!J:J) -> 1647.62 | AE56: 1334.018 | AH56: -0.04873015097 | AI56: 0.004635580539 | AJ56: -0.03166094265 | AL56: 1999-08-31 | AM56: 0.5470848127 | AN56: 0.490310485 | AO56: 2.308938957
A57: 1988-01-04 | B57: 1988-01-31 | C57: 1988 | D57: 243.4 | F57: 1988-05-23 | G57: 2.33 | I57: 1996-07-08 | J57: 1996 | K57: 1996-07-31 | L57: 10.91 | AB57: 1999-09-30 | AC57: 5.6875 | AD57: =AVERAGEIF('Copper Prices'!I:I,'Stock Prices'!AB57,'Copper Prices'!J:J) -> 1750.34 | AE57: 1311.8125 | AH57: -0.1098690184 | AI57: 0.0604782324 | AJ57: -0.01678567193 | AL57: 1999-09-30 | AM57: 0.4869771414 | AN57: 0.5199635964 | AO57: 2.270181865
A58: 1988-01-11 | B58: 1988-01-31 | C58: 1988 | D58: 252.05 | F58: 1988-05-31 | G58: 2.45 | I58: 1996-07-15 | J58: 1996 | K58: 1996-07-31 | L58: 10.34 | AB58: 1999-10-31 | AC58: 6.215 | AD58: =AVERAGEIF('Copper Prices'!I:I,'Stock Prices'!AB58,'Copper Prices'!J:J) -> 1724.12 | AE58: 1312.0025 | AH58: 0.08869494069 | AI58: -0.01509327939 | AJ58: 0.0001448272842 | AL58: 1999-10-31 | AM58: 0.5301695501 | AN58: 0.5121156406 | AO58: 2.270510649
A59: 1988-01-18 | B59: 1988-01-31 | C59: 1988 | D59: 246.5 | F59: 1988-06-06 | G59: 2.47 | I59: 1996-07-22 | J59: 1996 | K59: 1996-07-31 | L59: 10.38 | AB59: 1999-11-30 | AC59: 6.268 | AD59: =AVERAGEIF('Copper Prices'!I:I,'Stock Prices'!AB59,'Copper Prices'!J:J) -> 1727.55 | AE59: 1407.642 | AH59: 0.008491599531 | AI59: 0.001987444413 | AJ59: 0.07036136803 | AL59: 1999-11-30 | AM59: 0.5346715376 | AN59: 0.513133442 | AO59: 2.430266884
A60: 1988-01-25 | B60: 1988-01-31 | C60: 1988 | D60: 257.07 | F60: 1988-06-13 | G60: 2.44 | I60: 1996-07-29 | J60: 1996 | K60: 1996-07-31 | L60: 10.78 | AB60: 1999-12-31 | AC60: 6.585 | AD60: =AVERAGEIF('Copper Prices'!I:I,'Stock Prices'!AB60,'Copper Prices'!J:J) -> 1764.75 | AE60: 1441.415 | AH60: 0.0493370107 | AI60: 0.02130481749 | AJ60: 0.02370930596 | AL60: 1999-12-31 | AM60: 0.5610506329 | AN60: 0.5240656563 | AO60: 2.487886825
A61: 1988-02-01 | B61: 1988-02-29 | C61: 1988 | D61: 250.96 | F61: 1988-06-20 | G61: 2.36 | I61: 1996-08-05 | J61: 1996 | K61: 1996-08-31 | L61: 10.65 | AB61: 2000-01-31 | AC61: 6.872 | AD61: =AVERAGEIF('Copper Prices'!I:I,'Stock Prices'!AB61,'Copper Prices'!J:J) -> 1843.98 | AE61: 1426.502 | AH61: 0.04266084949 | AI61: 0.0439172418 | AJ61: -0.0103999763 | AL61: 2000-01-31 | AM61: 0.5849855295 | AN61: 0.5470811745 | AO61: 2.462012861
A62: 1988-02-08 | B62: 1988-02-29 | C62: 1988 | D62: 257.63 | F62: 1988-06-27 | G62: 2.27 | I62: 1996-08-12 | J62: 1996 | K62: 1996-08-31 | L62: 10.12 | AB62: 2000-02-29 | AC62: 5.9 | AD62: =AVERAGEIF('Copper Prices'!I:I,'Stock Prices'!AB62,'Copper Prices'!J:J) -> 1800.83 | AE62: 1368.935 | AH62: -0.1525028338 | AI62: -0.02367860935 | AJ62: -0.04119222844 | AL62: 2000-02-29 | AM62: 0.4957735786 | AN62: 0.534127053 | AO62: 2.360597065
A63: 1988-02-16 | B63: 1988-02-29 | C63: 1988 | D63: 261.61 | F63: 1988-07-05 | G63: 2.36 | I63: 1996-08-19 | J63: 1996 | K63: 1996-08-31 | L63: 10.25 | AB63: 2000-03-31 | AC63: 4.7925 | AD63: =AVERAGEIF('Copper Prices'!I:I,'Stock Prices'!AB63,'Copper Prices'!J:J) -> 1739.39 | AE63: 1471.395 | AH63: -0.207900155 | AI63: -0.03471319269 | AJ63: 0.07217786512 | AL63: 2000-03-31 | AM63: 0.3927021748 | AN63: 0.5155857977 | AO63: 2.530979922
A64: 1988-02-22 | B64: 1988-02-29 | C64: 1988 | D64: 262.46 | F64: 1988-07-11 | G64: 2.37 | I64: 1996-08-26 | J64: 1996 | K64: 1996-08-31 | L64: 10.3 | AB64: 2000-04-30 | AC64: 3.835 | AD64: =AVERAGEIF('Copper Prices'!I:I,'Stock Prices'!AB64,'Copper Prices'!J:J) -> 1678.75 | AE64: 1439.97 | AH64: -0.2228827611 | AI64: -0.03548500819 | AJ64: -0.02158865035 | AL64: 2000-04-30 | AM64: 0.3051756297 | AN64: 0.4972902315 | AO64: 2.476339481
A65: 1988-02-29 | B65: 1988-02-29 | C65: 1988 | D65: 267.3 | F65: 1988-07-18 | G65: 2.45 | I65: 1996-09-03 | J65: 1996 | K65: 1996-09-30 | L65: 10.47 | AB65: 2000-05-31 | AC65: 3.814 | AD65: =AVERAGEIF('Copper Prices'!I:I,'Stock Prices'!AB65,'Copper Prices'!J:J) -> 1785.62 | AE65: 1423.164 | AH65: -0.005490927641 | AI65: 0.061716225 | AJ65: -0.0117397181 | AL65: 2000-05-31 | AM65: 0.3034999324 | AN65: 0.5279811073 | AO65: 2.447267954
A66: 1988-03-07 | B66: 1988-03-31 | C66: 1988 | D66: 264.94 | F66: 1988-07-25 | G66: 2.4 | I66: 1996-09-09 | J66: 1996 | K66: 1996-09-30 | L66: 11.08 | AB66: 2000-06-30 | AC66: 3.465 | AD66: =AVERAGEIF('Copper Prices'!I:I,'Stock Prices'!AB66,'Copper Prices'!J:J) -> 1753.18 | AE66: 1454.3725 | AH66: -0.09596587454 | AI66: -0.01833441207 | AJ66: 0.02169197418 | AL66: 2000-06-30 | AM66: 0.274374296 | AN66: 0.5183008841 | AO66: 2.500354027
A67: 1988-03-14 | B67: 1988-03-31 | C67: 1988 | D67: 271.12 | F67: 1988-08-01 | G67: 2.4 | I67: 1996-09-16 | J67: 1996 | K67: 1996-09-30 | L67: 11.22 | AB67: 2000-07-31 | AC67: 3.23 | AD67: =AVERAGEIF('Copper Prices'!I:I,'Stock Prices'!AB67,'Copper Prices'!J:J) -> 1799.36 | AE67: 1470.378 | AH67: -0.07023049541 | AI67: 0.02599976434 | AJ67: 0.01094497447 | AL67: 2000-07-31 | AM67: 0.2551048533 | AN67: 0.5317765849 | AO67: 2.527720338
A68: 1988-03-21 | B68: 1988-03-31 | C68: 1988 | D68: 258.51 | F68: 1988-08-08 | G68: 2.37 | I68: 1996-09-23 | J68: 1996 | K68: 1996-09-30 | L68: 11 | AB68: 2000-08-31 | AC68: 3.3925 | AD68: =AVERAGEIF('Copper Prices'!I:I,'Stock Prices'!AB68,'Copper Prices'!J:J) -> 1855.86 | AE68: 1497.695 | AH68: 0.04908497549 | AI68: 0.03091715436 | AJ68: 0.01840774897 | AL68: 2000-08-31 | AM68: 0.2676266687 | AN68: 0.5482176037 | AO68: 2.57424998
A69: 1988-03-28 | B69: 1988-03-31 | C69: 1988 | D69: 258.89 | F69: 1988-08-15 | G69: 2.42 | I69: 1996-09-30 | J69: 1996 | K69: 1996-09-30 | L69: 10.87 | AB69: 2000-09-30 | AC69: 3.4775 | AD69: =AVERAGEIF('Copper Prices'!I:I,'Stock Prices'!AB69,'Copper Prices'!J:J) -> 1960.41 | AE69: 1461.385 | AH69: 0.02474653209 | AI69: 0.05480543456 | AJ69: -0.02454264337 | AL69: 2000-09-30 | AM69: 0.2742495007 | AN69: 0.5782629077 | AO69: 2.51107108
A70: 1988-04-04 | B70: =EOMONTH(A70,0) -> 1988-04-30 | C70: =YEAR(A70) -> 1988 | D70: 269.43 | F70: 1988-08-22 | G70: 2.37 | I70: 1996-10-07 | J70: =YEAR(I70) -> 1996 | K70: =EOMONTH(I70,0) -> 1996-10-31 | L70: 10.99 | AB70: 2000-10-31 | AC70: 2.974 | AD70: =AVERAGEIF('Copper Prices'!I:I,'Stock Prices'!AB70,'Copper Prices'!J:J) -> 1898.59 | AE70: 1397.272 | AH70: -0.1564057968 | AI70: -0.03204212963 | AJ70: -0.04486285193 | AL70: 2000-10-31 | AM70: 0.231355289 | AN70: 0.5597341327 | AO70: 2.39841727
A71: 1988-04-11 | B71: 1988-04-30 | C71: 1988 | D71: 259.77 | F71: 1988-08-29 | G71: 2.27 | I71: 1996-10-14 | J71: 1996 | K71: 1996-10-31 | L71: 11.12 | AB71: 2000-11-30 | AC71: 2.755 | AD71: =AVERAGEIF('Copper Prices'!I:I,'Stock Prices'!AB71,'Copper Prices'!J:J) -> 1795.11 | AE71: 1347.675 | AH71: -0.07649040543 | AI71: -0.05604520401 | AJ71: -0.03614087876 | AL71: 2000-11-30 | AM71: 0.2136588292 | AN71: 0.528363719 | AO71: 2.311736363
A72: 1988-04-18 | B72: 1988-04-30 | C72: 1988 | D72: 260.14 | F72: 1988-09-06 | G72: 2.31 | I72: 1996-10-21 | J72: 1996 | K72: 1996-10-31 | L72: 11.25 | AB72: 2000-12-31 | AC72: =AVERAGEIF(K:K,AB72,L:L) -> 3.165 | AD72: =AVERAGEIF('Copper Prices'!I:I,'Stock Prices'!AB72,'Copper Prices'!J:J) -> 1850.55 | AE72: =AVERAGEIF(B:B,AB72,D:D) -> 1327.0675 | AH72: 0.138735613 | AI72: 0.0304165908 | AJ72: -0.01540926483 | AL72: 2000-12-31 | AM72: 0.2433009178 | AN72: 0.544434742 | AO72: 2.276114205
A73: 1988-04-25 | B73: 1988-04-30 | C73: 1988 | D73: 261.33 | F73: 1988-09-12 | G73: 2.23 | I73: 1996-10-28 | J73: 1996 | K73: 1996-10-31 | L73: 10.64 | AB73: =EOMONTH(AB72,1) -> 2001-01-31 | AC73: 3.844 | AD73: =AVERAGEIF('Copper Prices'!I:I,'Stock Prices'!AB73,'Copper Prices'!J:J) -> 1787.5 | AE73: 1332.772 | AH73: =LN(AC73/AC72) -> 0.1943604355 | AI73: =LN(AD73/AD72) -> -0.03466489662 | AJ73: =LN(AE73/AE72) -> 0.004289363134 | AL73: 2001-01-31 | AM73: =AM72*(1+AH73) -> 0.2905889901 | AN73: =AN72*(1+AI73) -> 0.525561968 | AO73: =AO72*(1+AJ73) -> 2.285877285
A74: 1988-05-02 | B74: 1988-05-31 | C74: 1988 | D74: 257.48 | F74: 1988-09-19 | G74: 2.24 | I74: 1996-11-04 | J74: 1996 | K74: 1996-11-30 | L74: 10.59 | AB74: 2001-02-28 | AC74: 4.8525 | AD74: =AVERAGEIF('Copper Prices'!I:I,'Stock Prices'!AB74,'Copper Prices'!J:J) -> 1765.65 | AE74: 1274.0825 | AH74: 0.232980545 | AI74: -0.01229910104 | AJ74: -0.04503467208 | AL74: 2001-02-28 | AM74: 0.3582905714 | AN74: 0.5190980282 | AO74: 2.182933551
A75: 1988-05-09 | B75: 1988-05-31 | C75: 1988 | D75: 256.78 | F75: 1988-09-26 | G75: 2.24 | I75: 1996-11-11 | J75: 1996 | K75: 1996-11-30 | L75: 11.35 | AB75: 2001-03-31 | AC75: 4.8375 | AD75: =AVERAGEIF('Copper Prices'!I:I,'Stock Prices'!AB75,'Copper Prices'!J:J) -> 1738.77 | AE75: 1171.0275 | AH75: -0.003095977705 | AI75: -0.01534092784 | AJ75: -0.08434474318 | AL75: 2001-03-31 | AM75: 0.3571813118 | AN75: 0.5111345828 | AO75: 1.998814581
A76: 1988-05-16 | B76: 1988-05-31 | C76: 1988 | D76: 253.02 | F76: 1988-10-03 | G76: 2.19 | I76: 1996-11-18 | J76: 1996 | K76: 1996-11-30 | L76: 11.25 | AB76: 2001-04-30 | AC76: 5.116 | AD76: =AVERAGEIF('Copper Prices'!I:I,'Stock Prices'!AB76,'Copper Prices'!J:J) -> 1664.16 | AE76: 1214.914 | AH76: 0.05597482536 | AI76: -0.04385747508 | AJ76: 0.03679172385 | AL76: 2001-04-30 | AM76: 0.3771744733 | AN76: 0.4887175106 | AO76: 2.072354415
A77: 1988-05-23 | B77: 1988-05-31 | C77: 1988 | D77: 253.42 | F77: 1988-10-10 | G77: 2.28 | I77: 1996-11-25 | J77: 1996 | K77: 1996-11-30 | L77: 11.12 | AB77: 2001-05-31 | AC77: 5.7975 | AD77: =AVERAGEIF('Copper Prices'!I:I,'Stock Prices'!AB77,'Copper Prices'!J:J) -> 1682.21 | AE77: 1269.0475 | AH77: 0.1250539064 | AI77: 0.0107879135 | AJ77: 0.04359332669 | AL77: 2001-05-31 | AM77: 0.4243416146 | AN77: 0.4939897528 | AO77: 2.162695238
A78: 1988-05-31 | B78: 1988-05-31 | C78: 1988 | D78: 266.45 | F78: 1988-10-17 | G78: 2.36 | I78: 1996-12-02 | J78: 1996 | K78: 1996-12-31 | L78: 11.21 | AB78: 2001-06-30 | AC78: 5.0875 | AD78: =AVERAGEIF('Copper Prices'!I:I,'Stock Prices'!AB78,'Copper Prices'!J:J) -> 1608.45 | AE78: 1232.2625 | AH78: -0.1306402394 | AI78: -0.04483742277 | AJ78: -0.02941470848 | AL78: 2001-06-30 | AM78: 0.3689055245 | AN78: 0.4718405255 | AO78: 2.099080189
A79: 1988-06-06 | B79: 1988-06-30 | C79: 1988 | D79: 271.26 | F79: 1988-10-24 | G79: 2.26 | I79: 1996-12-09 | J79: 1996 | K79: 1996-12-31 | L79: 10.59 | AB79: 2001-07-31 | AC79: 4.282 | AD79: =AVERAGEIF('Copper Prices'!I:I,'Stock Prices'!AB79,'Copper Prices'!J:J) -> 1525.21 | AE79: 1207.458 | AH79: -0.1723663606 | AI79: -0.05313887686 | AJ79: -0.02033458727 | AL79: 2001-07-31 | AM79: 0.3053186219 | AN79: 0.4467674499 | AO79: 2.056396259
A80: 1988-06-13 | B80: 1988-06-30 | C80: 1988 | D80: 270.68 | F80: 1988-10-31 | G80: 2.25 | I80: 1996-12-16 | J80: 1996 | K80: 1996-12-31 | L80: 10.95 | AB80: 2001-08-31 | AC80: 4.3975 | AD80: =AVERAGEIF('Copper Prices'!I:I,'Stock Prices'!AB80,'Copper Prices'!J:J) -> 1464.43 | AE80: 1167.66 | AH80: 0.02661600746 | AI80: -0.04066601724 | AJ80: -0.03351557719 | AL80: 2001-08-31 | AM80: 0.3134449846 | AN80: 0.4285991971 | AO80: 1.987474952
A81: 1988-06-20 | B81: 1988-06-30 | C81: 1988 | D81: 273.78 | F81: 1988-11-07 | G81: 2.29 | I81: 1996-12-23 | J81: 1996 | K81: 1996-12-31 | L81: 10.9 | AB81: 2001-09-30 | AC81: 4.313333333 | AD81: =AVERAGEIF('Copper Prices'!I:I,'Stock Prices'!AB81,'Copper Prices'!J:J) -> 1426.33 | AE81: 1030.84 | AH81: -0.01932519722 | AI81: -0.02636137649 | AJ81: -0.1246277423 | AL81: 2001-09-30 | AM81: 0.3073875984 | AN81: 0.4173007323 | AO81: 1.739780436
A82: 1988-06-27 | B82: 1988-06-30 | C82: 1988 | D82: 271.78 | F82: 1988-11-14 | G82: 2.2 | I82: 1996-12-30 | J82: 1996 | K82: 1996-12-31 | L82: 10.68 | AB82: 2001-10-31 | AC82: 3.854 | AD82: =AVERAGEIF('Copper Prices'!I:I,'Stock Prices'!AB82,'Copper Prices'!J:J) -> 1377.28 | AE82: 1085.664 | AH82: -0.1125994304 | AI82: -0.0349941721 | AJ82: 0.05181777752 | AL82: 2001-10-31 | AM82: 0.2727759299 | AN82: 0.4026976386 | AO82: 1.829931991
A83: 1988-07-05 | B83: 1988-07-31 | C83: 1988 | D83: 270.02 | F83: 1988-11-21 | G83: 2.23 | I83: 1997-01-06 | J83: 1997 | K83: 1997-01-31 | L83: 10.42 | AB83: 2001-11-30 | AC83: 4.4825 | AD83: =AVERAGEIF('Copper Prices'!I:I,'Stock Prices'!AB83,'Copper Prices'!J:J) -> 1427.73 | AE83: 1137.1875 | AH83: 0.1510693565 | AI83: 0.03597523074 | AJ83: 0.04636632745 | AL83: 2001-11-30 | AM83: 0.3139840141 | AN83: 0.4171847791 | AO83: 1.914779217
A84: 1988-07-11 | B84: 1988-07-31 | C84: 1988 | D84: 272.05 | F84: 1988-11-28 | G84: 2.13 | I84: 1997-01-13 | J84: 1997 | K84: 1997-01-31 | L84: 11.25 | AB84: 2001-12-31 | AC84: 4.826 | AD84: =AVERAGEIF('Copper Prices'!I:I,'Stock Prices'!AB84,'Copper Prices'!J:J) -> 1471.74 | AE84: 1151.964 | AH84: 0.07383704071 | AI84: 0.03035960386 | AJ84: 0.01291020296 | AL84: 2001-12-31 | AM84: 0.3371676646 | AN84: 0.4298503437 | AO84: 1.939499405
A85: 1988-07-18 | B85: 1988-07-31 | C85: 1988 | D85: 263.5 | F85: 1988-12-05 | G85: 2.16 | I85: 1997-01-20 | J85: 1997 | K85: 1997-01-31 | L85: 10.54 | AB85: 2002-01-31 | AC85: 5.355 | AD85: =AVERAGEIF('Copper Prices'!I:I,'Stock Prices'!AB85,'Copper Prices'!J:J) -> 1503.96 | AE85: 1132.165 | AH85: 0.1040127367 | AI85: 0.02165625516 | AJ85: -0.01733658291 | AL85: 2002-01-31 | AM85: 0.3722373961 | AN85: 0.4391592924 | AO85: 1.905875113
A86: 1988-07-25 | B86: 1988-07-31 | C86: 1988 | D86: 272.02 | F86: 1988-12-12 | G86: 2.13 | I86: 1997-01-27 | J86: 1997 | K86: 1997-01-31 | L86: 10.23 | AB86: 2002-02-28 | AC86: 5.605 | AD86: =AVERAGEIF('Copper Prices'!I:I,'Stock Prices'!AB86,'Copper Prices'!J:J) -> 1561.9 | AE86: 1105.505 | AH86: 0.04562835262 | AI86: 0.03780139945 | AJ86: -0.02382948473 | AL86: 2002-02-28 | AM86: 0.3892219753 | AN86: 0.4557601283 | AO86: 1.860459091
A87: 1988-08-01 | B87: 1988-08-31 | C87: 1988 | D87: 271.15 | F87: 1988-12-19 | G87: 2.21 | I87: 1997-02-03 | J87: 1997 | K87: 1997-02-28 | L87: 10.01 | AB87: 2002-03-31 | AC87: 5.9425 | AD87: =AVERAGEIF('Copper Prices'!I:I,'Stock Prices'!AB87,'Copper Prices'!J:J) -> 1604.88 | AE87: 1156.64 | AH87: 0.05847086373 | AI87: 0.02714595855 | AJ87: 0.04521700612 | AL87: 2002-03-31 | AM87: 0.4119801203 | AN87: 0.4681321738 | AO87: 1.944583481
A88: 1988-08-08 | B88: 1988-08-31 | C88: 1988 | D88: 262.55 | F88: 1988-12-27 | G88: 2.18 | I88: 1997-02-10 | J88: 1997 | K88: 1997-02-28 | L88: 11.21 | AB88: 2002-04-30 | AC88: 6.568 | AD88: =AVERAGEIF('Copper Prices'!I:I,'Stock Prices'!AB88,'Copper Prices'!J:J) -> 1590.33 | AE88: 1101.732 | AH88: 0.1000794519 | AI88: -0.009107445565 | AJ88: -0.04863576331 | AL88: 2002-04-30 | AM88: 0.453210865 | AN88: 0.4638686855 | AO88: 1.850007179
A89: 1988-08-15 | B89: 1988-08-31 | C89: 1988 | D89: 260.24 | F89: 1989-01-03 | G89: 2.2 | I89: 1997-02-18 | J89: 1997 | K89: 1997-02-28 | L89: 11.88 | AB89: 2002-05-31 | AC89: 7.0875 | AD89: =AVERAGEIF('Copper Prices'!I:I,'Stock Prices'!AB89,'Copper Prices'!J:J) -> 1595.68 | AE89: 1078.135 | AH89: 0.0761232969 | AI89: 0.003358435804 | AJ89: -0.0216507904 | AL89: 2002-05-31 | AM89: 0.4877107702 | AN89: 0.4654265587 | AO89: 1.809953062
A90: 1988-08-22 | B90: 1988-08-31 | C90: 1988 | D90: 259.68 | F90: 1989-01-09 | G90: 2.31 | I90: 1997-02-24 | J90: 1997 | K90: 1997-02-28 | L90: 12.1 | AB90: 2002-06-30 | AC90: 6.9375 | AD90: =AVERAGEIF('Copper Prices'!I:I,'Stock Prices'!AB90,'Copper Prices'!J:J) -> 1647.53 | AE90: 1003.44 | AH90: -0.02139118998 | AI90: 0.03197721897 | AJ90: -0.07179859982 | AL90: 2002-06-30 | AM90: 0.4772780565 | AN90: 0.4803096057 | AO90: 1.680000966
A91: 1988-08-29 | B91: 1988-08-31 | C91: 1988 | D91: 264.48 | F91: 1989-01-16 | G91: 2.34 | I91: 1997-03-03 | J91: 1997 | K91: 1997-03-31 | L91: 11.79 | AB91: 2002-07-31 | AC91: 5.858 | AD91: =AVERAGEIF('Copper Prices'!I:I,'Stock Prices'!AB91,'Copper Prices'!J:J) -> 1589.46 | AE91: 895.05 | AH91: -0.1691332307 | AI91: -0.03588286073 | AJ91: -0.1143097931 | AL91: 2002-07-31 | AM91: 0.3965544768 | AN91: 0.463074723 | AO91: 1.487960403
A92: 1988-09-06 | B92: 1988-09-30 | C92: 1988 | D92: 266.84 | F92: 1989-01-23 | G92: 2.39 | I92: 1997-03-10 | J92: 1997 | K92: 1997-03-31 | L92: 11.3 | AB92: 2002-08-31 | AC92: 5.9725 | AD92: =AVERAGEIF('Copper Prices'!I:I,'Stock Prices'!AB92,'Copper Prices'!J:J) -> 1479.55 | AE92: 923.585 | AH92: 0.01935735181 | AI92: -0.07165634842 | AJ92: 0.03138325392 | AL92: 2002-08-31 | AM92: 0.4042307214 | AN92: 0.4298924793 | AO92: 1.534657442
A93: 1988-09-12 | B93: 1988-09-30 | C93: 1988 | D93: 270.65 | F93: 1989-01-30 | G93: 2.36 | I93: 1997-03-17 | J93: 1997 | K93: 1997-03-31 | L93: 10.9 | AB93: 2002-09-30 | AC93: 5.014 | AD93: =AVERAGEIF('Copper Prices'!I:I,'Stock Prices'!AB93,'Copper Prices'!J:J) -> 1478.71 | AE93: 851.414 | AH93: -0.1749316005 | AI93: -0.0005679014168 | AJ93: -0.08136433979 | AL93: 2002-09-30 | AM93: 0.3335179943 | AN93: 0.4296483428 | AO93: 1.409791053
A94: 1988-09-19 | B94: 1988-09-30 | C94: 1988 | D94: 269.76 | F94: 1989-02-06 | G94: 2.3 | I94: 1997-03-24 | J94: 1997 | K94: 1997-03-31 | L94: 10.72 | AB94: 2002-10-31 | AC94: 4.57 | AD94: =AVERAGEIF('Copper Prices'!I:I,'Stock Prices'!AB94,'Copper Prices'!J:J) -> 1483.76 | AE94: 879.58 | AH94: -0.09272079483 | AI94: 0.003409320527 | AJ94: 0.03254602405 | AL94: 2002-10-31 | AM94: 0.3025939408 | AN94: 0.4311131517 | AO94: 1.455674146
A95: 1988-09-26 | B95: 1988-09-30 | C95: 1988 | D95: 271.91 | F95: 1989-02-13 | G95: 2.06 | I95: 1997-03-31 | J95: 1997 | K95: 1997-03-31 | L95: 10.1 | AB95: 2002-11-30 | AC95: 5.2875 | AD95: =AVERAGEIF('Copper Prices'!I:I,'Stock Prices'!AB95,'Copper Prices'!J:J) -> 1582.29 | AE95: 917.8575 | AH95: 0.1458323395 | AI95: 0.06429375821 | AJ95: 0.042597629 | AL95: 2002-11-30 | AM95: 0.3467219231 | AN95: 0.4588310364 | AO95: 1.517682414
A96: 1988-10-03 | B96: 1988-10-31 | C96: 1988 | D96: 278.07 | F96: 1989-02-21 | G96: 2.14 | I96: 1997-04-07 | J96: 1997 | K96: 1997-04-30 | L96: 9.64 | AB96: 2002-12-31 | AC96: 5.97 | AD96: =AVERAGEIF('Copper Prices'!I:I,'Stock Prices'!AB96,'Copper Prices'!J:J) -> 1595.68 | AE96: 896.292 | AH96: 0.121401383 | AI96: 0.008426812863 | AJ96: -0.02377589707 | AL96: 2002-12-31 | AM96: 0.3888144441 | AN96: 0.4626975197 | AO96: 1.481598153
A97: 1988-10-10 | B97: 1988-10-31 | C97: 1988 | D97: 275.5 | F97: 1989-02-27 | G97: 2.23 | I97: 1997-04-14 | J97: 1997 | K97: 1997-04-30 | L97: 10.8 | AB97: 2003-01-31 | AC97: 6.795 | AD97: =AVERAGEIF('Copper Prices'!I:I,'Stock Prices'!AB97,'Copper Prices'!J:J) -> 1647.66 | AE97: 886.6125 | AH97: 0.1294401202 | AI97: 0.03205612185 | AJ97: -0.01085823172 | AL97: 2003-01-31 | AM97: 0.4391426325 | AN97: 0.4775298078 | AO97: 1.465510617
A98: 1988-10-17 | B98: 1988-10-31 | C98: 1988 | D98: 283.66 | F98: 1989-03-06 | G98: 2.18 | I98: 1997-04-21 | J98: 1997 | K98: 1997-04-30 | L98: 10.31 | AB98: 2003-02-28 | AC98: 6.2925 | AD98: =AVERAGEIF('Copper Prices'!I:I,'Stock Prices'!AB98,'Copper Prices'!J:J) -> 1683.8 | AE98: 838.475 | AH98: -0.07682859958 | AI98: 0.0216970444 | AJ98: -0.05582325534 | AL98: 2003-02-28 | AM98: 0.405403919 | AN98: 0.4878907932 | AO98: 1.383701043
A99: 1988-10-24 | B99: 1988-10-31 | C99: 1988 | D99: 278.53 | F99: 1989-03-13 | G99: 2.18 | I99: 1997-04-28 | J99: 1997 | K99: 1997-04-30 | L99: 10.54 | AB99: 2003-03-31 | AC99: 6.382 | AD99: =AVERAGEIF('Copper Prices'!I:I,'Stock Prices'!AB99,'Copper Prices'!J:J) -> 1658.976 | AE99: 860.06 | AH99: 0.01412307983 | AI99: -0.01485259936 | AJ99: 0.02541738858 | AL99: 2003-03-31 | AM99: 0.4111294709 | AN99: 0.4806443467 | AO99: 1.41887111
A100: 1988-10-31 | B100: 1988-10-31 | C100: 1988 | D100: 276.31 | F100: 1989-03-20 | G100: 2.26 | I100: 1997-05-05 | J100: 1997 | K100: 1997-05-31 | L100: 11.07 | AB100: 2003-04-30 | AC100: 6.7025 | AD100: =AVERAGEIF('Copper Prices'!I:I,'Stock Prices'!AB100,'Copper Prices'!J:J) -> 1587.475 | AE100: 897.6925 | AH100: 0.04899906327 | AI100: -0.04405584093 | AJ100: 0.04282542779 | AL100: 2003-04-30 | AM100: 0.4312744299 | AN100: 0.4594691559 | AO100: 1.479634873
A101: 1988-11-07 | B101: 1988-11-30 | C101: 1988 | D101: 267.92 | F101: 1989-03-27 | G101: 2.22 | I101: 1997-05-12 | J101: 1997 | K101: 1997-05-31 | L101: 10.89 | AB101: 2003-05-31 | AC101: 7.5325 | AD101: =AVERAGEIF('Copper Prices'!I:I,'Stock Prices'!AB101,'Copper Prices'!J:J) -> 1648.275 | AE101: 943.63 | AH101: 0.1167464009 | AI101: 0.03758458287 | AJ101: 0.04990655812 | AL101: 2003-05-31 | AM101: 0.4816241673 | AN101: 0.4767381124 | AO101: 1.553478356
A102: 1988-11-14 | B102: 1988-11-30 | C102: 1988 | D102: 266.47 | F102: 1989-04-03 | G102: 2.18 | I102: 1997-05-19 | J102: 1997 | K102: 1997-05-31 | L102: 10.94 | AB102: 2003-06-30 | AC102: 8.868 | AD102: =AVERAGEIF('Copper Prices'!I:I,'Stock Prices'!AB102,'Copper Prices'!J:J) -> 1686.5 | AE102: 986.796 | AH102: 0.1632222997 | AI102: 0.02292608902 | AJ102: 0.04472919098 | AL102: 2003-06-30 | AM102: 0.5602359715 | AN102: 0.4876678528 | AO102: 1.622964187
A103: 1988-11-21 | B103: 1988-11-30 | C103: 1988 | D103: 267.23 | F103: 1989-04-10 | G103: 2.24 | I103: 1997-05-27 | J103: 1997 | K103: 1997-05-31 | L103: 10.45 | AB103: 2003-07-31 | AC103: 9.7125 | AD103: =AVERAGEIF('Copper Prices'!I:I,'Stock Prices'!AB103,'Copper Prices'!J:J) -> 1710 | AE103: 992.5725 | AH103: 0.09096442394 | AI103: 0.013837995 | AJ103: 0.005836726612 | AL103: 2003-07-31 | AM103: 0.611197514 | AN103: 0.4944161981 | AO103: 1.632436985
A104: 1988-11-28 | B104: 1988-11-30 | C104: 1988 | D104: 271.81 | F104: 1989-04-17 | G104: 2.14 | I104: 1997-06-02 | J104: 1997 | K104: 1997-06-30 | L104: 10.36 | AB104: 2003-08-31 | AC104: 10.58 | AD104: =AVERAGEIF('Copper Prices'!I:I,'Stock Prices'!AB104,'Copper Prices'!J:J) -> 1760.275 | AE104: 992.3325 | AH104: 0.08555171074 | AI104: 0.02897667633 | AJ104: -0.0002418251767 | AL104: 2003-08-31 | AM104: 0.6634865069 | AN104: 0.5087427363 | AO104: 1.63204222
A105: 1988-12-05 | B105: 1988-12-31 | C105: 1988 | D105: 277.03 | F105: 1989-04-24 | G105: 2.16 | I105: 1997-06-09 | J105: 1997 | K105: 1997-06-30 | L105: 10.22 | AB105: 2003-09-30 | AC105: 12.052 | AD105: =AVERAGEIF('Copper Prices'!I:I,'Stock Prices'!AB105,'Copper Prices'!J:J) -> 1789.523 | AE105: 1020.604 | AH105: 0.1302651948 | AI105: 0.01647905705 | AJ105: 0.02809165531 | AL105: 2003-09-30 | AM105: 0.749915706 | AN105: 0.5171263369 | AO105: 1.677888988
A106: 1988-12-12 | B106: 1988-12-31 | C106: 1988 | D106: 276.29 | F106: 1989-05-01 | G106: 2.24 | I106: 1997-06-16 | J106: 1997 | K106: 1997-06-30 | L106: 10.54 | AB106: 2003-10-31 | AC106: 13.8425 | AD106: =AVERAGEIF('Copper Prices'!I:I,'Stock Prices'!AB106,'Copper Prices'!J:J) -> 1920.543 | AE106: 1039.25 | AH106: 0.1385129484 | AI106: 0.07065885466 | AJ106: 0.01810469025 | AL106: 2003-10-31 | AM106: 0.8537887415 | AN106: 0.5536658915 | AO106: 1.708266648
A107: 1988-12-19 | B107: 1988-12-31 | C107: 1988 | D107: 277.87 | F107: 1989-05-08 | G107: 2.29 | I107: 1997-06-23 | J107: 1997 | K107: 1997-06-30 | L107: 10.34 | AB107: 2003-11-30 | AC107: 15.3775 | AD107: =AVERAGEIF('Copper Prices'!I:I,'Stock Prices'!AB107,'Copper Prices'!J:J) -> 2055.425 | AE107: 1049.26 | AH107: 0.1051618324 | AI107: 0.06787468066 | AJ107: 0.009585854653 | AL107: 2003-11-30 | AM107: 0.94357473 | AN107: 0.5912457871 | AO107: 1.724641844
A108: 1988-12-27 | B108: 1988-12-31 | C108: 1988 | D108: 277.72 | F108: 1989-05-15 | G108: 2.36 | I108: 1997-06-30 | J108: 1997 | K108: 1997-06-30 | L108: 10.54 | AB108: 2003-12-31 | AC108: 16.054 | AD108: =AVERAGEIF('Copper Prices'!I:I,'Stock Prices'!AB108,'Copper Prices'!J:J) -> 2201.286 | AE108: 1085.734 | AH108: 0.04305263761 | AI108: 0.06855909582 | AJ108: 0.03417110216 | AL108: 2003-12-31 | AM108: 0.9841981109 | AN108: 0.6317810637 | AO108: 1.783574757
A109: 1989-01-03 | B109: 1989-01-31 | C109: 1989 | D109: 280.67 | F109: 1989-05-22 | G109: 2.3 | I109: 1997-07-07 | J109: 1997 | K109: 1997-07-31 | L109: 10.01 | AB109: 2004-01-31 | AC109: 14.5575 | AD109: =AVERAGEIF('Copper Prices'!I:I,'Stock Prices'!AB109,'Copper Prices'!J:J) -> 2423.571 | AE109: 1133.5925 | AH109: -0.09785171498 | AI109: 0.09620033731 | AJ109: 0.04313553732 | AL109: 2004-01-31 | AM109: 0.8878926379 | AN109: 0.6925586151 | AO109: 1.860510212
A110: 1989-01-09 | B110: 1989-01-31 | C110: 1989 | D110: 283.87 | F110: 1989-05-30 | G110: 2.37 | I110: 1997-07-14 | J110: 1997 | K110: 1997-07-31 | L110: 9.99 | AB110: 2004-02-29 | AC110: 15.4175 | AD110: =AVERAGEIF('Copper Prices'!I:I,'Stock Prices'!AB110,'Copper Prices'!J:J) -> 2759.525 | AE110: 1144.405 | AH110: 0.05739690315 | AI110: 0.1298164911 | AJ110: 0.009493058004 | AL110: 2004-02-29 | AM110: 0.9388549256 | AN110: 0.7824641444 | AO110: 1.878172144
A111: 1989-01-16 | B111: 1989-01-31 | C111: 1989 | D111: 286.63 | F111: 1989-06-05 | G111: 2.36 | I111: 1997-07-21 | J111: 1997 | K111: 1997-07-31 | L111: 9.95 | AB111: 2004-03-31 | AC111: 15.426 | AD111: =AVERAGEIF('Copper Prices'!I:I,'Stock Prices'!AB111,'Copper Prices'!J:J) -> 3008.717 | AE111: 1127.416 | AH111: 0.0005511696283 | AI111: 0.08645517858 | AJ111: -0.01495656278 | AL111: 2004-03-31 | AM111: 0.939372394 | AN111: 0.8501122218 | AO111: 1.850081144
A112: 1989-01-23 | B112: 1989-01-31 | C112: 1989 | D112: 293.82 | F112: 1989-06-12 | G112: 2.31 | I112: 1997-07-28 | J112: 1997 | K112: 1997-07-31 | L112: 10.62 | AB112: 2004-04-30 | AC112: 12.9275 | AD112: =AVERAGEIF('Copper Prices'!I:I,'Stock Prices'!AB112,'Copper Prices'!J:J) -> 2948.725 | AE112: 1130.4575 | AH112: -0.1766975722 | AI112: -0.02014086851 | AJ112: 0.002694129534 | AL112: 2004-04-30 | AM112: 0.7733875725 | AN112: 0.8329902233 | AO112: 1.855065502
A113: 1989-01-30 | B113: 1989-01-31 | C113: 1989 | D113: 296.97 | F113: 1989-06-19 | G113: 2.41 | I113: 1997-08-04 | J113: 1997 | K113: 1997-08-31 | L113: 10.83 | AB113: 2004-05-31 | AC113: 11.6325 | AD113: =AVERAGEIF('Copper Prices'!I:I,'Stock Prices'!AB113,'Copper Prices'!J:J) -> 2733.5 | AE113: 1102.16 | AH113: -0.1055539206 | AI113: -0.07579003418 | AJ113: -0.02535052729 | AL113: 2004-05-31 | AM113: 0.6917534821 | AN113: 0.7698578658 | AO113: 1.808038614
A114: 1989-02-06 | B114: 1989-02-28 | C114: 1989 | D114: 292.02 | F114: 1989-06-26 | G114: 2.43 | I114: 1997-08-11 | J114: 1997 | K114: 1997-08-31 | L114: 10.67 | AB114: 2004-06-30 | AC114: 12.304 | AD114: =AVERAGEIF('Copper Prices'!I:I,'Stock Prices'!AB114,'Copper Prices'!J:J) -> 2686.705 | AE114: 1130.76 | AH114: 0.05612150803 | AI114: -0.01726730361 | AJ114: 0.02561808227 | AL114: 2004-06-30 | AM114: 0.7305757307 | AN114: 0.7565644963 | AO114: 1.854357096
A115: 1989-02-13 | B115: 1989-02-28 | C115: 1989 | D115: 296.76 | F115: 1989-07-03 | G115: 2.5 | I115: 1997-08-18 | J115: 1997 | K115: 1997-08-31 | L115: 10.49 | AB115: 2004-07-31 | AC115: 13.2475 | AD115: =AVERAGEIF('Copper Prices'!I:I,'Stock Prices'!AB115,'Copper Prices'!J:J) -> 2808.432 | AE115: 1100.53 | AH115: 0.07388444262 | AI115: 0.04431078475 | AJ115: -0.02709809108 | AL115: 2004-07-31 | AM115: 0.7845539114 | AN115: 0.7900884628 | AO115: 1.804107558
A116: 1989-02-21 | B116: 1989-02-28 | C116: 1989 | D116: 287.13 | F116: 1989-07-10 | G116: 2.58 | I116: 1997-08-25 | J116: 1997 | K116: 1997-08-31 | L116: 10.13 | AB116: 2004-08-31 | AC116: 13.298 | AD116: =AVERAGEIF('Copper Prices'!I:I,'Stock Prices'!AB116,'Copper Prices'!J:J) -> 2846.095 | AE116: 1089.704 | AH116: 0.003804792595 | AI116: 0.01332155881 | AJ116: -0.00988578222 | AL116: 2004-08-31 | AM116: 0.7875389763 | AN116: 0.8006136728 | AO116: 1.786272544
A117: 1989-02-27 | B117: 1989-02-28 | C117: 1989 | D117: 291.18 | F117: 1989-07-17 | G117: 2.64 | I117: 1997-09-02 | J117: 1997 | K117: 1997-09-30 | L117: 10.13 | AB117: 2004-09-30 | AC117: 14.7125 | AD117: =AVERAGEIF('Copper Prices'!I:I,'Stock Prices'!AB117,'Copper Prices'!J:J) -> 2894.864 | AE117: 1123.52 | AH117: 0.1010838246 | AI117: 0.01699025308 | AJ117: 0.03056051427 | AL117: 2004-09-30 | AM117: 0.8671464281 | AN117: 0.8142163017 | AO117: 1.840861951
A118: 1989-03-06 | B118: 1989-03-31 | C118: 1989 | D118: 292.88 | F118: 1989-07-24 | G118: 2.69 | I118: 1997-09-08 | J118: 1997 | K118: 1997-09-30 | L118: 10.04 | AB118: 2004-10-31 | AC118: 14.38 | AD118: =AVERAGEIF('Copper Prices'!I:I,'Stock Prices'!AB118,'Copper Prices'!J:J) -> 3012.238 | AE118: 1114.07 | AH118: -0.02285912029 | AI118: 0.03974519171 | AJ118: -0.008446637842 | AL118: 2004-10-31 | AM118: 0.8473242236 | AN118: 0.8465774847 | AO118: 1.825312857
A119: 1989-03-13 | B119: 1989-03-31 | C119: 1989 | D119: 292.69 | F119: 1989-07-31 | G119: 2.76 | I119: 1997-09-15 | J119: 1997 | K119: 1997-09-30 | L119: 9.9 | AB119: 2004-11-30 | AC119: 14.97 | AD119: =AVERAGEIF('Copper Prices'!I:I,'Stock Prices'!AB119,'Copper Prices'!J:J) -> 3122.795 | AE119: 1178.9 | AH119: 0.04020984614 | AI119: 0.03604511006 | AJ119: 0.05656182416 | AL119: 2004-11-30 | AM119: 0.8813950002 | AN119: 0.8770924633 | AO119: 1.928555882
A120: 1989-03-20 | B120: 1989-03-31 | C120: 1989 | D120: 288.98 | F120: 1989-08-07 | G120: 2.8 | I120: 1997-09-22 | J120: 1997 | K120: 1997-09-30 | L120: 10.13 | AB120: 2004-12-31 | AC120: 14.4175 | AD120: =AVERAGEIF('Copper Prices'!I:I,'Stock Prices'!AB120,'Copper Prices'!J:J) -> 3145.452 | AE120: 1201.0625 | AH120: -0.03760545192 | AI120: 0.007229165881 | AJ120: 0.01862478139 | AL120: 2004-12-31 | AM120: 0.8482497429 | AN120: 0.8834331102 | AO120: 1.964474814
A121: 1989-03-27 | B121: 1989-03-31 | C121: 1989 | D121: 294.87 | F121: 1989-08-14 | G121: 2.82 | I121: 1997-09-29 | J121: 1997 | K121: 1997-09-30 | L121: 10.69 | AB121: 2005-01-31 | AC121: 14.124 | AD121: =AVERAGEIF('Copper Prices'!I:I,'Stock Prices'!AB121,'Copper Prices'!J:J) -> 3170 | AE121: 1182.594 | AH121: -0.02056726844 | AI121: 0.007773987873 | AJ121: -0.01549625089 | AL121: 2005-01-31 | AM121: 0.8308035627 | AN121: 0.8903009085 | AO121: 1.934032819
A122: 1989-04-03 | B122: 1989-04-30 | C122: 1989 | D122: 297.16 | F122: 1989-08-21 | G122: 2.88 | I122: 1997-10-06 | J122: 1997 | K122: 1997-10-31 | L122: 10.34 | AB122: 2005-02-28 | AC122: 15.74 | AD122: =AVERAGEIF('Copper Prices'!I:I,'Stock Prices'!AB122,'Copper Prices'!J:J) -> 3253.7 | AE122: 1210.095 | AH122: 0.1083297649 | AI122: 0.02606122244 | AJ122: 0.0229885381 | AL122: 2005-02-28 | AM122: 0.9208043174 | AN122: 0.9135032385 | AO122: 1.978493406
A123: 1989-04-10 | B123: 1989-04-30 | C123: 1989 | D123: 301.36 | F123: 1989-08-28 | G123: 2.91 | I123: 1997-10-13 | J123: 1997 | K123: 1997-10-31 | L123: 10.21 | AB123: 2005-03-31 | AC123: 15.755 | AD123: =AVERAGEIF('Copper Prices'!I:I,'Stock Prices'!AB123,'Copper Prices'!J:J) -> 3379.49 | AE123: 1183.5175 | AH123: 0.00095253222 | AI123: 0.03793200021 | AJ123: -0.02220793241 | AL123: 2005-03-31 | AM123: 0.9216814132 | AN123: 0.9481542435 | AO123: 1.934555158
A124: 1989-04-17 | B124: 1989-04-30 | C124: 1989 | D124: 309.61 | F124: 1989-09-05 | G124: 2.9 | I124: 1997-10-20 | J124: 1997 | K124: 1997-10-31 | L124: 10.05 | AB124: 2005-04-30 | AC124: 14.1325 | AD124: =AVERAGEIF('Copper Prices'!I:I,'Stock Prices'!AB124,'Copper Prices'!J:J) -> 3394.476 | AE124: 1158.1975 | AH124: -0.1086806656 | AI124: 0.004424593938 | AJ124: -0.02162601923 | AL124: 2005-04-30 | AM124: 0.8215124637 | AN124: 0.952349441 | AO124: 1.892718431
A125: 1989-04-24 | B125: 1989-04-30 | C125: 1989 | D125: 309.64 | F125: 1989-09-11 | G125: 2.8 | I125: 1997-10-27 | J125: 1997 | K125: 1997-10-31 | L125: 8.73 | AB125: 2005-05-31 | AC125: 13.764 | AD125: =AVERAGEIF('Copper Prices'!I:I,'Stock Prices'!AB125,'Copper Prices'!J:J) -> 3249.1 | AE125: 1181.896 | AH125: -0.02642062163 | AI125: -0.04377136956 | AJ125: 0.02025501136 | AL125: 2005-05-31 | AM125: 0.7998075937 | AN125: 0.9106638017 | AO125: 1.931055465
A126: 1989-05-01 | B126: 1989-05-31 | C126: 1989 | D126: 307.61 | F126: 1989-09-18 | G126: 2.79 | I126: 1997-11-03 | J126: 1997 | K126: 1997-11-30 | L126: 8.75 | AB126: 2005-06-30 | AC126: 14.685 | AD126: =AVERAGEIF('Copper Prices'!I:I,'Stock Prices'!AB126,'Copper Prices'!J:J) -> 3524.068 | AE126: 1200.27 | AH126: 0.06477007672 | AI126: 0.08123796923 | AJ126: 0.01542660284 | AL126: 2005-06-30 | AM126: 0.8516111929 | AN126: 0.9846442796 | AO126: 1.96084509
A127: 1989-05-08 | B127: 1989-05-31 | C127: 1989 | D127: 313.84 | F127: 1989-09-25 | G127: 2.82 | I127: 1997-11-10 | J127: 1997 | K127: 1997-11-30 | L127: 8.32 | AB127: 2005-07-31 | AC127: 15.6575 | AD127: =AVERAGEIF('Copper Prices'!I:I,'Stock Prices'!AB127,'Copper Prices'!J:J) -> 3614.214 | AE127: 1226.91 | AH127: 0.06412347077 | AI127: 0.02525840044 | AJ127: 0.02195228192 | AL127: 2005-07-31 | AM127: 0.9062194583 | AN127: 1.009514819 | AO127: 2.003890115
A128: 1989-05-15 | B128: 1989-05-31 | C128: 1989 | D128: 321.24 | F128: 1989-10-02 | G128: 2.96 | I128: 1997-11-17 | J128: 1997 | K128: 1997-11-30 | L128: 8.2 | AB128: 2005-08-31 | AC128: 16.542 | AD128: =AVERAGEIF('Copper Prices'!I:I,'Stock Prices'!AB128,'Copper Prices'!J:J) -> 3797.75 | AE128: 1219.928 | AH128: 0.05495256585 | AI128: 0.04953438152 | AJ128: -0.005706972795 | AL128: 2005-08-31 | AM128: 0.9560185428 | AN128: 1.059520511 | AO128: 1.992453968
A129: 1989-05-22 | B129: 1989-05-31 | C129: 1989 | D129: 321.59 | F129: 1989-10-09 | G129: 2.76 | I129: 1997-11-24 | J129: 1997 | K129: 1997-11-30 | L129: 7.63 | AB129: 2005-09-30 | AC129: 18.21 | AD129: =AVERAGEIF('Copper Prices'!I:I,'Stock Prices'!AB129,'Copper Prices'!J:J) -> 3857.841 | AE129: 1230.8725 | AH129: 0.09606829247 | AI129: 0.01569891446 | AJ129: 0.008931426898 | AL129: 2005-09-30 | AM129: 1.047861612 | AN129: 1.076153833 | AO129: 2.010249425
A130: 1989-05-30 | B130: 1989-05-31 | C130: 1989 | D130: 325.52 | F130: 1989-10-16 | G130: 2.71 | I130: 1997-12-01 | J130: 1997 | K130: 1997-12-31 | L130: 7.29 | AB130: 2005-10-31 | AC130: 19.278 | AD130: =AVERAGEIF('Copper Prices'!I:I,'Stock Prices'!AB130,'Copper Prices'!J:J) -> 4059.762 | AE130: 1196.122 | AH130: 0.05699365562 | AI130: 0.05101665064 | AJ130: -0.02863861049 | AL130: 2005-10-31 | AM130: 1.107583076 | AN130: 1.131055597 | AO130: 1.952678675
A131: 1989-06-05 | B131: 1989-06-30 | C131: 1989 | D131: 326.69 | F131: 1989-10-23 | G131: 2.65 | I131: 1997-12-08 | J131: 1997 | K131: 1997-12-31 | L131: 5.81 | AB131: 2005-11-30 | AC131: 21.1225 | AD131: =AVERAGEIF('Copper Prices'!I:I,'Stock Prices'!AB131,'Copper Prices'!J:J) -> 4269.341 | AE131: 1254.08 | AH131: 0.09137427368 | AI131: 0.05033513157 | AJ131: 0.04731757901 | AL131: 2005-11-30 | AM131: 1.208787675 | AN131: 1.18798743 | AO131: 2.045074702
A132: 1989-06-12 | B132: 1989-06-30 | C132: 1989 | D132: 321.35 | F132: 1989-10-30 | G132: 2.77 | I132: 1997-12-15 | J132: 1997 | K132: 1997-12-31 | L132: 5.49 | AB132: 2005-12-31 | AC132: 22.13 | AD132: =AVERAGEIF('Copper Prices'!I:I,'Stock Prices'!AB132,'Copper Prices'!J:J) -> 4576.775 | AE132: 1260.91 | AH132: 0.04659533102 | AI132: 0.06953511885 | AJ132: 0.00543144648 | AL132: 2005-12-31 | AM132: 1.265111537 | AN132: 1.270594277 | AO132: 2.056182416
A133: 1989-06-19 | B133: 1989-06-30 | C133: 1989 | D133: 328 | F133: 1989-11-06 | G133: 2.71 | I133: 1997-12-22 | J133: 1997 | K133: 1997-12-31 | L133: 5.56 | AB133: 2006-01-31 | AC133: 24.696 | AD133: =AVERAGEIF('Copper Prices'!I:I,'Stock Prices'!AB133,'Copper Prices'!J:J) -> 4734.333 | AE133: 1276.46 | AH133: 0.1097071331 | AI133: 0.0338462492 | AJ133: 0.01225693902 | AL133: 2006-01-31 | AM133: 1.403903296 | AN133: 1.313599127 | AO133: 2.081384919
A134: 1989-06-26 | B134: =EOMONTH(A134,0) -> 1989-06-30 | C134: =YEAR(A134) -> 1989 | D134: 317.98 | F134: 1989-11-13 | G134: 2.59 | I134: 1997-12-29 | J134: =YEAR(I134) -> 1997 | K134: =EOMONTH(I134,0) -> 1997-12-31 | L134: 5.81 | AB134: 2006-02-28 | AC134: 21.635 | AD134: =AVERAGEIF('Copper Prices'!I:I,'Stock Prices'!AB134,'Copper Prices'!J:J) -> 4982.4 | AE134: 1282.7225 | AH134: -0.1323289135 | AI134: 0.05107085183 | AJ134: 0.004894150769 | AL134: 2006-02-28 | AM134: 1.218126298 | AN134: 1.380685754 | AO134: 2.09157153
A135: 1989-07-03 | B135: 1989-07-31 | C135: 1989 | D135: 324.91 | F135: 1989-11-20 | G135: 2.6 | I135: 1998-01-05 | J135: 1998 | K135: 1998-01-31 | L135: 5.24 | AB135: 2006-03-31 | AC135: 22.37 | AD135: =AVERAGEIF('Copper Prices'!I:I,'Stock Prices'!AB135,'Copper Prices'!J:J) -> 5102.848 | AE135: 1296.6225 | AH135: 0.03340840183 | AI135: 0.02388711258 | AJ135: 0.01077803439 | AL135: 2006-03-31 | AM135: 1.258821951 | AN135: 1.41366635 | AO135: 2.11411456
A136: 1989-07-10 | B136: 1989-07-31 | C136: 1989 | D136: 331.84 | F136: 1989-11-27 | G136: 2.69 | I136: 1998-01-12 | J136: 1998 | K136: 1998-01-31 | L136: 5.19 | AB136: 2006-04-30 | AC136: =AVERAGEIF(K:K,AB136,L:L) -> 26.54 | AD136: =AVERAGEIF('Copper Prices'!I:I,'Stock Prices'!AB136,'Copper Prices'!J:J) -> 6387.778 | AE136: =AVERAGEIF(B:B,AB136,D:D) -> 1301.6275 | AH136: 0.1709322534 | AI136: 0.2245876618 | AJ136: 0.003852597857 | AL136: 2006-04-30 | AM136: 1.473995224 | AN136: 1.73115837 | AO136: 2.122259393
A137: 1989-07-17 | B137: 1989-07-31 | C137: 1989 | D137: 335.9 | F137: 1989-12-04 | G137: 2.66 | I137: 1998-01-20 | J137: 1998 | K137: 1998-01-31 | L137: 5.1 | AB137: =EOMONTH(AB136,1) -> 2006-05-31 | AC137: 24.954 | AD137: =AVERAGEIF('Copper Prices'!I:I,'Stock Prices'!AB137,'Copper Prices'!J:J) -> 8045.857 | AE137: 1290.482 | AH137: =LN(AC137/AC136) -> -0.06161889892 | AI137: =LN(AD137/AD136) -> 0.2307708235 | AJ137: =LN(AE137/AE136) -> -0.008599612545 | AL137: 2006-05-31 | AM137: =AM136*(1+AH137) -> 1.383169261 | AN137: =AN136*(1+AI137) -> 2.130659212 | AO137: =AO136*(1+AJ137) -> 2.104008785
A138: 1989-07-24 | B138: 1989-07-31 | C138: 1989 | D138: 342.15 | F138: 1989-12-11 | G138: 2.63 | I138: 1998-01-26 | J138: 1998 | K138: 1998-01-31 | L138: 5.37 | AB138: 2006-06-30 | AC138: 21.3125 | AD138: =AVERAGEIF('Copper Prices'!I:I,'Stock Prices'!AB138,'Copper Prices'!J:J) -> 7197.614 | AE138: 1254.635 | AH138: -0.1577403749 | AI138: -0.1114077184 | AJ138: -0.02817109837 | AL138: 2006-06-30 | AM138: 1.164987623 | AN138: 1.893287331 | AO138: 2.044736546
A139: 1989-07-31 | B139: 1989-07-31 | C139: 1989 | D139: 343.92 | F139: 1989-12-18 | G139: 2.74 | I139: 1998-02-02 | J139: 1998 | K139: 1998-02-28 | L139: 5.67 | AB139: 2006-07-31 | AC139: 22.84 | AD139: =AVERAGEIF('Copper Prices'!I:I,'Stock Prices'!AB139,'Copper Prices'!J:J) -> 7712.095 | AE139: 1259.976 | AH139: 0.06921962974 | AI139: 0.06904029349 | AJ139: 0.004247979534 | AL139: 2006-07-31 | AM139: 1.245627635 | AN139: 2.024000444 | AO139: 2.053422545
A140: 1989-08-07 | B140: 1989-08-31 | C140: 1989 | D140: 344.74 | F140: 1989-12-26 | G140: 2.77 | I140: 1998-02-09 | J140: 1998 | K140: 1998-02-28 | L140: 5.58 | AB140: 2006-08-31 | AC140: 23.8825 | AD140: =AVERAGEIF('Copper Prices'!I:I,'Stock Prices'!AB140,'Copper Prices'!J:J) -> 7695.659 | AE140: 1293.785 | AH140: 0.04463258837 | AI140: -0.002133472047 | AJ140: 0.02647935764 | AL140: 2006-08-31 | AM140: 1.301223221 | AN140: 2.019682296 | AO140: 2.107795855
A141: 1989-08-14 | B141: 1989-08-31 | C141: 1989 | D141: 346.03 | F141: 1990-01-02 | G141: 2.9 | I141: 1998-02-17 | J141: 1998 | K141: 1998-02-28 | L141: 5.17 | AB141: 2006-09-30 | AC141: 23.0175 | AD141: =AVERAGEIF('Copper Prices'!I:I,'Stock Prices'!AB141,'Copper Prices'!J:J) -> 7602.357 | AE141: 1317.3025 | AH141: -0.03689117698 | AI141: -0.01219807286 | AJ141: 0.01801405427 | AL141: 2006-09-30 | AM141: 1.253219565 | AN141: 1.995046064 | AO141: 2.145765804
A142: 1989-08-21 | B142: 1989-08-31 | C142: 1989 | D142: 350.52 | F142: 1990-01-08 | G142: 2.92 | I142: 1998-02-23 | J142: 1998 | K142: 1998-02-28 | L142: 5.51 | AB142: 2006-10-31 | AC142: 24.762 | AD142: =AVERAGEIF('Copper Prices'!I:I,'Stock Prices'!AB142,'Copper Prices'!J:J) -> 7500.386 | AE142: 1365.09 | AH142: 0.07305542382 | AI142: -0.01350384491 | AJ142: 0.03563427546 | AL142: 2006-10-31 | AM142: 1.344774051 | AN142: 1.968105271 | AO142: 2.222228614
A143: 1989-08-28 | B143: 1989-08-31 | C143: 1989 | D143: 353.73 | F143: 1990-01-15 | G143: 2.9 | I143: 1998-03-02 | J143: 1998 | K143: 1998-03-31 | L143: 5.17 | AB143: 2006-11-30 | AC143: 25.96 | AD143: =AVERAGEIF('Copper Prices'!I:I,'Stock Prices'!AB143,'Copper Prices'!J:J) -> 7029.182 | AE143: 1394.94 | AH143: 0.04724667184 | AI143: -0.0648841453 | AJ143: 0.02163104307 | AL143: 2006-11-30 | AM143: 1.408310149 | AN143: 1.840406443 | AO143: 2.270297737
A144: 1989-09-05 | B144: 1989-09-30 | C144: 1989 | D144: 348.76 | F144: 1990-01-22 | G144: 2.85 | I144: 1998-03-09 | J144: 1998 | K144: 1998-03-31 | L144: 5.3 | AB144: 2006-12-31 | AC144: 25.0825 | AD144: =AVERAGEIF('Copper Prices'!I:I,'Stock Prices'!AB144,'Copper Prices'!J:J) -> 6675.105 | AE144: 1416.4975 | AH144: -0.03438650002 | AI144: -0.05168540609 | AJ144: 0.01533587178 | AL144: 2006-12-31 | AM144: 1.359883293 | AN144: 1.745284288 | AO144: 2.305114732
A145: 1989-09-11 | B145: 1989-09-30 | C145: 1989 | D145: 345.06 | F145: 1990-01-29 | G145: 2.92 | I145: 1998-03-16 | J145: 1998 | K145: 1998-03-31 | L145: 6.11 | AB145: 2007-01-31 | AC145: 23.878 | AD145: =AVERAGEIF('Copper Prices'!I:I,'Stock Prices'!AB145,'Copper Prices'!J:J) -> 5669.659 | AE145: 1428.302 | AH145: -0.04921285889 | AI145: -0.1632559597 | AJ145: 0.008299050778 | AL145: 2007-01-31 | AM145: 1.292959548 | AN145: 1.460356227 | AO145: 2.324244996
A146: 1989-09-18 | B146: 1989-09-30 | C146: 1989 | D146: 347.05 | F146: 1990-02-05 | G146: 2.74 | I146: 1998-03-23 | J146: 1998 | K146: 1998-03-31 | L146: 7.36 | AB146: 2007-02-28 | AC146: 24.6075 | AD146: =AVERAGEIF('Copper Prices'!I:I,'Stock Prices'!AB146,'Copper Prices'!J:J) -> 5676.45 | AE146: 1432.99 | AH146: 0.0300937416 | AI146: 0.001197062502 | AJ146: 0.003276844303 | AL146: 2007-02-28 | AM146: 1.331869538 | AN146: 1.462104365 | AO146: 2.331861185
A147: 1989-09-25 | B147: 1989-09-30 | C147: 1989 | D147: 349.15 | F147: 1990-02-12 | G147: 2.83 | I147: 1998-03-30 | J147: 1998 | K147: 1998-03-31 | L147: 7.34 | AB147: 2007-03-31 | AC147: 26.8075 | AD147: =AVERAGEIF('Copper Prices'!I:I,'Stock Prices'!AB147,'Copper Prices'!J:J) -> 6452.477 | AE147: 1411.69 | AH147: 0.08563042459 | AI147: 0.1281380508 | AJ147: -0.01497560223 | AL147: 2007-03-31 | AM147: 1.445918093 | AN147: 1.649455568 | AO147: 2.29694016
A148: 1989-10-02 | B148: 1989-10-31 | C148: 1989 | D148: 358.78 | F148: 1990-02-20 | G148: 2.78 | I148: 1998-04-06 | J148: 1998 | K148: 1998-04-30 | L148: 7.18 | AB148: 2007-04-30 | AC148: 30.49 | AD148: =AVERAGEIF('Copper Prices'!I:I,'Stock Prices'!AB148,'Copper Prices'!J:J) -> 7766.474 | AE148: 1476.13 | AH148: 0.1287170619 | AI148: 0.1853521766 | AJ148: 0.04463622996 | AL148: 2007-04-30 | AM148: 1.632032421 | AN148: 1.955185748 | AO148: 2.399466909
A149: 1989-10-09 | B149: 1989-10-31 | C149: 1989 | D149: 333.65 | F149: 1990-02-26 | G149: 2.78 | I149: 1998-04-13 | J149: 1998 | K149: 1998-04-30 | L149: 7.43 | AB149: 2007-05-31 | AC149: 32.65 | AD149: =AVERAGEIF('Copper Prices'!I:I,'Stock Prices'!AB149,'Copper Prices'!J:J) -> 7681.42 | AE149: 1520.1675 | AH149: 0.06844609472 | AI149: -0.01101183883 | AJ149: 0.02939672797 | AL149: 2007-05-31 | AM149: 1.743738667 | AN149: 1.933655557 | AO149: 2.470003385
A150: 1989-10-16 | B150: 1989-10-31 | C150: 1989 | D150: 347.16 | F150: 1990-03-05 | G150: 2.79 | I150: 1998-04-20 | J150: 1998 | K150: 1998-04-30 | L150: 7.33 | AB150: 2007-06-30 | AC150: 35.72 | AD150: =AVERAGEIF('Copper Prices'!I:I,'Stock Prices'!AB150,'Copper Prices'!J:J) -> 7474.38 | AE150: 1511.6225 | AH150: 0.08986590029 | AI150: -0.02732325321 | AJ150: -0.005636948883 | AL150: 2007-06-30 | AM150: 1.900441312 | AN150: 1.880821797 | AO150: 2.456080102
A151: 1989-10-23 | B151: 1989-10-31 | C151: 1989 | D151: 335.06 | F151: 1990-03-12 | G151: 2.79 | I151: 1998-04-27 | J151: 1998 | K151: 1998-04-30 | L151: 6.67 | AB151: 2007-07-31 | AC151: 40.21 | AD151: =AVERAGEIF('Copper Prices'!I:I,'Stock Prices'!AB151,'Copper Prices'!J:J) -> 7972.57 | AE151: 1501.81 | AH151: 0.1184049649 | AI151: 0.06452572735 | AJ151: -0.006512529935 | AL151: 2007-07-31 | AM151: 2.125462999 | AN151: 2.002183192 | AO151: 2.440084807
A152: 1989-10-30 | B152: 1989-10-31 | C152: 1989 | D152: 337.62 | F152: 1990-03-19 | G152: 2.79 | I152: 1998-05-04 | J152: 1998 | K152: 1998-05-31 | L152: 6.03 | AB152: 2007-08-31 | AC152: 37.1275 | AD152: =AVERAGEIF('Copper Prices'!I:I,'Stock Prices'!AB152,'Copper Prices'!J:J) -> 7513.5 | AE152: 1463.235 | AH152: -0.07975778599 | AI152: -0.05930549756 | AJ152: -0.02602130935 | AL152: 2007-08-31 | AM152: 1.955940776 | AN152: 1.883442721 | AO152: 2.376590605
A153: 1989-11-06 | B153: 1989-11-30 | C153: 1989 | D153: 339.1 | F153: 1990-03-26 | G153: 2.71 | I153: 1998-05-11 | J153: 1998 | K153: 1998-05-31 | L153: 6 | AB153: 2007-09-30 | AC153: 44.1075 | AD153: =AVERAGEIF('Copper Prices'!I:I,'Stock Prices'!AB153,'Copper Prices'!J:J) -> 7648.975 | AE153: 1497.575 | AH153: 0.1722719011 | AI153: 0.01787024945 | AJ153: 0.02319739524 | AL153: 2007-09-30 | AM153: 2.292894412 | AN153: 1.917100312 | AO153: 2.431721317
A154: 1989-11-13 | B154: 1989-11-30 | C154: 1989 | D154: 341.61 | F154: 1990-04-02 | G154: 2.71 | I154: 1998-05-18 | J154: 1998 | K154: 1998-05-31 | L154: 6.28 | AB154: 2007-10-31 | AC154: 49.896 | AD154: =AVERAGEIF('Copper Prices'!I:I,'Stock Prices'!AB154,'Copper Prices'!J:J) -> 8008.435 | AE154: 1532.99 | AH154: 0.1233110032 | AI154: 0.04592370928 | AJ154: 0.02337294349 | AL154: 2007-10-31 | AM154: 2.575633522 | AN154: 2.00514067 | AO154: 2.488557802
A155: 1989-11-20 | B155: 1989-11-30 | C155: 1989 | D155: 343.97 | F155: 1990-04-09 | G155: 2.64 | I155: 1998-05-26 | J155: 1998 | K155: 1998-05-31 | L155: 6.14 | AB155: 2007-11-30 | AC155: 44.255 | AD155: =AVERAGEIF('Copper Prices'!I:I,'Stock Prices'!AB155,'Copper Prices'!J:J) -> 6966.705 | AE155: 1458.57 | AH155: -0.1199724798 | AI155: -0.1393529885 | AJ155: -0.04976357302 | AL155: 2007-11-30 | AM155: 2.266628381 | AN155: 1.725718325 | AO155: 2.364718274
A156: 1989-11-27 | B156: 1989-11-30 | C156: 1989 | D156: 350.63 | F156: 1990-04-16 | G156: 2.61 | I156: 1998-06-01 | J156: 1998 | K156: 1998-06-30 | L156: 6.21 | AB156: 2007-12-31 | AC156: 45.596 | AD156: =AVERAGEIF('Copper Prices'!I:I,'Stock Prices'!AB156,'Copper Prices'!J:J) -> 6587.667 | AE156: 1469.438 | AH156: 0.02985163395 | AI156: -0.05594310809 | AJ156: 0.007423511076 | AL156: 2007-12-31 | AM156: 2.334290942 | AN156: 1.629176278 | AO156: 2.382272786
A157: 1989-12-04 | B157: 1989-12-31 | C157: 1989 | D157: 348.69 | F157: 1990-04-23 | G157: 2.5 | I157: 1998-06-08 | J157: 1998 | K157: 1998-06-30 | L157: 5.87 | AB157: 2008-01-31 | AC157: 39.2375 | AD157: =AVERAGEIF('Copper Prices'!I:I,'Stock Prices'!AB157,'Copper Prices'!J:J) -> 7061.023 | AE157: 1363.06 | AH157: -0.1501870712 | AI157: 0.06939067727 | AJ157: -0.07514784248 | AL157: 2008-01-31 | AM157: 1.983710622 | AN157: 1.742225924 | AO157: 2.203250126
A158: 1989-12-11 | B158: 1989-12-31 | C158: 1989 | D158: 350.14 | F158: 1990-04-30 | G158: 2.61 | I158: 1998-06-15 | J158: 1998 | K158: 1998-06-30 | L158: 5.59 | AB158: 2008-02-29 | AC158: 42.525 | AD158: =AVERAGEIF('Copper Prices'!I:I,'Stock Prices'!AB158,'Copper Prices'!J:J) -> 7887.69 | AE158: 1341.255 | AH158: 0.08045921611 | AI158: 0.1107133745 | AJ158: -0.01612642947 | AL158: 2008-02-29 | AM158: 2.143318424 | AN158: 1.935113635 | AO158: 2.167719568
A159: 1989-12-18 | B159: 1989-12-31 | C159: 1989 | D159: 347.42 | F159: 1990-05-07 | G159: 2.72 | I159: 1998-06-22 | J159: 1998 | K159: 1998-06-30 | L159: 5.68 | AB159: 2008-03-31 | AC159: 43.634 | AD159: =AVERAGEIF('Copper Prices'!I:I,'Stock Prices'!AB159,'Copper Prices'!J:J) -> 8439.289 | AE159: 1319.328 | AH159: 0.02574452469 | AI159: 0.06759474703 | AJ159: -0.01648322676 | AL159: 2008-03-31 | AM159: 2.198497138 | AN159: 2.065917151 | AO159: 2.131988555
A160: 1989-12-26 | B160: 1989-12-31 | C160: 1989 | D160: 353.4 | F160: 1990-05-14 | G160: 2.61 | I160: 1998-06-29 | J160: 1998 | K160: 1998-06-30 | L160: 5.55 | AB160: 2008-04-30 | AC160: 49.7 | AD160: =AVERAGEIF('Copper Prices'!I:I,'Stock Prices'!AB160,'Copper Prices'!J:J) -> 8684.932 | AE160: 1383.725 | AH160: 0.1301682701 | AI160: 0.02869150672 | AJ160: 0.04765662197 | AL160: 2008-04-30 | AM160: 2.484671707 | AN160: 2.125191427 | AO160: 2.233591928
A161: 1990-01-02 | B161: 1990-01-31 | C161: 1990 | D161: 352.2 | F161: 1990-05-21 | G161: 2.62 | I161: 1998-07-06 | J161: 1998 | K161: 1998-07-31 | L161: 5.48 | AB161: 2008-05-31 | AC161: 52.3625 | AD161: =AVERAGEIF('Copper Prices'!I:I,'Stock Prices'!AB161,'Copper Prices'!J:J) -> 8382.75 | AE161: 1397.485 | AH161: 0.05218575317 | AI161: -0.03541354712 | AJ161: 0.009895054507 | AL161: 2008-05-31 | AM161: 2.614336171 | AN161: 2.04993086 | AO161: 2.255693442
A162: 1990-01-08 | B162: 1990-01-31 | C162: 1990 | D162: 339.93 | F162: 1990-05-29 | G162: 2.78 | I162: 1998-07-13 | J162: 1998 | K162: 1998-07-31 | L162: 5.96 | AB162: 2008-06-30 | AC162: 51.646 | AD162: =AVERAGEIF('Copper Prices'!I:I,'Stock Prices'!AB162,'Copper Prices'!J:J) -> 8260.595 | AE162: 1315.984 | AH162: -0.01377793804 | AI162: -0.01467940411 | AJ162: -0.06008951776 | AL162: 2008-06-30 | AM162: 2.57831601 | AN162: 2.019839097 | AO162: 2.12014991
A163: 1990-01-15 | B163: 1990-01-31 | C163: 1990 | D163: 339.15 | F163: 1990-06-04 | G163: 2.74 | I163: 1998-07-20 | J163: 1998 | K163: 1998-07-31 | L163: 5.79 | AB163: 2008-07-31 | AC163: 44.465 | AD163: =AVERAGEIF('Copper Prices'!I:I,'Stock Prices'!AB163,'Copper Prices'!J:J) -> 8414.043 | AE163: 1254.56 | AH163: -0.1497103854 | AI163: 0.01840547685 | AJ163: -0.04779976127 | AL163: 2008-07-31 | AM163: 2.192315326 | AN163: 2.057015199 | AO163: 2.018807251
A164: 1990-01-22 | B164: 1990-01-31 | C164: 1990 | D164: 325.8 | F164: 1990-06-11 | G164: 2.77 | I164: 1998-07-27 | J164: 1998 | K164: 1998-07-31 | L164: 5.45 | AB164: 2008-08-31 | AC164: 39.0275 | AD164: =AVERAGEIF('Copper Prices'!I:I,'Stock Prices'!AB164,'Copper Prices'!J:J) -> 7634.7 | AE164: 1292.3875 | AH164: -0.130435837 | AI164: -0.09719845052 | AJ164: 0.02970636949 | AL164: 2008-08-31 | AM164: 1.906358842 | AN164: 1.857076509 | AO164: 2.078778685
A165: 1990-01-29 | B165: 1990-01-31 | C165: 1990 | D165: 330.92 | F165: 1990-06-18 | G165: 2.84 | I165: 1998-08-03 | J165: 1998 | K165: 1998-08-31 | L165: 5.45 | AB165: 2008-09-30 | AC165: 29.452 | AD165: =AVERAGEIF('Copper Prices'!I:I,'Stock Prices'!AB165,'Copper Prices'!J:J) -> 6990.864 | AE165: 1212.318 | AH165: -0.2815047063 | AI165: -0.08809949141 | AJ165: -0.06395705352 | AL165: 2008-09-30 | AM165: 1.369709856 | AN165: 1.693469013 | AO165: 1.945826125
A166: 1990-02-05 | B166: 1990-02-28 | C166: 1990 | D166: 333.62 | F166: 1990-06-25 | G166: 2.84 | I166: 1998-08-10 | J166: 1998 | K166: 1998-08-31 | L166: 4.92 | AB166: 2008-10-31 | AC166: 13.9275 | AD166: =AVERAGEIF('Copper Prices'!I:I,'Stock Prices'!AB166,'Copper Prices'!J:J) -> 4925.696 | AE166: 921.3225 | AH166: -0.7488965166 | AI166: -0.3501385693 | AJ166: -0.2744793706 | AL166: 2008-10-31 | AM166: 0.343938916 | AN166: 1.100520195 | AO166: 1.411736995
A167: 1990-02-12 | B167: 1990-02-28 | C167: 1990 | D167: 332.72 | F167: 1990-07-02 | G167: 3.04 | I167: 1998-08-17 | J167: 1998 | K167: 1998-08-31 | L167: 4.71 | AB167: 2008-11-30 | AC167: 10.71 | AD167: =AVERAGEIF('Copper Prices'!I:I,'Stock Prices'!AB167,'Copper Prices'!J:J) -> 3717 | AE167: 875.1375 | AH167: -0.2626874185 | AI167: -0.2815486931 | AJ167: -0.05142912096 | AL167: 2008-11-30 | AM167: 0.2535904901 | AN167: 0.7906701726 | AO167: 1.339132602
A168: 1990-02-20 | B168: 1990-02-28 | C168: 1990 | D168: 324.15 | F168: 1990-07-09 | G168: 3.25 | I168: 1998-08-24 | J168: 1998 | K168: 1998-08-31 | L168: 4.37 | AB168: 2008-12-31 | AC168: 10.104 | AD168: =AVERAGEIF('Copper Prices'!I:I,'Stock Prices'!AB168,'Copper Prices'!J:J) -> 3071.976 | AE168: 889.656 | AH168: -0.05824649941 | AI168: -0.1905958886 | AJ168: 0.01645385429 | AL168: 2008-12-31 | AM168: 0.2388197317 | AN168: 0.6399716885 | AO168: 1.361166495
A169: 1990-02-26 | B169: 1990-02-28 | C169: 1990 | D169: 335.54 | F169: 1990-07-16 | G169: 3.21 | I169: 1998-08-31 | J169: 1998 | K169: 1998-08-31 | L169: 4.94 | AB169: 2009-01-31 | AC169: 11.4275 | AD169: =AVERAGEIF('Copper Prices'!I:I,'Stock Prices'!AB169,'Copper Prices'!J:J) -> 3220.69 | AE169: 849.575 | AH169: 0.1230913462 | AI169: 0.04727461956 | AJ169: -0.04609864671 | AL169: 2009-01-31 | AM169: 0.268216374 | AN169: 0.6702261066 | AO169: 1.298418562
A170: 1990-03-05 | B170: 1990-03-31 | C170: 1990 | D170: 337.93 | F170: 1990-07-23 | G170: 3.18 | I170: 1998-09-08 | J170: 1998 | K170: 1998-09-30 | L170: 4.94 | AB170: 2009-02-28 | AC170: 13.51 | AD170: =AVERAGEIF('Copper Prices'!I:I,'Stock Prices'!AB170,'Copper Prices'!J:J) -> 3314.725 | AE170: 800.145 | AH170: 0.1674074207 | AI170: 0.02877904162 | AJ170: -0.0599432632 | AL170: 2009-02-28 | AM170: 0.3131177854 | AN170: 0.6895145716 | AO170: 1.220587116
A171: 1990-03-12 | B171: 1990-03-31 | C171: 1990 | D171: 341.91 | F171: 1990-07-30 | G171: 3.32 | I171: 1998-09-14 | J171: 1998 | K171: 1998-09-30 | L171: 4.53 | AB171: 2009-03-31 | AC171: 17.606 | AD171: =AVERAGEIF('Copper Prices'!I:I,'Stock Prices'!AB171,'Copper Prices'!J:J) -> 3749.75 | AE171: 773.382 | AH171: 0.2648096011 | AI171: 0.1233145072 | AJ171: -0.0340198562 | AL171: 2009-03-31 | AM171: 0.3960343812 | AN171: 0.7745417212 | AO171: 1.179062918
A172: 1990-03-19 | B172: 1990-03-31 | C172: 1990 | D172: 337.22 | F172: 1990-08-06 | G172: 3.41 | I172: 1998-09-21 | J172: 1998 | K172: 1998-09-30 | L172: 4.78 | AB172: 2009-04-30 | AC172: 19.545 | AD172: =AVERAGEIF('Copper Prices'!I:I,'Stock Prices'!AB172,'Copper Prices'!J:J) -> 4406.55 | AE172: 867.4775 | AH172: 0.1044797462 | AI172: 0.1614028993 | AJ172: 0.1148164698 | AL172: 2009-04-30 | AM172: 0.4374119529 | AN172: 0.8995550006 | AO172: 1.31443876
A173: 1990-03-26 | B173: 1990-03-31 | C173: 1990 | D173: 339.94 | F173: 1990-08-13 | G173: 3.43 | I173: 1998-09-28 | J173: 1998 | K173: 1998-09-30 | L173: 4.46 | AB173: 2009-05-31 | AC173: 22.5775 | AD173: =AVERAGEIF('Copper Prices'!I:I,'Stock Prices'!AB173,'Copper Prices'!J:J) -> 4568.632 | AE173: 904.5625 | AH173: 0.1442343359 | AI173: 0.03612174618 | AJ173: 0.04186182651 | AL173: 2009-05-31 | AM173: 0.5005017754 | AN173: 0.932048498 | AO173: 1.369463567
A174: 1990-04-02 | B174: 1990-04-30 | C174: 1990 | D174: 340.08 | F174: 1990-08-20 | G174: 3.51 | I174: 1998-10-05 | J174: 1998 | K174: 1998-10-31 | L174: 4.14 | AB174: 2009-06-30 | AC174: 24.134 | AD174: =AVERAGEIF('Copper Prices'!I:I,'Stock Prices'!AB174,'Copper Prices'!J:J) -> 5013.955 | AE174: 924.57 | AH174: 0.06666779951 | AI174: 0.09301120828 | AJ174: 0.02187736317 | AL174: 2009-06-30 | AM174: 0.5338691274 | AN174: 1.018739455 | AO174: 1.399423819
A175: 1990-04-09 | B175: 1990-04-30 | C175: 1990 | D175: 344.34 | F175: 1990-08-27 | G175: 3.5 | I175: 1998-10-12 | J175: 1998 | K175: 1998-10-31 | L175: 4.62 | AB175: 2009-07-31 | AC175: 25.1225 | AD175: =AVERAGEIF('Copper Prices'!I:I,'Stock Prices'!AB175,'Copper Prices'!J:J) -> 5215.543 | AE175: 946.5625 | AH175: 0.04014222429 | AI175: 0.03941818093 | AJ175: 0.02350823666 | AL175: 2009-07-31 | AM175: 0.5552998217 | AN175: 1.058896311 | AO175: 1.432321805
A176: 1990-04-16 | B176: 1990-04-30 | C176: 1990 | D176: 335.12 | F176: 1990-09-04 | G176: 3.45 | I176: 1998-10-19 | J176: 1998 | K176: 1998-10-31 | L176: 4.16 | AB176: 2009-08-31 | AC176: 29.264 | AD176: =AVERAGEIF('Copper Prices'!I:I,'Stock Prices'!AB176,'Copper Prices'!J:J) -> 6165.3 | AE176: 1017.206 | AH176: 0.1525942327 | AI176: 0.1672935915 | AJ176: 0.07197793085 | AL176: 2009-08-31 | AM176: 0.6400353719 | AN176: 1.236042878 | AO176: 1.535417365
A177: 1990-04-23 | B177: 1990-04-30 | C177: 1990 | D177: 329.11 | F177: 1990-09-10 | G177: 3.54 | I177: 1998-10-26 | J177: 1998 | K177: 1998-10-31 | L177: 4.53 | AB177: 2009-09-30 | AC177: 30.865 | AD177: =AVERAGEIF('Copper Prices'!I:I,'Stock Prices'!AB177,'Copper Prices'!J:J) -> 6196.432 | AE177: 1045.155 | AH177: 0.0532647642 | AI177: 0.005036845293 | AJ177: 0.02710554668 | AL177: 2009-09-30 | AM177: 0.6741267051 | AN177: 1.242268635 | AO177: 1.577035692
A178: 1990-04-30 | B178: 1990-04-30 | C178: 1990 | D178: 338.39 | F178: 1990-09-17 | G178: 3.49 | I178: 1998-11-02 | J178: 1998 | K178: 1998-11-30 | L178: 5.31 | AB178: 2009-10-31 | AC178: 34.45 | AD178: =AVERAGEIF('Copper Prices'!I:I,'Stock Prices'!AB178,'Copper Prices'!J:J) -> 6287.977 | AE178: 1068.74 | AH178: 0.1098861416 | AI178: 0.01466575483 | AJ178: 0.02231518472 | AL178: 2009-10-31 | AM178: 0.7482038876 | AN178: 1.260487442 | AO178: 1.612227535
A179: 1990-05-07 | B179: 1990-05-31 | C179: 1990 | D179: 352 | F179: 1990-09-24 | G179: 3.37 | I179: 1998-11-09 | J179: 1998 | K179: 1998-11-30 | L179: 5.27 | AB179: 2009-11-30 | AC179: 37.048 | AD179: =AVERAGEIF('Copper Prices'!I:I,'Stock Prices'!AB179,'Copper Prices'!J:J) -> 6675.595 | AE179: 1090.326 | AH179: 0.07270537172 | AI179: 0.05981894153 | AJ179: 0.01999634959 | AL179: 2009-11-30 | AM179: 0.8026023294 | AN179: 1.335888467 | AO179: 1.644466201
A180: 1990-05-14 | B180: 1990-05-31 | C180: 1990 | D180: 354.64 | F180: 1990-10-01 | G180: 3.22 | I180: 1998-11-16 | J180: 1998 | K180: 1998-11-30 | L180: 5.1 | AB180: 2009-12-31 | AC180: 35.6575 | AD180: =AVERAGEIF('Copper Prices'!I:I,'Stock Prices'!AB180,'Copper Prices'!J:J) -> 6981.714 | AE180: 1112.615 | AH180: -0.03825486576 | AI180: 0.04483610648 | AJ180: 0.02023636641 | AL180: 2009-12-31 | AM180: 0.771898885 | AN180: 1.395784504 | AO180: 1.677744221
A181: 1990-05-21 | B181: 1990-05-31 | C181: 1990 | D181: 354.58 | F181: 1990-10-08 | G181: 3.14 | I181: 1998-11-23 | J181: 1998 | K181: 1998-11-30 | L181: 5.08 | AB181: 2010-01-31 | AC181: 35.46 | AD181: =AVERAGEIF('Copper Prices'!I:I,'Stock Prices'!AB181,'Copper Prices'!J:J) -> 7386.25 | AE181: 1111.66 | AH181: -0.005554202769 | AI181: 0.05632571831 | AJ181: -0.0008587068224 | AL181: 2010-01-31 | AM181: 0.7676116021 | AN181: 1.474403069 | AO181: 1.676303531
A182: 1990-05-29 | B182: 1990-05-31 | C182: 1990 | D182: 363.16 | F182: 1990-10-15 | G182: 3.08 | I182: 1998-11-30 | J182: 1998 | K182: 1998-11-30 | L182: 4.55 | AB182: 2010-02-28 | AC182: 33.5425 | AD182: =AVERAGEIF('Copper Prices'!I:I,'Stock Prices'!AB182,'Copper Prices'!J:J) -> 6848.175 | AE182: 1088.84 | AH182: -0.05559200916 | AI182: -0.07563797026 | AJ182: -0.02074148431 | AL182: 2010-02-28 | AM182: 0.7249385309 | AN182: 1.362882213 | AO182: 1.641534507
A183: 1990-06-04 | B183: 1990-06-30 | C183: 1990 | D183: 358.71 | F183: 1990-10-22 | G183: 3.12 | I183: 1998-12-07 | J183: 1998 | K183: 1998-12-31 | L183: 4.16 | AB183: 2010-03-31 | AC183: 36.708 | AD183: =AVERAGEIF('Copper Prices'!I:I,'Stock Prices'!AB183,'Copper Prices'!J:J) -> 7462.826 | AE183: 1158.656 | AH183: 0.09018142347 | AI183: 0.08595196944 | AJ183: 0.06214780334 | AL183: 2010-03-31 | AM183: 0.7903145195 | AN183: 1.480024624 | AO183: 1.743552271
A184: 1990-06-11 | B184: 1990-06-30 | C184: 1990 | D184: 362.91 | F184: 1990-10-29 | G184: 3.08 | I184: 1998-12-14 | J184: 1998 | K184: 1998-12-31 | L184: 3.88 | AB184: 2010-04-30 | AC184: 36.5025 | AD184: =AVERAGEIF('Copper Prices'!I:I,'Stock Prices'!AB184,'Copper Prices'!J:J) -> 7745.075 | AE184: 1197.6175 | AH184: -0.005613963563 | AI184: 0.03712299463 | AJ184: 0.03307345387 | AL184: 2010-04-30 | AM184: 0.7858777226 | AN184: 1.53496757 | AO184: 1.801217567
A185: 1990-06-18 | B185: 1990-06-30 | C185: 1990 | D185: 355.43 | F185: 1990-11-05 | G185: 3.22 | I185: 1998-12-21 | J185: 1998 | K185: 1998-12-31 | L185: 3.84 | AB185: 2010-05-31 | AC185: 31.1275 | AD185: =AVERAGEIF('Copper Prices'!I:I,'Stock Prices'!AB185,'Copper Prices'!J:J) -> 6837.684 | AE185: 1105.915 | AH185: -0.1592890785 | AI185: -0.1246080797 | AJ185: -0.07966111995 | AL185: 2010-05-31 | AM185: 0.6606959843 | AN185: 1.343698209 | AO185: 1.657730558
A186: 1990-06-25 | B186: 1990-06-30 | C186: 1990 | D186: 358.02 | F186: 1990-11-12 | G186: 3.25 | I186: 1998-12-28 | J186: 1998 | K186: 1998-12-31 | L186: 3.86 | AB186: 2010-06-30 | AC186: 28.926 | AD186: =AVERAGEIF('Copper Prices'!I:I,'Stock Prices'!AB186,'Copper Prices'!J:J) -> 6499.295 | AE186: 1074.666 | AH186: -0.07335082819 | AI186: -0.05075536833 | AJ186: -0.02866313099 | AL186: 2010-06-30 | AM186: 0.6122333867 | AN186: 1.275498311 | AO186: 1.61021481
A187: 1990-07-02 | B187: 1990-07-31 | C187: 1990 | D187: 358.42 | F187: 1990-11-19 | G187: 3.3 | I187: 1999-01-04 | J187: 1999 | K187: 1999-01-31 | L187: 4.46 | AB187: 2010-07-31 | AC187: 30.59 | AD187: =AVERAGEIF('Copper Prices'!I:I,'Stock Prices'!AB187,'Copper Prices'!J:J) -> 6735.25 | AE187: 1086.775 | AH187: 0.05593231351 | AI187: 0.03566121922 | AJ187: 0.01120467936 | AL187: 2010-07-31 | AM187: 0.6464770164 | AN187: 1.320984136 | AO187: 1.628256751
A188: 1990-07-09 | B188: 1990-07-31 | C188: 1990 | D188: 367.31 | F188: 1990-11-26 | G188: 3.27 | I188: 1999-01-11 | J188: 1999 | K188: 1999-01-31 | L188: 4.14 | AB188: 2010-08-31 | AC188: 33.356 | AD188: =AVERAGEIF('Copper Prices'!I:I,'Stock Prices'!AB188,'Copper Prices'!J:J) -> 7283.952 | AE188: 1088.336 | AH188: 0.08656450806 | AI188: 0.07831864336 | AJ188: 0.001435329294 | AL188: 2010-08-31 | AM188: 0.7024389813 | AN188: 1.424441822 | AO188: 1.630593835
A189: 1990-07-16 | B189: 1990-07-31 | C189: 1990 | D189: 361.61 | F189: 1990-12-03 | G189: 3.21 | I189: 1999-01-19 | J189: 1999 | K189: 1999-01-31 | L189: 4.09 | AB189: 2010-09-30 | AC189: 38.3875 | AD189: =AVERAGEIF('Copper Prices'!I:I,'Stock Prices'!AB189,'Copper Prices'!J:J) -> 7709.295 | AE189: 1132.5125 | AH189: 0.1404942195 | AI189: 0.05675317165 | AJ189: 0.03978869155 | AL189: 2010-09-30 | AM189: 0.8011275978 | AN189: 1.505283413 | AO189: 1.69547303
A190: 1990-07-23 | B190: 1990-07-31 | C190: 1990 | D190: 353.44 | F190: 1990-12-10 | G190: 3.13 | I190: 1999-01-25 | J190: 1999 | K190: 1999-01-31 | L190: 3.6 | AB190: 2010-10-31 | AC190: 43.685 | AD190: =AVERAGEIF('Copper Prices'!I:I,'Stock Prices'!AB190,'Copper Prices'!J:J) -> 8292.405 | AE190: 1176.92 | AH190: 0.129272908 | AI190: 0.07291329193 | AJ190: 0.03846224071 | AL190: 2010-10-31 | AM190: 0.904691692 | AN190: 1.615038582 | AO190: 1.760684722
A191: 1990-07-30 | B191: 1990-07-31 | C191: 1990 | D191: 344.86 | F191: 1990-12-17 | G191: 3.02 | I191: 1999-02-01 | J191: 1999 | K191: 1999-02-28 | L191: 4.11 | AB191: 2010-11-30 | AC191: 47.33 | AD191: =AVERAGEIF('Copper Prices'!I:I,'Stock Prices'!AB191,'Copper Prices'!J:J) -> 8469.886 | AE191: 1207.78 | AH191: 0.08013955017 | AI191: 0.02117701367 | AJ191: 0.02588310717 | AL191: 2010-11-30 | AM191: 0.9771932773 | AN191: 1.649240276 | AO191: 1.806256714
A192: 1990-08-06 | B192: 1990-08-31 | C192: 1990 | D192: 335.52 | F192: 1990-12-24 | G192: 3.04 | I192: 1999-02-08 | J192: 1999 | K192: 1999-02-28 | L192: 3.84 | AB192: 2010-12-31 | AC192: 53.88 | AD192: =AVERAGEIF('Copper Prices'!I:I,'Stock Prices'!AB192,'Copper Prices'!J:J) -> 9147.262 | AE192: 1249.68 | AH192: 0.1296150076 | AI192: 0.07693755023 | AJ192: 0.03410355482 | AL192: 2010-12-31 | AM192: 1.103852191 | AN192: 1.776128782 | AO192: 1.867856488
A193: 1990-08-13 | B193: 1990-08-31 | C193: 1990 | D193: 327.83 | F193: 1990-12-31 | G193: 2.94 | I193: 1999-02-16 | J193: 1999 | K193: 1999-02-28 | L193: 3.4 | AB193: 2011-01-31 | AC193: 52.69 | AD193: =AVERAGEIF('Copper Prices'!I:I,'Stock Prices'!AB193,'Copper Prices'!J:J) -> 9555.7 | AE193: 1287.06 | AH193: -0.02233366732 | AI193: 0.04368323555 | AJ193: 0.02947302903 | AL193: 2011-01-31 | AM193: 1.079199124 | AN193: 1.853715834 | AO193: 1.922907877
A194: 1990-08-20 | B194: 1990-08-31 | C194: 1990 | D194: 311.51 | F194: 1991-01-07 | G194: 2.92 | I194: 1999-02-22 | J194: 1999 | K194: 1999-02-28 | L194: 3.49 | AB194: 2011-02-28 | AC194: 49.245 | AD194: =AVERAGEIF('Copper Prices'!I:I,'Stock Prices'!AB194,'Copper Prices'!J:J) -> 9867.6 | AE194: 1328.2975 | AH194: -0.0676178446 | AI194: 0.0321188277 | AJ194: 0.03153749948 | AL194: 2011-02-28 | AM194: 1.006226005 | AN194: 1.913255014 | AO194: 1.983551583
A195: 1990-08-27 | B195: 1990-08-31 | C195: 1990 | D195: 322.56 | F195: 1991-01-14 | G195: 3.02 | I195: 1999-03-01 | J195: 1999 | K195: 1999-03-31 | L195: 3.47 | AB195: 2011-03-31 | AC195: 49.3025 | AD195: =AVERAGEIF('Copper Prices'!I:I,'Stock Prices'!AB195,'Copper Prices'!J:J) -> 9503.36 | AE195: 1307.425 | AH195: 0.00116695008 | AI195: -0.0376112425 | AJ195: -0.01583849311 | AL195: 2011-03-31 | AM195: 1.007400221 | AN195: 1.841295116 | AO195: 1.952135115
A196: 1990-09-04 | B196: 1990-09-30 | C196: 1990 | D196: 323.4 | F196: 1991-01-21 | G196: 3.07 | I196: 1999-03-08 | J196: 1999 | K196: 1999-03-31 | L196: 3.42 | AB196: 2011-04-30 | AC196: 51.205 | AD196: =AVERAGEIF('Copper Prices'!I:I,'Stock Prices'!AB196,'Copper Prices'!J:J) -> 9492.79 | AE196: 1337.21 | AH196: 0.03786239383 | AI196: -0.001112857194 | AJ196: 0.02252579991 | AL196: 2011-04-30 | AM196: 1.045542804 | AN196: 1.839246017 | AO196: 1.99610852
A197: 1990-09-10 | B197: 1990-09-30 | C197: 1990 | D197: 316.83 | F197: 1991-01-28 | G197: 3.08 | I197: 1999-03-15 | J197: 1999 | K197: 1999-03-31 | L197: 3.9 | AB197: 2011-05-31 | AC197: 47.058 | AD197: =AVERAGEIF('Copper Prices'!I:I,'Stock Prices'!AB197,'Copper Prices'!J:J) -> 8959.9 | AE197: 1328.5 | AH197: -0.08445630007 | AI197: -0.05777349688 | AJ197: -0.006534867631 | AL197: 2011-05-31 | AM197: 0.9572401277 | AN197: 1.732986343 | AO197: 1.983064215
A198: 1990-09-17 | B198: =EOMONTH(A198,0) -> 1990-09-30 | C198: =YEAR(A198) -> 1990 | D198: 311.32 | F198: 1991-02-04 | G198: 3.08 | I198: 1999-03-22 | J198: =YEAR(I198) -> 1999 | K198: =EOMONTH(I198,0) -> 1999-03-31 | L198: 4.11 | AB198: 2011-06-30 | AC198: 47.15 | AD198: =AVERAGEIF('Copper Prices'!I:I,'Stock Prices'!AB198,'Copper Prices'!J:J) -> 9066.85 | AE198: 1287.65 | AH198: 0.001953125621 | AI198: 0.01186583881 | AJ198: -0.03123163459 | AL198: 2011-06-30 | AM198: 0.9591097379 | AN198: 1.75354968 | AO198: 1.921129878
A199: 1990-09-24 | B199: 1990-09-30 | C199: 1990 | D199: 306.05 | F199: 1991-02-11 | G199: 3.19 | I199: 1999-03-29 | J199: 1999 | K199: 1999-03-31 | L199: 3.88 | AB199: 2011-07-31 | AC199: 52.145 | AD199: =AVERAGEIF('Copper Prices'!I:I,'Stock Prices'!AB199,'Copper Prices'!J:J) -> 9650.46 | AE199: 1324.31 | AH199: 0.1006942905 | AI199: 0.06238067759 | AJ199: 0.02807271746 | AL199: 2011-07-31 | AM199: 1.055686612 | AN199: 1.862937297 | AO199: 1.975061214
A200: 1990-10-01 | B200: 1990-10-31 | C200: 1990 | D200: 311.5 | F200: 1991-02-19 | G200: 3.21 | I200: 1999-04-05 | J200: 1999 | K200: 1999-04-30 | L200: 4.02 | AB200: 2011-08-31 | AC200: =AVERAGEIF(K:K,AB200,L:L) -> 42.472 | AD200: =AVERAGEIF('Copper Prices'!I:I,'Stock Prices'!AB200,'Copper Prices'!J:J) -> 9000.76 | AE200: =AVERAGEIF(B:B,AB200,D:D) -> 1170.498 | AH200: -0.2051832643 | AI200: -0.06969656439 | AJ200: -0.1234622698 | AL200: 2011-08-31 | AM200: 0.8390773872 | AN200: 1.733096968 | AO200: 1.731215674
... 1167 more rows

Sheet Back-up Data

Sheet Stable Period
B2: Working Capital to EBITDA | C2: ='Working Model'!E295 -> 0.4001303674
B3: EBITDA Growth | C3: 0.02
B5: EBITDA | C5: 100 | D5: =C5*(1+C3) -> 102
B6: Working Capital | C6: =C5*$C$2 -> 40.01303674 | D6: =D5*$C$2 -> 40.81329747
B7: Change in Working Capital | D7: =D6-C6 -> 0.8002607347
B8: Percent of EBITDA | D8: =D7/D5 -> 0.007845693478
B9: Model | D9: ='Working Model'!E297 -> 0.007845693478
C11: =D8 -> 0.007845693478 | D11: 0.25 | E11: =D11+1% -> 0.26 | F11: =E11+1% -> 0.27 | G11: 0.28 | H11: 0.29 | I11: 0.3 | J11: 0.31 | K11: 0.32 | L11: 0.33 | M11: 0.34 | N11: 0.35 | O11: 0.36 | P11: 0.37 | Q11: 0.38 | R11: 0.39 | S11: 0.4 | T11: 0.41 | U11: 0.42 | V11: 0.43 | W11: 0.44 | X11: 0.45 | Y11: 0.46 | Z11: 1
B12: Growth | C12: -0.02 | D12: -0.005102040816 | E12: -0.005306122449 | F12: -0.005510204082 | G12: -0.005714285714 | H12: -0.005918367347 | I12: -0.00612244898 | J12: -0.006326530612 | K12: -0.006530612245 | L12: -0.006734693878 | M12: -0.00693877551 | N12: -0.007142857143 | O12: -0.007346938776 | P12: -0.007551020408 | Q12: -0.007755102041 | R12: -0.007959183673 | S12: -0.008163265306 | T12: -0.008367346939 | U12: -0.008571428571 | V12: -0.008775510204 | W12: -0.008979591837 | X12: -0.009183673469 | Y12: -0.009387755102 | Z12: -0.02040816327
C13: =C12+0.5% -> -0.015 | D13: -0.003807106599 | E13: -0.003959390863 | F13: -0.004111675127 | G13: -0.004263959391 | H13: -0.004416243655 | I13: -0.004568527919 | J13: -0.004720812183 | K13: -0.004873096447 | L13: -0.005025380711 | M13: -0.005177664975 | N13: -0.005329949239 | O13: -0.005482233503 | P13: -0.005634517766 | Q13: -0.00578680203 | R13: -0.005939086294 | S13: -0.006091370558 | T13: -0.006243654822 | U13: -0.006395939086 | V13: -0.00654822335 | W13: -0.006700507614 | X13: -0.006852791878 | Y13: -0.007005076142 | Z13: -0.0152284264
C14: -0.01 | D14: -0.002525252525 | E14: -0.002626262626 | F14: -0.002727272727 | G14: -0.002828282828 | H14: -0.002929292929 | I14: -0.00303030303 | J14: -0.003131313131 | K14: -0.003232323232 | L14: -0.003333333333 | M14: -0.003434343434 | N14: -0.003535353535 | O14: -0.003636363636 | P14: -0.003737373737 | Q14: -0.003838383838 | R14: -0.003939393939 | S14: -0.00404040404 | T14: -0.004141414141 | U14: -0.004242424242 | V14: -0.004343434343 | W14: -0.004444444444 | X14: -0.004545454545 | Y14: -0.004646464646 | Z14: -0.0101010101
C15: -0.005 | D15: -0.001256281407 | E15: -0.001306532663 | F15: -0.00135678392 | G15: -0.001407035176 | H15: -0.001457286432 | I15: -0.001507537688 | J15: -0.001557788945 | K15: -0.001608040201 | L15: -0.001658291457 | M15: -0.001708542714 | N15: -0.00175879397 | O15: -0.001809045226 | P15: -0.001859296482 | Q15: -0.001909547739 | R15: -0.001959798995 | S15: -0.002010050251 | T15: -0.002060301508 | U15: -0.002110552764 | V15: -0.00216080402 | W15: -0.002211055276 | X15: -0.002261306533 | Y15: -0.002311557789 | Z15: -0.005025125628
C16: 0 | D16: 0 | E16: 0 | F16: 0 | G16: 0 | H16: 0 | I16: 0 | J16: 0 | K16: 0 | L16: 0 | M16: 0 | N16: 0 | O16: 0 | P16: 0 | Q16: 0 | R16: 0 | S16: 0 | T16: 0 | U16: 0 | V16: 0 | W16: 0 | X16: 0 | Y16: 0 | Z16: 0
C17: 0.005 | D17: 0.001243781095 | E17: 0.001293532338 | F17: 0.001343283582 | G17: 0.001393034826 | H17: 0.00144278607 | I17: 0.001492537313 | J17: 0.001542288557 | K17: 0.001592039801 | L17: 0.001641791045 | M17: 0.001691542289 | N17: 0.001741293532 | O17: 0.001791044776 | P17: 0.00184079602 | Q17: 0.001890547264 | R17: 0.001940298507 | S17: 0.001990049751 | T17: 0.002039800995 | U17: 0.002089552239 | V17: 0.002139303483 | W17: 0.002189054726 | X17: 0.00223880597 | Y17: 0.002288557214 | Z17: 0.004975124378
C18: 0.01 | D18: 0.002475247525 | E18: 0.002574257426 | F18: 0.002673267327 | G18: 0.002772277228 | H18: 0.002871287129 | I18: 0.00297029703 | J18: 0.003069306931 | K18: 0.003168316832 | L18: 0.003267326733 | M18: 0.003366336634 | N18: 0.003465346535 | O18: 0.003564356436 | P18: 0.003663366337 | Q18: 0.003762376238 | R18: 0.003861386139 | S18: 0.00396039604 | T18: 0.004059405941 | U18: 0.004158415842 | V18: 0.004257425743 | W18: 0.004356435644 | X18: 0.004455445545 | Y18: 0.004554455446 | Z18: 0.009900990099
C19: 0.015 | D19: 0.003694581281 | E19: 0.003842364532 | F19: 0.003990147783 | G19: 0.004137931034 | H19: 0.004285714286 | I19: 0.004433497537 | J19: 0.004581280788 | K19: 0.004729064039 | L19: 0.004876847291 | M19: 0.005024630542 | N19: 0.005172413793 | O19: 0.005320197044 | P19: 0.005467980296 | Q19: 0.005615763547 | R19: 0.005763546798 | S19: 0.005911330049 | T19: 0.0060591133 | U19: 0.006206896552 | V19: 0.006354679803 | W19: 0.006502463054 | X19: 0.006650246305 | Y19: 0.006798029557 | Z19: 0.01477832512
C20: 0.02 | D20: 0.004901960784 | E20: 0.005098039216 | F20: 0.005294117647 | G20: 0.005490196078 | H20: 0.00568627451 | I20: 0.005882352941 | J20: 0.006078431373 | K20: 0.006274509804 | L20: 0.006470588235 | M20: 0.006666666667 | N20: 0.006862745098 | O20: 0.007058823529 | P20: 0.007254901961 | Q20: 0.007450980392 | R20: 0.007647058824 | S20: 0.007843137255 | T20: 0.008039215686 | U20: 0.008235294118 | V20: 0.008431372549 | W20: 0.00862745098 | X20: 0.008823529412 | Y20: 0.009019607843 | Z20: 0.01960784314
C21: 0.025 | D21: 0.006097560976 | E21: 0.006341463415 | F21: 0.006585365854 | G21: 0.006829268293 | H21: 0.007073170732 | I21: 0.007317073171 | J21: 0.00756097561 | K21: 0.007804878049 | L21: 0.008048780488 | M21: 0.008292682927 | N21: 0.008536585366 | O21: 0.008780487805 | P21: 0.009024390244 | Q21: 0.009268292683 | R21: 0.009512195122 | S21: 0.009756097561 | T21: 0.01 | U21: 0.01024390244 | V21: 0.01048780488 | W21: 0.01073170732 | X21: 0.01097560976 | Y21: 0.0112195122 | Z21: 0.0243902439
C22: 0.03 | D22: 0.007281553398 | E22: 0.007572815534 | F22: 0.00786407767 | G22: 0.008155339806 | H22: 0.008446601942 | I22: 0.008737864078 | J22: 0.009029126214 | K22: 0.00932038835 | L22: 0.009611650485 | M22: 0.009902912621 | N22: 0.01019417476 | O22: 0.01048543689 | P22: 0.01077669903 | Q22: 0.01106796117 | R22: 0.0113592233 | S22: 0.01165048544 | T22: 0.01194174757 | U22: 0.01223300971 | V22: 0.01252427184 | W22: 0.01281553398 | X22: 0.01310679612 | Y22: 0.01339805825 | Z22: 0.02912621359
B25: Depreciation Life | C25: ='Working Model'!E299 -> 30
B26: Growth Rate | C26: ='Working Model'!E300 -> 0.019
B27: Column Number | C27: =MATCH(C25,31:31) -> 33
B28: Cap Exp to Depreciation | C28: =INDEX(49:49,C27) -> 1.321149749
B29: Depreication to Net Plant | C29: =INDEX(50:50,C27) -> 0.05916243146
C31: 0 | D31: =C31+1 -> 1 | E31: =D31+1 -> 2 | F31: 3 | G31: 4 | H31: 5 | I31: 6 | J31: 7 | K31: 8 | L31: 9 | M31: 10 | N31: 11 | O31: 12 | P31: 13 | Q31: 14 | R31: 15 | S31: 16 | T31: 17 | U31: 18 | V31: 19 | W31: 20 | X31: 21 | Y31: 22 | Z31: 23 | AA31: 24 | AB31: 25 | AC31: 26 | AD31: 27 | AE31: 28 | AF31: 29 | AG31: 30 | AH31: 31 | AI31: 32 | AJ31: 33 | AK31: 34 | AL31: 35 | AM31: 36 | AN31: 37 | AO31: 38 | AP31: 39 | AQ31: 40 | AR31: 41 | AS31: 42 | AT31: 43 | AU31: 44 | AV31: 45 | AW31: 46 | AX31: 47 | AY31: 48 | AZ31: 49 | BA31: 50 | BB31: 51 | BC31: 52 | BD31: 53 | BE31: 54 | BF31: 55 | BG31: 56 | BH31: 57 | BI31: 58 | BJ31: 59 | BK31: 60 | BL31: 61 | BM31: 62 | BN31: 63 | BO31: 64 | BP31: 65 | BQ31: =BP31+1 -> 66 | BR31: 67 | BS31: 68 | BT31: 69 | BU31: 70 | BV31: 71 | BW31: 72 | BX31: 73 | BY31: 74 | BZ31: 75 | CA31: 76 | CB31: 77 | CC31: 78 | CD31: 79 | CE31: 80 | CF31: 81 | CG31: 82 | CH31: 83 | CI31: 84 | CJ31: 85 | CK31: 86 | CL31: 87 | CM31: 88 | CN31: 89 | CO31: 90 | CP31: 91 | CQ31: 92 | CR31: 93 | CS31: 94 | CT31: 95 | CU31: 96 | CV31: 97 | CW31: 98 | CX31: 99 | CY31: 100
B32: Plant Balance
B33: Opening Balance | D33: =C36 -> 100 | E33: =D36 -> 201.9 | F33: 305.7361 | G33: 411.5450859 | H33: 519.3644425 | I33: 629.2323669 | J33: 741.1877819 | K33: 855.2703498 | L33: 971.5204864 | M33: 1089.979376 | N33: 1210.688984 | O33: 1333.692074 | P33: 1459.032224 | Q33: 1586.753836 | R33: 1716.902159 | S33: 1849.5233 | T33: 1984.664243 | U33: 2122.372863 | V33: 2262.697948 | W33: 2405.689209 | X33: 2551.397304 | Y33: 2699.873853 | Z33: 2851.171456 | AA33: 3005.343713 | AB33: 3162.445244 | AC33: 3322.531704 | AD33: 3485.659806 | AE33: 3651.887342 | AF33: 3821.273202 | AG33: 3993.877393 | AH33: 4069.761063 | AI33: 4147.086523 | AJ33: 4225.881167 | AK33: 4306.172909 | AL33: 4387.990195 | AM33: 4471.362008 | AN33: 4556.317887 | AO33: 4642.887926 | AP33: 4731.102797 | AQ33: 4820.99375 | AR33: 4912.592631 | AS33: 5005.931891 | AT33: 5101.044597 | AU33: 5197.964445 | AV33: 5296.725769 | AW33: 5397.363559 | AX33: 5499.913466 | AY33: 5604.411822 | AZ33: 5710.895647 | BA33: 5819.402664 | BB33: 5929.971315 | BC33: 6042.64077 | BD33: 6157.450944 | BE33: 6274.442512 | BF33: 6393.65692 | BG33: 6515.136401 | BH33: 6638.923993 | BI33: 6765.063549 | BJ33: 6893.599756 | BK33: 7024.578152 | BL33: 7158.045137 | BM33: 7294.047994 | BN33: 7432.634906 | BO33: 7573.854969 | BP33: 7717.758214 | BQ33: =BP36 -> 7864.39562 | BR33: 8013.819137 | BS33: 8166.0817 | BT33: 8321.237252 | BU33: 8479.34076 | BV33: 8640.448235 | BW33: 8804.616751 | BX33: 8971.904469 | BY33: 9142.370654 | BZ33: 9316.075697 | CA33: 9493.081135 | CB33: 9673.449677 | CC33: 9857.24522 | CD33: 10044.53288 | CE33: 10235.379 | CF33: 10429.85121 | CG33: 10628.01838 | CH33: 10829.95073 | CI33: 11035.71979 | CJ33: 11245.39847 | CK33: 11459.06104 | CL33: 11676.7832 | CM33: 11898.64208 | CN33: 12124.71628 | CO33: 12355.08589 | CP33: 12589.83252 | CQ33: 12829.03934 | CR33: 13072.79108 | CS33: 13321.17412 | CT33: 13574.27642 | CU33: 13832.18768 | CV33: 14094.99924 | CW33: 14362.80423 | CX33: 14635.69751 | CY33: 14913.77576
B34: Add: Capital Expenditures | C34: 100 | D34: =C34*(1+$C$26) -> 101.9 | E34: =D34*(1+$C$26) -> 103.8361 | F34: 105.8089859 | G34: 107.8193566 | H34: 109.8679244 | I34: 111.955415 | J34: 114.0825679 | K34: 116.2501366 | L34: 118.4588892 | M34: 120.7096081 | N34: 123.0030907 | O34: 125.3401494 | P34: 127.7216123 | Q34: 130.1483229 | R34: 132.621141 | S34: 135.1409427 | T34: 137.7086206 | U34: 140.3250844 | V34: 142.991261 | W34: 145.708095 | X34: 148.4765488 | Y34: 151.2976032 | Z34: 154.1722577 | AA34: 157.1015306 | AB34: 160.0864596 | AC34: 163.1281024 | AD34: 166.2275363 | AE34: 169.3858595 | AF34: 172.6041908 | AG34: 175.8836705 | AH34: 179.2254602 | AI34: 182.6307439 | AJ34: 186.1007281 | AK34: 189.6366419 | AL34: 193.2397381 | AM34: 196.9112931 | AN34: 200.6526077 | AO34: 204.4650072 | AP34: 208.3498424 | AQ34: 212.3084894 | AR34: 216.3423507 | AS34: 220.4528554 | AT34: 224.6414596 | AU34: 228.9096473 | AV34: 233.2589306 | AW34: 237.6908503 | AX34: 242.2069765 | AY34: 246.808909 | AZ34: 251.4982783 | BA34: 256.2767456 | BB34: 261.1460038 | BC34: 266.1077778 | BD34: 271.1638256 | BE34: 276.3159383 | BF34: 281.5659411 | BG34: 286.915694 | BH34: 292.3670922 | BI34: 297.9220669 | BJ34: 303.5825862 | BK34: 309.3506553 | BL34: 315.2283178 | BM34: 321.2176558 | BN34: 327.3207913 | BO34: 333.5398863 | BP34: 339.8771442 | BQ34: =BP34*(1+$C$26) -> 346.3348099 | BR34: 352.9151713 | BS34: 359.6205595 | BT34: 366.4533502 | BU34: 373.4159638 | BV34: 380.5108671 | BW34: 387.7405736 | BX34: 395.1076445 | BY34: 402.6146898 | BZ34: 410.2643689 | CA34: 418.0593919 | CB34: 426.0025203 | CC34: 434.0965682 | CD34: 442.344403 | CE34: 450.7489467 | CF34: 459.3131767 | CG34: 468.040127 | CH34: 476.9328894 | CI34: 485.9946143 | CJ34: 495.228512 | CK34: 504.6378537 | CL34: 514.2259729 | CM34: 523.9962664 | CN34: 533.9521955 | CO34: 544.0972872 | CP34: 554.4351357 | CQ34: 564.9694032 | CR34: 575.7038219 | CS34: 586.6421945 | CT34: 597.7883962 | CU34: 609.1463757 | CV34: 620.7201569 | CW34: 632.5138399 | CX34: 644.5316028 | CY34: 656.7777033
B35: Less: Retirements | D35: =IF(D31>=$C$25,OFFSET(D34,0,-$C$25)) -> FALSE | E35: =IF(E31>=$C$25,OFFSET(E34,0,-$C$25)) -> FALSE | F35: FALSE | G35: FALSE | H35: FALSE | I35: FALSE | J35: FALSE | K35: FALSE | L35: FALSE | M35: FALSE | N35: FALSE | O35: FALSE | P35: FALSE | Q35: FALSE | R35: FALSE | S35: FALSE | T35: FALSE | U35: FALSE | V35: FALSE | W35: FALSE | X35: FALSE | Y35: FALSE | Z35: FALSE | AA35: FALSE | AB35: FALSE | AC35: FALSE | AD35: FALSE | AE35: FALSE | AF35: FALSE | AG35: 100 | AH35: 101.9 | AI35: 103.8361 | AJ35: 105.8089859 | AK35: 107.8193566 | AL35: 109.8679244 | AM35: 111.955415 | AN35: 114.0825679 | AO35: 116.2501366 | AP35: 118.4588892 | AQ35: 120.7096081 | AR35: 123.0030907 | AS35: 125.3401494 | AT35: 127.7216123 | AU35: 130.1483229 | AV35: 132.621141 | AW35: 135.1409427 | AX35: 137.7086206 | AY35: 140.3250844 | AZ35: 142.991261 | BA35: 145.708095 | BB35: 148.4765488 | BC35: 151.2976032 | BD35: 154.1722577 | BE35: 157.1015306 | BF35: 160.0864596 | BG35: 163.1281024 | BH35: 166.2275363 | BI35: 169.3858595 | BJ35: 172.6041908 | BK35: 175.8836705 | BL35: 179.2254602 | BM35: 182.6307439 | BN35: 186.1007281 | BO35: 189.6366419 | BP35: 193.2397381 | BQ35: =IF(BQ31>=$C$25,OFFSET(BQ34,0,-$C$25)) -> 196.9112931 | BR35: 200.6526077 | BS35: 204.4650072 | BT35: 208.3498424 | BU35: 212.3084894 | BV35: 216.3423507 | BW35: 220.4528554 | BX35: 224.6414596 | BY35: 228.9096473 | BZ35: 233.2589306 | CA35: 237.6908503 | CB35: 242.2069765 | CC35: 246.808909 | CD35: 251.4982783 | CE35: 256.2767456 | CF35: 261.1460038 | CG35: 266.1077778 | CH35: 271.1638256 | CI35: 276.3159383 | CJ35: 281.5659411 | CK35: 286.915694 | CL35: 292.3670922 | CM35: 297.9220669 | CN35: 303.5825862 | CO35: 309.3506553 | CP35: 315.2283178 | CQ35: 321.2176558 | CR35: 327.3207913 | CS35: 333.5398863 | CT35: 339.8771442 | CU35: 346.3348099 | CV35: 352.9151713 | CW35: 359.6205595 | CX35: 366.4533502 | CY35: 373.4159638
B36: Closing Balance | C36: =C33+C34-C35 -> 100 | D36: =D33+D34-D35 -> 201.9 | E36: =E33+E34-E35 -> 305.7361 | F36: 411.5450859 | G36: 519.3644425 | H36: 629.2323669 | I36: 741.1877819 | J36: 855.2703498 | K36: 971.5204864 | L36: 1089.979376 | M36: 1210.688984 | N36: 1333.692074 | O36: 1459.032224 | P36: 1586.753836 | Q36: 1716.902159 | R36: 1849.5233 | S36: 1984.664243 | T36: 2122.372863 | U36: 2262.697948 | V36: 2405.689209 | W36: 2551.397304 | X36: 2699.873853 | Y36: 2851.171456 | Z36: 3005.343713 | AA36: 3162.445244 | AB36: 3322.531704 | AC36: 3485.659806 | AD36: 3651.887342 | AE36: 3821.273202 | AF36: 3993.877393 | AG36: 4069.761063 | AH36: 4147.086523 | AI36: 4225.881167 | AJ36: 4306.172909 | AK36: 4387.990195 | AL36: 4471.362008 | AM36: 4556.317887 | AN36: 4642.887926 | AO36: 4731.102797 | AP36: 4820.99375 | AQ36: 4912.592631 | AR36: 5005.931891 | AS36: 5101.044597 | AT36: 5197.964445 | AU36: 5296.725769 | AV36: 5397.363559 | AW36: 5499.913466 | AX36: 5604.411822 | AY36: 5710.895647 | AZ36: 5819.402664 | BA36: 5929.971315 | BB36: 6042.64077 | BC36: 6157.450944 | BD36: 6274.442512 | BE36: 6393.65692 | BF36: 6515.136401 | BG36: 6638.923993 | BH36: 6765.063549 | BI36: 6893.599756 | BJ36: 7024.578152 | BK36: 7158.045137 | BL36: 7294.047994 | BM36: 7432.634906 | BN36: 7573.854969 | BO36: 7717.758214 | BP36: 7864.39562 | BQ36: =BQ33+BQ34-BQ35 -> 8013.819137 | BR36: 8166.0817 | BS36: 8321.237252 | BT36: 8479.34076 | BU36: 8640.448235 | BV36: 8804.616751 | BW36: 8971.904469 | BX36: 9142.370654 | BY36: 9316.075697 | BZ36: 9493.081135 | CA36: 9673.449677 | CB36: 9857.24522 | CC36: 10044.53288 | CD36: 10235.379 | CE36: 10429.85121 | CF36: 10628.01838 | CG36: 10829.95073 | CH36: 11035.71979 | CI36: 11245.39847 | CJ36: 11459.06104 | CK36: 11676.7832 | CL36: 11898.64208 | CM36: 12124.71628 | CN36: 12355.08589 | CO36: 12589.83252 | CP36: 12829.03934 | CQ36: 13072.79108 | CR36: 13321.17412 | CS36: 13574.27642 | CT36: 13832.18768 | CU36: 14094.99924 | CV36: 14362.80423 | CW36: 14635.69751 | CX36: 14913.77576 | CY36: 15197.1375
B38: Depreication Rate | C38: =1/$C$25 -> 0.03333333333 | D38: =1/$C$25 -> 0.03333333333 | E38: 0.03333333333 | F38: 0.03333333333 | G38: 0.03333333333 | H38: 0.03333333333 | I38: 0.03333333333 | J38: 0.03333333333 | K38: 0.03333333333 | L38: 0.03333333333 | M38: 0.03333333333 | N38: 0.03333333333 | O38: 0.03333333333 | P38: 0.03333333333 | Q38: 0.03333333333 | R38: 0.03333333333 | S38: 0.03333333333 | T38: 0.03333333333 | U38: 0.03333333333 | V38: 0.03333333333 | W38: 0.03333333333 | X38: 0.03333333333 | Y38: 0.03333333333 | Z38: 0.03333333333 | AA38: 0.03333333333 | AB38: 0.03333333333 | AC38: 0.03333333333 | AD38: 0.03333333333 | AE38: 0.03333333333 | AF38: 0.03333333333 | AG38: 0.03333333333 | AH38: 0.03333333333 | AI38: 0.03333333333 | AJ38: 0.03333333333 | AK38: 0.03333333333 | AL38: 0.03333333333 | AM38: 0.03333333333 | AN38: 0.03333333333 | AO38: 0.03333333333 | AP38: 0.03333333333 | AQ38: 0.03333333333 | AR38: 0.03333333333 | AS38: 0.03333333333 | AT38: 0.03333333333 | AU38: 0.03333333333 | AV38: 0.03333333333 | AW38: 0.03333333333 | AX38: 0.03333333333 | AY38: 0.03333333333 | AZ38: 0.03333333333 | BA38: 0.03333333333 | BB38: 0.03333333333 | BC38: 0.03333333333 | BD38: 0.03333333333 | BE38: 0.03333333333 | BF38: 0.03333333333 | BG38: 0.03333333333 | BH38: 0.03333333333 | BI38: 0.03333333333 | BJ38: 0.03333333333 | BK38: 0.03333333333 | BL38: 0.03333333333 | BM38: 0.03333333333 | BN38: 0.03333333333 | BO38: 0.03333333333 | BP38: =1/$C$25 -> 0.03333333333 | BQ38: 0.03333333333 | BR38: 0.03333333333 | BS38: 0.03333333333 | BT38: 0.03333333333 | BU38: 0.03333333333 | BV38: 0.03333333333 | BW38: 0.03333333333 | BX38: 0.03333333333 | BY38: 0.03333333333 | BZ38: 0.03333333333 | CA38: 0.03333333333 | CB38: 0.03333333333 | CC38: 0.03333333333 | CD38: 0.03333333333 | CE38: 0.03333333333 | CF38: 0.03333333333 | CG38: 0.03333333333 | CH38: 0.03333333333 | CI38: 0.03333333333 | CJ38: 0.03333333333 | CK38: 0.03333333333 | CL38: 0.03333333333 | CM38: 0.03333333333 | CN38: 0.03333333333 | CO38: 0.03333333333 | CP38: 0.03333333333 | CQ38: 0.03333333333 | CR38: 0.03333333333 | CS38: 0.03333333333 | CT38: 0.03333333333 | CU38: 0.03333333333 | CV38: 0.03333333333 | CW38: 0.03333333333 | CX38: 0.03333333333 | CY38: 0.03333333333
B39: Depreciation Expense | C39: =C38*C33 -> 0 | D39: =D38*D33 -> 3.333333333 | E39: 6.73 | F39: 10.19120333 | G39: 13.71816953 | H39: 17.31214808 | I39: 20.97441223 | J39: 24.7062594 | K39: 28.50901166 | L39: 32.38401621 | M39: 36.33264586 | N39: 40.35629946 | O39: 44.45640248 | P39: 48.63440746 | Q39: 52.89179454 | R39: 57.23007197 | S39: 61.65077667 | T39: 66.15547476 | U39: 70.74576211 | V39: 75.42326493 | W39: 80.18964029 | X39: 85.04657679 | Y39: 89.99579508 | Z39: 95.03904852 | AA39: 100.1781238 | AB39: 105.4148415 | AC39: 110.7510568 | AD39: 116.1886602 | AE39: 121.7295781 | AF39: 127.3757734 | AG39: 133.1292464 | AH39: 135.6587021 | AI39: 138.2362174 | AJ39: 140.8627056 | AK39: 143.539097 | AL39: 146.2663398 | AM39: 149.0454003 | AN39: 151.8772629 | AO39: 154.7629309 | AP39: 157.7034266 | AQ39: 160.6997917 | AR39: 163.7530877 | AS39: 166.8643964 | AT39: 170.0348199 | AU39: 173.2654815 | AV39: 176.5575256 | AW39: 179.9121186 | AX39: 183.3304489 | AY39: 186.8137274 | AZ39: 190.3631882 | BA39: 193.9800888 | BB39: 197.6657105 | BC39: 201.421359 | BD39: 205.2483648 | BE39: 209.1480837 | BF39: 213.1218973 | BG39: 217.1712134 | BH39: 221.2974664 | BI39: 225.5021183 | BJ39: 229.7866585 | BK39: 234.1526051 | BL39: 238.6015046 | BM39: 243.1349331 | BN39: 247.7544969 | BO39: 252.4618323 | BP39: =BP38*BP33 -> 257.2586071 | BQ39: 262.1465207 | BR39: 267.1273046 | BS39: 272.2027233 | BT39: 277.3745751 | BU39: 282.644692 | BV39: 288.0149412 | BW39: 293.487225 | BX39: 299.0634823 | BY39: 304.7456885 | BZ39: 310.5358566 | CA39: 316.4360378 | CB39: 322.4483226 | CC39: 328.5748407 | CD39: 334.8177627 | CE39: 341.1793001 | CF39: 347.6617068 | CG39: 354.2672793 | CH39: 360.9983576 | CI39: 367.8573264 | CJ39: 374.8466156 | CK39: 381.9687013 | CL39: 389.2261066 | CM39: 396.6214026 | CN39: 404.1572093 | CO39: 411.8361963 | CP39: 419.661084 | CQ39: 427.6346446 | CR39: 435.7597028 | CS39: 444.0391372 | CT39: 452.4758808 | CU39: 461.0729225 | CV39: 469.833308 | CW39: 478.7601409 | CX39: 487.8565836 | CY39: 497.1258587
B41: Accumulated Depreciation
B42: Opening Balance | C42: 0 | D42: =C45 -> 0 | E42: =D45 -> 3.333333333 | F42: 10.06333333 | G42: 20.25453667 | H42: 33.9727062 | I42: 51.28485428 | J42: 72.25926651 | K42: 96.96552591 | L42: 125.4745376 | M42: 157.8585538 | N42: 194.1911996 | O42: 234.5474991 | P42: 279.0039016 | Q42: 327.638309 | R42: 380.5301036 | S42: 437.7601755 | T42: 499.4109522 | U42: 565.566427 | V42: 636.3121891 | W42: 711.735454 | X42: 791.9250943 | Y42: 876.9716711 | Z42: 966.9674662 | AA42: 1062.006515 | AB42: 1162.184638 | AC42: 1267.59948 | AD42: 1378.350537 | AE42: 1494.539197 | AF42: 1616.268775 | AG42: 1743.644548 | AH42: 1776.773795 | AI42: 1810.532497 | AJ42: 1844.932614 | AK42: 1879.986334 | AL42: 1915.706074 | AM42: 1952.10449 | AN42: 1989.194475 | AO42: 2026.98917 | AP42: 2065.501964 | AQ42: 2104.746502 | AR42: 2144.736685 | AS42: 2185.486682 | AT42: 2227.010929 | AU42: 2269.324137 | AV42: 2312.441295 | AW42: 2356.37768 | AX42: 2401.148856 | AY42: 2446.770684 | AZ42: 2493.259327 | BA42: 2540.631254 | BB42: 2588.903248 | BC42: 2638.09241 | BD42: 2688.216166 | BE42: 2739.292273 | BF42: 2791.338826 | BG42: 2844.374264 | BH42: 2898.417375 | BI42: 2953.487305 | BJ42: 3009.603564 | BK42: 3066.786031 | BL42: 3125.054966 | BM42: 3184.43101 | BN42: 3244.9352 | BO42: 3306.588968 | BP42: 3369.414159 | BQ42: =BP45 -> 3433.433028 | BR42: 3498.668255 | BS42: 3565.142952 | BT42: 3632.880668 | BU42: 3701.905401 | BV42: 3772.241604 | BW42: 3843.914194 | BX42: 3916.948564 | BY42: 3991.370587 | BZ42: 4067.206628 | CA42: 4144.483554 | CB42: 4223.228741 | CC42: 4303.470087 | CD42: 4385.236019 | CE42: 4468.555503 | CF42: 4553.458058 | CG42: 4639.973761 | CH42: 4728.133262 | CI42: 4817.967794 | CJ42: 4909.509182 | CK42: 5002.789857 | CL42: 5097.842864 | CM42: 5194.701879 | CN42: 5293.401214 | CO42: 5393.975837 | CP42: 5496.461378 | CQ42: 5600.894144 | CR42: 5707.311133 | CS42: 5815.750045 | CT42: 5926.249296 | CU42: 6038.848032 | CV42: 6153.586145 | CW42: 6270.504282 | CX42: 6389.643863 | CY42: 6511.047096
B43: Add: Depreciation | D43: =D39 -> 3.333333333 | E43: =E39 -> 6.73 | F43: 10.19120333 | G43: 13.71816953 | H43: 17.31214808 | I43: 20.97441223 | J43: 24.7062594 | K43: 28.50901166 | L43: 32.38401621 | M43: 36.33264586 | N43: 40.35629946 | O43: 44.45640248 | P43: 48.63440746 | Q43: 52.89179454 | R43: 57.23007197 | S43: 61.65077667 | T43: 66.15547476 | U43: 70.74576211 | V43: 75.42326493 | W43: 80.18964029 | X43: 85.04657679 | Y43: 89.99579508 | Z43: 95.03904852 | AA43: 100.1781238 | AB43: 105.4148415 | AC43: 110.7510568 | AD43: 116.1886602 | AE43: 121.7295781 | AF43: 127.3757734 | AG43: 133.1292464 | AH43: 135.6587021 | AI43: 138.2362174 | AJ43: 140.8627056 | AK43: 143.539097 | AL43: 146.2663398 | AM43: 149.0454003 | AN43: 151.8772629 | AO43: 154.7629309 | AP43: 157.7034266 | AQ43: 160.6997917 | AR43: 163.7530877 | AS43: 166.8643964 | AT43: 170.0348199 | AU43: 173.2654815 | AV43: 176.5575256 | AW43: 179.9121186 | AX43: 183.3304489 | AY43: 186.8137274 | AZ43: 190.3631882 | BA43: 193.9800888 | BB43: 197.6657105 | BC43: 201.421359 | BD43: 205.2483648 | BE43: 209.1480837 | BF43: 213.1218973 | BG43: 217.1712134 | BH43: 221.2974664 | BI43: 225.5021183 | BJ43: 229.7866585 | BK43: 234.1526051 | BL43: 238.6015046 | BM43: 243.1349331 | BN43: 247.7544969 | BO43: 252.4618323 | BP43: 257.2586071 | BQ43: =BQ39 -> 262.1465207 | BR43: 267.1273046 | BS43: 272.2027233 | BT43: 277.3745751 | BU43: 282.644692 | BV43: 288.0149412 | BW43: 293.487225 | BX43: 299.0634823 | BY43: 304.7456885 | BZ43: 310.5358566 | CA43: 316.4360378 | CB43: 322.4483226 | CC43: 328.5748407 | CD43: 334.8177627 | CE43: 341.1793001 | CF43: 347.6617068 | CG43: 354.2672793 | CH43: 360.9983576 | CI43: 367.8573264 | CJ43: 374.8466156 | CK43: 381.9687013 | CL43: 389.2261066 | CM43: 396.6214026 | CN43: 404.1572093 | CO43: 411.8361963 | CP43: 419.661084 | CQ43: 427.6346446 | CR43: 435.7597028 | CS43: 444.0391372 | CT43: 452.4758808 | CU43: 461.0729225 | CV43: 469.833308 | CW43: 478.7601409 | CX43: 487.8565836 | CY43: 497.1258587
B44: Less: Retirements | D44: =D35 -> FALSE | E44: =E35 -> FALSE | F44: FALSE | G44: FALSE | H44: FALSE | I44: FALSE | J44: FALSE | K44: FALSE | L44: FALSE | M44: FALSE | N44: FALSE | O44: FALSE | P44: FALSE | Q44: FALSE | R44: FALSE | S44: FALSE | T44: FALSE | U44: FALSE | V44: FALSE | W44: FALSE | X44: FALSE | Y44: FALSE | Z44: FALSE | AA44: FALSE | AB44: FALSE | AC44: FALSE | AD44: FALSE | AE44: FALSE | AF44: FALSE | AG44: 100 | AH44: 101.9 | AI44: 103.8361 | AJ44: 105.8089859 | AK44: 107.8193566 | AL44: 109.8679244 | AM44: 111.955415 | AN44: 114.0825679 | AO44: 116.2501366 | AP44: 118.4588892 | AQ44: 120.7096081 | AR44: 123.0030907 | AS44: 125.3401494 | AT44: 127.7216123 | AU44: 130.1483229 | AV44: 132.621141 | AW44: 135.1409427 | AX44: 137.7086206 | AY44: 140.3250844 | AZ44: 142.991261 | BA44: 145.708095 | BB44: 148.4765488 | BC44: 151.2976032 | BD44: 154.1722577 | BE44: 157.1015306 | BF44: 160.0864596 | BG44: 163.1281024 | BH44: 166.2275363 | BI44: 169.3858595 | BJ44: 172.6041908 | BK44: 175.8836705 | BL44: 179.2254602 | BM44: 182.6307439 | BN44: 186.1007281 | BO44: 189.6366419 | BP44: 193.2397381 | BQ44: =BQ35 -> 196.9112931 | BR44: 200.6526077 | BS44: 204.4650072 | BT44: 208.3498424 | BU44: 212.3084894 | BV44: 216.3423507 | BW44: 220.4528554 | BX44: 224.6414596 | BY44: 228.9096473 | BZ44: 233.2589306 | CA44: 237.6908503 | CB44: 242.2069765 | CC44: 246.808909 | CD44: 251.4982783 | CE44: 256.2767456 | CF44: 261.1460038 | CG44: 266.1077778 | CH44: 271.1638256 | CI44: 276.3159383 | CJ44: 281.5659411 | CK44: 286.915694 | CL44: 292.3670922 | CM44: 297.9220669 | CN44: 303.5825862 | CO44: 309.3506553 | CP44: 315.2283178 | CQ44: 321.2176558 | CR44: 327.3207913 | CS44: 333.5398863 | CT44: 339.8771442 | CU44: 346.3348099 | CV44: 352.9151713 | CW44: 359.6205595 | CX44: 366.4533502 | CY44: 373.4159638
B45: Closing Balance | C45: =C42+C43-C44 -> 0 | D45: =D42+D43-D44 -> 3.333333333 | E45: =E42+E43-E44 -> 10.06333333 | F45: 20.25453667 | G45: 33.9727062 | H45: 51.28485428 | I45: 72.25926651 | J45: 96.96552591 | K45: 125.4745376 | L45: 157.8585538 | M45: 194.1911996 | N45: 234.5474991 | O45: 279.0039016 | P45: 327.638309 | Q45: 380.5301036 | R45: 437.7601755 | S45: 499.4109522 | T45: 565.566427 | U45: 636.3121891 | V45: 711.735454 | W45: 791.9250943 | X45: 876.9716711 | Y45: 966.9674662 | Z45: 1062.006515 | AA45: 1162.184638 | AB45: 1267.59948 | AC45: 1378.350537 | AD45: 1494.539197 | AE45: 1616.268775 | AF45: 1743.644548 | AG45: 1776.773795 | AH45: 1810.532497 | AI45: 1844.932614 | AJ45: 1879.986334 | AK45: 1915.706074 | AL45: 1952.10449 | AM45: 1989.194475 | AN45: 2026.98917 | AO45: 2065.501964 | AP45: 2104.746502 | AQ45: 2144.736685 | AR45: 2185.486682 | AS45: 2227.010929 | AT45: 2269.324137 | AU45: 2312.441295 | AV45: 2356.37768 | AW45: 2401.148856 | AX45: 2446.770684 | AY45: 2493.259327 | AZ45: 2540.631254 | BA45: 2588.903248 | BB45: 2638.09241 | BC45: 2688.216166 | BD45: 2739.292273 | BE45: 2791.338826 | BF45: 2844.374264 | BG45: 2898.417375 | BH45: 2953.487305 | BI45: 3009.603564 | BJ45: 3066.786031 | BK45: 3125.054966 | BL45: 3184.43101 | BM45: 3244.9352 | BN45: 3306.588968 | BO45: 3369.414159 | BP45: 3433.433028 | BQ45: =BQ42+BQ43-BQ44 -> 3498.668255 | BR45: 3565.142952 | BS45: 3632.880668 | BT45: 3701.905401 | BU45: 3772.241604 | BV45: 3843.914194 | BW45: 3916.948564 | BX45: 3991.370587 | BY45: 4067.206628 | BZ45: 4144.483554 | CA45: 4223.228741 | CB45: 4303.470087 | CC45: 4385.236019 | CD45: 4468.555503 | CE45: 4553.458058 | CF45: 4639.973761 | CG45: 4728.133262 | CH45: 4817.967794 | CI45: 4909.509182 | CJ45: 5002.789857 | CK45: 5097.842864 | CL45: 5194.701879 | CM45: 5293.401214 | CN45: 5393.975837 | CO45: 5496.461378 | CP45: 5600.894144 | CQ45: 5707.311133 | CR45: 5815.750045 | CS45: 5926.249296 | CT45: 6038.848032 | CU45: 6153.586145 | CV45: 6270.504282 | CW45: 6389.643863 | CX45: 6511.047096 | CY45: 6634.756991
B47: Net Plant | C47: =C36-C45 -> 100 | D47: =D36-D45 -> 198.5666667 | E47: 295.6727667 | F47: 391.2905492 | G47: 485.3917363 | H47: 577.9475127 | I47: 668.9285154 | J47: 758.3048239 | K47: 846.0459488 | L47: 932.1208219 | M47: 1016.497784 | N47: 1099.144575 | O47: 1180.028322 | P47: 1259.115527 | Q47: 1336.372055 | R47: 1411.763125 | S47: 1485.253291 | T47: 1556.806436 | U47: 1626.385759 | V47: 1693.953755 | W47: 1759.472209 | X47: 1822.902181 | Y47: 1884.20399 | Z47: 1943.337199 | AA47: 2000.260605 | AB47: 2054.932224 | AC47: 2107.309269 | AD47: 2157.348145 | AE47: 2205.004427 | AF47: 2250.232844 | AG47: 2292.987268 | AH47: 2336.554026 | AI47: 2380.948553 | AJ47: 2426.186575 | AK47: 2472.28412 | AL47: 2519.257519 | AM47: 2567.123411 | AN47: 2615.898756 | AO47: 2665.600833 | AP47: 2716.247248 | AQ47: 2767.855946 | AR47: 2820.445209 | AS47: 2874.033668 | AT47: 2928.640308 | AU47: 2984.284474 | AV47: 3040.985879 | AW47: 3098.76461 | AX47: 3157.641138 | AY47: 3217.63632 | AZ47: 3278.77141 | BA47: 3341.068066 | BB47: 3404.54836 | BC47: 3469.234778 | BD47: 3535.150239 | BE47: 3602.318094 | BF47: 3670.762138 | BG47: 3740.506618 | BH47: 3811.576244 | BI47: 3883.996193 | BJ47: 3957.79212 | BK47: 4032.990171 | BL47: 4109.616984 | BM47: 4187.699706 | BN47: 4267.266001 | BO47: 4348.344055 | BP47: =BP36-BP45 -> 4430.962592 | BQ47: 4515.150881 | BR47: 4600.938748 | BS47: 4688.356584 | BT47: 4777.435359 | BU47: 4868.206631 | BV47: 4960.702557 | BW47: 5054.955906 | BX47: 5151.000068 | BY47: 5248.869069 | BZ47: 5348.597581 | CA47: 5450.220935 | CB47: 5553.775133 | CC47: 5659.296861 | CD47: 5766.823501 | CE47: 5876.393148 | CF47: 5988.044617 | CG47: 6101.817465 | CH47: 6217.751997 | CI47: 6335.889285 | CJ47: 6456.271181 | CK47: 6578.940334 | CL47: 6703.9402 | CM47: 6831.315064 | CN47: 6961.11005 | CO47: 7093.371141 | CP47: 7228.145193 | CQ47: 7365.479952 | CR47: 7505.424071 | CS47: 7648.027128 | CT47: 7793.339643 | CU47: 7941.413097 | CV47: 8092.299945 | CW47: 8246.053644 | CX47: 8402.728664 | CY47: 8562.380508
B49: Cap Exp to Depreciation | D49: =D34/D39 -> 30.57 | E49: =E34/E39 -> 15.42884101 | F49: 10.38238395 | G49: 7.859602289 | H49: 6.346290701 | I49: 5.337714055 | J49: 4.617557277 | K49: 4.077662812 | L49: 3.657943118 | M49: 3.322345656 | N49: 3.047927891 | O49: 2.819394787 | P49: 2.626157466 | Q49: 2.460652432 | R49: 2.317333116 | S49: 2.192039582 | T49: 2.081590694 | U49: 1.98351223 | V49: 1.895850851 | W49: 1.817043878 | X49: 1.74582628 | Y49: 1.681163026 | Z49: 1.622199086 | AA49: 1.568221929 | AB49: 1.518633026 | AC49: 1.472925921 | AD49: 1.430669189 | AE49: 1.391493031 | AF49: 1.355078648 | AG49: 1.321149749 | AH49: 1.321149749 | AI49: 1.321149749 | AJ49: 1.321149749 | AK49: 1.321149749 | AL49: 1.321149749 | AM49: 1.321149749 | AN49: 1.321149749 | AO49: 1.321149749 | AP49: 1.321149749 | AQ49: 1.321149749 | AR49: 1.321149749 | AS49: 1.321149749 | AT49: 1.321149749 | AU49: 1.321149749 | AV49: 1.321149749 | AW49: 1.321149749 | AX49: 1.321149749 | AY49: 1.321149749 | AZ49: 1.321149749 | BA49: 1.321149749 | BB49: 1.321149749 | BC49: 1.321149749 | BD49: 1.321149749 | BE49: 1.321149749 | BF49: 1.321149749 | BG49: 1.321149749 | BH49: 1.321149749 | BI49: 1.321149749 | BJ49: 1.321149749 | BK49: 1.321149749 | BL49: 1.321149749 | BM49: 1.321149749 | BN49: 1.321149749 | BO49: 1.321149749 | BP49: 1.321149749 | BQ49: =BQ34/BQ39 -> 1.321149749 | BR49: 1.321149749 | BS49: 1.321149749 | BT49: 1.321149749 | BU49: 1.321149749 | BV49: 1.321149749 | BW49: 1.321149749 | BX49: 1.321149749 | BY49: 1.321149749 | BZ49: 1.321149749 | CA49: 1.321149749 | CB49: 1.321149749 | CC49: 1.321149749 | CD49: 1.321149749 | CE49: 1.321149749 | CF49: 1.321149749 | CG49: 1.321149749 | CH49: 1.321149749 | CI49: 1.321149749 | CJ49: 1.321149749 | CK49: 1.321149749 | CL49: 1.321149749 | CM49: 1.321149749 | CN49: 1.321149749 | CO49: 1.321149749 | CP49: 1.321149749 | CQ49: 1.321149749 | CR49: 1.321149749 | CS49: 1.321149749 | CT49: 1.321149749 | CU49: 1.321149749 | CV49: 1.321149749 | CW49: 1.321149749 | CX49: 1.321149749 | CY49: 1.321149749
B50: Depreciation to Net Plant | D50: =D39/C47 -> 0.03333333333 | E50: =E39/D47 -> 0.03389289911 | F50: 0.03446784582 | G50: 0.03505878063 | H50: 0.03566634285 | I50: 0.03629120599 | J50: 0.03693408014 | K50: 0.0375957145 | L50: 0.03827690004 | M50: 0.03897847254 | N50: 0.03970131572 | O50: 0.04044636482 | P50: 0.04121461031 | Q50: 0.04200710213 | R50: 0.04282495412 | S50: 0.04366934906 | T50: 0.04454154398 | U50: 0.04544287617 | V50: 0.04637476965 | W50: 0.04733874232 | X50: 0.0483364138 | Y50: 0.04936951417 | Z50: 0.05043989348 | AA50: 0.05154953234 | AB50: 0.05270055371 | AC50: 0.05389523582 | AD50: 0.05513602673 | AE50: 0.0564255604 | AF50: 0.05776667468 | AG50: 0.05916243146 | AH50: 0.05916243146 | AI50: 0.05916243146 | AJ50: 0.05916243146 | AK50: 0.05916243146 | AL50: 0.05916243146 | AM50: 0.05916243146 | AN50: 0.05916243146 | AO50: 0.05916243146 | AP50: 0.05916243146 | AQ50: 0.05916243146 | AR50: 0.05916243146 | AS50: 0.05916243146 | AT50: 0.05916243146 | AU50: 0.05916243146 | AV50: 0.05916243146 | AW50: 0.05916243146 | AX50: 0.05916243146 | AY50: 0.05916243146 | AZ50: 0.05916243146 | BA50: 0.05916243146 | BB50: 0.05916243146 | BC50: 0.05916243146 | BD50: 0.05916243146 | BE50: 0.05916243146 | BF50: 0.05916243146 | BG50: 0.05916243146 | BH50: 0.05916243146 | BI50: 0.05916243146 | BJ50: 0.05916243146 | BK50: 0.05916243146 | BL50: 0.05916243146 | BM50: 0.05916243146 | BN50: 0.05916243146 | BO50: 0.05916243146 | BP50: 0.05916243146 | BQ50: =BQ39/BP47 -> 0.05916243146 | BR50: 0.05916243146 | BS50: 0.05916243146 | BT50: 0.05916243146 | BU50: 0.05916243146 | BV50: 0.05916243146 | BW50: 0.05916243146 | BX50: 0.05916243146 | BY50: 0.05916243146 | BZ50: 0.05916243146 | CA50: 0.05916243146 | CB50: 0.05916243146 | CC50: 0.05916243146 | CD50: 0.05916243146 | CE50: 0.05916243146 | CF50: 0.05916243146 | CG50: 0.05916243146 | CH50: 0.05916243146 | CI50: 0.05916243146 | CJ50: 0.05916243146 | CK50: 0.05916243146 | CL50: 0.05916243146 | CM50: 0.05916243146 | CN50: 0.05916243146 | CO50: 0.05916243146 | CP50: 0.05916243146 | CQ50: 0.05916243146 | CR50: 0.05916243146 | CS50: 0.05916243146 | CT50: 0.05916243146 | CU50: 0.05916243146 | CV50: 0.05916243146 | CW50: 0.05916243146 | CX50: 0.05916243146 | CY50: 0.05916243146

Sheet Sheet1

Sheet FCX_BS
A1: View: Annual Data | Quarterly Data
A2: Period Ending | C2: 2010-12-30 | D2: 2011-12-30 | E2: 2012-12-30
A3: Assets
A4: Current Assets
B5: Cash And Cash Equivalents | C5: 3,738,000 | D5: 4,822,000 | E5: 3,705,000 | F5: =E5 -> 3,705,000
B6: Short Term Investments | C6: - | D6: - | E6: -
B7: Net Receivables | C7: 2,425,000 | D7: 1,142,000 | E7: 1,629,000
B8: Inventory | C8: 3,434,000 | D8: 3,869,000 | E8: 4,576,000
B9: Other Current Assets | C9: 254,000 | D9: 214,000 | E9: 387,000
A10: Total Current Assets | C10: 9,851,000 | D10: 10,047,000 | E10: 10,297,000
A11: Long Term Investments | C11: 200,000 | D11: 675,000 | E11: 769,000
A12: Property Plant and Equipment | C12: 18,210,000 | D12: 20,135,000 | E12: 22,954,000
A13: Goodwill | C13: - | D13: - | E13: -
A14: Intangible Assets | C14: 328,000 | D14: - | E14: -
A15: Accumulated Amortization | C15: - | D15: - | E15: -
A16: Other Assets | C16: 797,000 | D16: 1,213,000 | E16: 1,420,000
A17: Deferred Long Term Asset Charges | C17: - | D17: - | E17: -
A18: Total Assets | C18: 29386000 | D18: 32,070,000 | E18: 35,440,000
A19: Liabilities
A20: Current Liabilities
B21: Accounts Payable | C21: 3,329,000 | D21: 2,700,000 | E21: 3,100,000
B22: Short/Current Long Term Debt | C22: 95,000 | D22: 4,000 | E22: 2,000
B23: Other Current Liabilities | C23: 339,000 | D23: 236,000 | E23: 241,000
A24: Total Current Liabilities | C24: 3,763,000 | D24: 2,940,000 | E24: 3,343,000
A25: Long Term Debt | C25: 4,660,000 | D25: 3,533,000 | E25: 3,525,000
A26: Other Liabilities | C26: 3,530,000 | D26: 3,789,000 | E26: 3,771,000
A27: Deferred Long Term Liability Charges | C27: 2,873,000 | D27: 3,255,000 | E27: 3,490,000
A28: Minority Interest | C28: 2,056,000 | D28: 2,911,000 | E28: 3,768,000
A29: Negative Goodwill | C29: - | D29: - | E29: -
A30: Total Liabilities | C30: 16882000 | D30: 16,428,000 | E30: 17,897,000
A31: Stockholders' Equity
A32: Misc Stocks Options Warrants | C32: - | D32: - | E32: -
A33: Redeemable Preferred Stock | C33: - | D33: - | E33: -
A34: Preferred Stock | C34: - | D34: - | E34: -
A35: Common Stock | C35: 107,000 | D35: 107,000 | E35: 107,000
A36: Retained Earnings | C36: -2590000 | D36: 546,000 | E36: 2,399,000
A37: Treasury Stock | C37: -3441000 | D37: -3553000 | E37: -3576000
A38: Capital Surplus | C38: 18,751,000 | D38: 19,007,000 | E38: 19,119,000
A39: Other Stockholder Equity | C39: -323000 | D39: -465000 | E39: -506000
A40: Total Stockholder Equity | C40: 12504000 | D40: 15,642,000 | E40: 17,543,000
B41: Total Liabilities + Equities | C41: =C40+C30 -> 29386000 | D41: =D40+D30 -> 
B42: Test | C42: =C41=C18 -> TRUE
A43: Net Tangible Assets | C43: 12,176,000 | D43: 15,642,000 | E43: 17,543,000
A44: Sign Up for a Free Trial to EDGAR Online Premium!
A45: Get the critical business and financial information you need for more than 15,000 U.S. public companies.
A46: Sign Up Now - Learn More
A47: Currency in USD.
A50: Copyright © 2013 Yahoo! Inc. All rights reserved. Privacy Policy - About Our Ads - Terms of Service - Copyright/IP Policy - Send Feedback - Yahoo! - ABC News Network
A51: Quotes are real-time for NASDAQ, NYSE, and NYSE MKT. See also delay times for other exchanges. All information provided "as is" for informational purposes only, not intended for trading purposes or advice. Neither Yahoo! nor any of independent providers is liable for any informational errors, incompleteness, or delays, or for any actions taken in reliance on information contained herein. By accessing the Yahoo! site, you agree not to redistribute the information found therein. Real-Time continuous streaming quotes are available through our premium service. You may turn streaming quotes on or off.
A53: US Financials data provided by Edgar Online and all other Financials provided by Capital IQ.
A56: 95941443

Sheet FCX_IS
A1: View: Annual Data | Quarterly Data | F1: All numbers in thousands
A2: Period Ending | C2: 2010-12-30 | D2: 2011-12-30 | E2: 2012-12-30
A3: Total Revenue | C3: 18,982,000 | D3: 20,880,000 | E3: 18,010,000
A4: Cost of Revenue | C4: 9,371,000 | D4: 10,920,000 | E4: 11,561,000
A5: Gross Profit | C5: 9,611,000 | D5: 9,960,000 | E5: 6,449,000
B6: Operating Expenses
B7: Research Development | C7: 143,000 | D7: 271,000 | E7: 285,000
B8: Selling General and Administrative | C8: 381,000 | D8: 415,000 | E8: 431,000
B9: Non Recurring | C9: 19,000 | D9: 134,000 | E9: -22000
B10: Others | C10: - | D10: - | E10: -
B11: Total Operating Expenses | C11: - | D11: - | E11: -
A12: Operating Income or Loss | C12: 9,068,000 | D12: 9,140,000 | E12: 5,814,000
B13: Income from Continuing Operations
B14: Total Other Income/Expenses Net | C14: -94000 | D14: -10000 | E14: -82000
B15: Earnings Before Interest And Taxes | C15: 9,055,000 | D15: 9,198,000 | E15: 5,900,000
B16: Interest Expense | C16: 462,000 | D16: 312,000 | E16: 186,000
B17: Income Before Tax | C17: 8,593,000 | D17: 8,886,000 | E17: 5,714,000
B18: Income Tax Expense | C18: 2,983,000 | D18: 3,087,000 | E18: 1,510,000
B19: Minority Interest | C19: -1208000 | D19: -1187000 | E19: -939000
B20: Net Income From Continuing Ops | C20: 4,336,000 | D20: 4,560,000 | E20: 3,100,000
B21: Non-recurring Events
B22: Discontinued Operations | C22: - | D22: - | E22: -
B23: Extraordinary Items | C23: - | D23: - | E23: -
B24: Effect Of Accounting Changes | C24: - | D24: - | E24: -
B25: Other Items | C25: - | D25: - | E25: -
A26: Net Income | C26: 4,336,000 | D26: 4,560,000 | E26: 3,100,000
A27: Preferred Stock And Other Adjustments | C27: -63000 | D27: - | E27: -
A28: Net Income Applicable To Common Shares | C28: 4,273,000 | D28: 4,560,000 | E28: 3,041,000
A29: Sign Up for a Free Trial to EDGAR Online Premium!
A30: Get the critical business and financial information you need for more than 15,000 U.S. public companies.
A31: Sign Up Now - Learn More
A32: Currency in USD.
A35: Copyright © 2013 Yahoo! Inc. All rights reserved. Privacy Policy - About Our Ads - Terms of Service - Copyright/IP Policy - Send Feedback - Yahoo! - ABC News Network
A36: Quotes are real-time for NASDAQ, NYSE, and NYSE MKT. See also delay times for other exchanges. All information provided "as is" for informational purposes only, not intended for trading purposes or advice. Neither Yahoo! nor any of independent providers is liable for any informational errors, incompleteness, or delays, or for any actions taken in reliance on information contained herein. By accessing the Yahoo! site, you agree not to redistribute the information found therein. Real-Time continuous streaming quotes are available through our premium service. You may turn streaming quotes on or off.
A38: US Financials data provided by Edgar Online and all other Financials provided by Capital IQ.
A41: 95941440

Sheet FCX_CF
A1: Depreciation | C1: 1,036,000 | D1: 1,022,000 | E1: 1,179,000
A2: Capital Expenditures | C2: -1412000 | D2: -2534000 | E2: -3494000
A3: Dividends Paid | C3: -1796000 | D3: -1814000 | E3: -1242000
A6: Copyright © 2013 Yahoo! Inc. All rights reserved. Privacy Policy - About Our Ads - Terms of Service - Copyright/IP Policy - Send Feedback - Yahoo! - ABC News Network
A7: Quotes are real-time for NASDAQ, NYSE, and NYSE MKT. See also delay times for other exchanges. All information provided "as is" for informational purposes only, not intended for trading purposes or advice. Neither Yahoo! nor any of independent providers is liable for any informational errors, incompleteness, or delays, or for any actions taken in reliance on information contained herein. By accessing the Yahoo! site, you agree not to redistribute the information found therein. Real-Time continuous streaming quotes are available through our premium service. You may turn streaming quotes on or off.
A9: US Financials data provided by Edgar Online and all other Financials provided by Capital IQ.
A12: 95941457

Sheet Sheet4
C1: Industry Demand
C2: Industry Growth
D3: Base case
D4: High Demand case
D5: Low demand Case
D6: Special Case (Sudden Decline)
D8: Industry Growth Scenario | E8: 2
D9: =INDEX(D3:D6,$E$8) -> High Demand case
C11: Industry Supply
D12: Supply base case
D13: Oversupply case
D14: Constrained case
D16: Supply Scenario
C18: Price | E18: Surplus Supply | F18: Price
E19: -1000 | F19: 200
E20: 0 | F20: 150
E21: 500 | F21: 120
E22: 1000 | F22: 100
E23: 1050 | F23: 80
E24: 2000 | F24: 40
